Workbook

Sheet PlotDat6 (hidden)
A1: Source sheet | B1: Sheet1 | C1: 1.70061192 | D1: 0.1762 | E1: 0.3639100633 | F1: 0.05 | G1: 0.2177075089 | H1: 0.03151129135 | I1: 1.819093542 | J1: 0.1767751698 | K1: 2.021038418 | L1: 0.1817028944 | M1: 2.000082444 | N1: 0.1844440125 | O1: 2.075558801 | P1: 0.1843161656 | Q1: 2.99715685 | R1: 0.2292160775 | S1: 2.919209091 | T1: 0.2310936549 | U1: 3.162760505 | V1: 0.2464079672 | W1: 3.259073143 | X1: 0.2456107185 | Y1: 3.226298825 | Z1: 0.2494474988 | AA1: 3.332763825 | AB1: 0.2526425543 | AC1: 4.459001265 | AD1: 0.3026211759 | AE1: 4.622282196 | AF1: 0.3105846047 | AG1: 4.646403375 | AH1: 0.3090069647 | AI1: 4.940658681 | AJ1: 0.3231525172 | AK1: 4.94384077 | AL1: 0.3226388704 | AM1: 4.60043123 | AN1: 0.2972592627 | AO1: 4.943240635 | AP1: 0.3210713574 | AQ1: 4.893751598 | AR1: 0.3197149625 | AS1: 4.900482435 | AT1: 0.318251008 | AU1: 4.875132415 | AV1: 0.3174246942 | AW1: 4.958189153 | AX1: 0.3214897222 | AY1: 5.042574898 | AZ1: 0.323962499 | BA1: 4.942551437 | BB1: 0.3194523041 | BC1: 4.769694776 | BD1: 0.309503123 | BE1: 5.089014023 | BF1: 0.3304405401 | BG1: 5.016285339 | BH1: 0.3216063946 | BI1: 4.724798536 | BJ1: 0.3038856006 | BK1: 5.046256959 | BL1: 0.3262497696 | BM1: 4.964048759 | BN1: 0.3195890347 | BO1: 4.862856045 | BP1: 0.3151038633 | BQ1: 5.172748686 | BR1: 0.3335697402 | BS1: 5.024240864 | BT1: 0.321761311 | BU1: 4.944359527 | BV1: 0.317649929 | BW1: 4.83851663 | BX1: 0.3066774374 | BY1: 4.979964833 | BZ1: 0.3191767565 | CA1: 4.922970282 | CB1: 0.3190105305 | CC1: 4.99156207 | CD1: 0.320052665 | CE1: 5.028921894 | CF1: 0.3222212485 | CG1: 4.995230469 | CH1: 0.319863909 | CI1: 5.103290376 | CJ1: 0.328256321 | CK1: 4.971171124 | CL1: 0.318438755 | CM1: 4.954344078 | CN1: 0.3185301451 | CO1: 5.171270012 | CP1: 0.3275342703 | CQ1: 5.215316132 | CR1: 0.3341013304 | CS1: 4.970526391 | CT1: 0.319001693 | CU1: 5.011767425 | CV1: 0.3207848775 | CW1: 5.161304795 | CX1: 0.3300480201 | CY1: 4.957107397 | CZ1: 0.3165924206 | DA1: 4.978037075 | DB1: 0.3175821842 | DC1: 4.924180854 | DD1: 0.3140469451 | DE1: 5.084969996 | DF1: 0.3221761211 | DG1: 4.997746197 | DH1: 0.3200568621 | DI1: 4.910201847 | DJ1: 0.3133964178 | DK1: 5.156181218 | DL1: 0.3274891167 | DM1: 4.987248248 | DN1: 0.3146735081 | DO1: 4.903579384 | DP1: 0.3134271346 | DQ1: 5.014491255 | DR1: 0.3214683046 | DS1: 5.059252397 | DT1: 0.321582372 | DU1: 5.086821333 | DV1: 0.3216148646 | DW1: 5.031364831 | DX1: 0.3177197726 | DY1: 4.995061539 | DZ1: 0.3157109089 | EA1: 4.997120098 | EB1: 0.3188861171 | EC1: 4.927514804 | ED1: 0.3117058419 | EE1: 5.140931973 | EF1: 0.3256135035 | EG1: 5.027381908 | EH1: 0.318052356 | EI1: 5.051108332 | EJ1: 0.3174204038 | EK1: 5.079584883 | EL1: 0.3242720466 | EM1: 5.069894152 | EN1: 0.3200816348 | EO1: 5.11065085 | EP1: 0.3216767709 | EQ1: 5.070025798 | ER1: 0.3207590143 | ES1: 5.046323374 | ET1: 0.3176063982 | EU1: 5.023148236 | EV1: 0.3156824795 | EW1: 5.213856721 | EX1: 0.3295729597 | EY1: 5.330234927 | EZ1: 0.3352530785 | FA1: 5.247535598 | FB1: 0.3285034334 | FC1: 5.26578809 | FD1: 0.3289252073 | FE1: 5.297996019 | FF1: 0.3288771314 | FG1: 5.437964322 | FH1: 0.3365272521 | FI1: 5.364502452 | FJ1: 0.3308123388 | FK1: 5.672971167 | FL1: 0.3411547151 | FM1: 5.565229897 | FN1: 0.3341338386 | FO1: 5.662884367 | FP1: 0.3426485047 | FQ1: 5.776081262 | FR1: 0.3418531095 | FS1: 6.065232079 | FT1: 0.3470075158 | FU1: 6.832553894 | FV1: 0.3802031433 | FW1: 8.763562815 | FX1: 0.4348891309 | FY1: 10.23023345 | FZ1: 0.4550457823 | GA1: 10.58401004 | GB1: 0.4727101636 | GC1: 10.41421943 | GD1: 0.4599554919 | GE1: 10.90882868 | GF1: 0.4727358586 | GG1: 11.05770924 | GH1: 0.4772790485 | GI1: 10.96830097 | GJ1: 0.4658963757 | GK1: 11.35986459 | GL1: 0.4776982247 | GM1: 11.5957448 | GN1: 0.4869856761 | GO1: 11.76537039 | GP1: 0.4890286771 | GQ1: 11.68162681 | GR1: 0.4792775069 | GS1: 12.01384622 | GT1: 0.487276266 | GU1: 12.60475403 | GV1: 0.5120167467 | GW1: 12.20195795 | GX1: 0.4930131308 | GY1: 12.60046002 | GZ1: 0.5027121969 | HA1: 13.56961237 | HB1: 0.5168935533 | HC1: 14.80085029 | HD1: 0.5299069885 | HE1: 15.80926324 | HF1: 0.5598834576 | HG1: 15.51501554 | HH1: 0.5402986556 | HI1: 16.46353182 | HJ1: 0.5679488431 | HK1: 16.86457117 | HL1: 0.5694179034 | HM1: 18.26185149 | HN1: 0.5882454078 | HO1: 18.00162522 | HP1: 0.5754148219
A2: Plot name | B2: Concordia3 | C2: 1.910073701 | D2: 0.1818 | E2: 0.4766218012 | F2: 0.06331471268 | G2: 0.4828115773 | H2: 0.06401554418 | I2: 1.814288192 | J2: 0.1779903193 | K2: 2.016544641 | L2: 0.1829343025 | M2: 1.996485241 | N2: 0.1856331303 | O2: 2.071404867 | P2: 0.1855454187 | Q2: 2.990755408 | R2: 0.2307518624 | S2: 2.912698309 | T2: 0.2326407003 | U2: 3.15696162 | V2: 0.2479227433 | W2: 3.251967961 | X2: 0.2472805208 | Y2: 3.221013869 | Z2: 0.2509971097 | AA2: 3.327205256 | AB2: 0.2542630688 | AC2: 4.451955101 | AD2: 0.3044145375 | AE2: 4.615904256 | AF2: 0.312377584 | AG2: 4.639326054 | AH2: 0.3109689363 | AI2: 4.932877608 | AJ2: 0.3251041032 | AK2: 4.93646941 | AL2: 0.3246209533 | AM2: 4.59246675 | AN2: 0.2991514984 | AO2: 4.935157229 | AP2: 0.3229289656 | AQ2: 4.887140576 | AR2: 0.3215698633 | AS2: 4.893284009 | AT2: 0.320182203 | AU2: 4.868283764 | AV2: 0.3192804808 | AW2: 4.950458941 | AX2: 0.3233853573 | AY2: 5.033976946 | AZ2: 0.3260284783 | BA2: 4.934846084 | BB2: 0.3213853285 | BC2: 4.763199504 | BD2: 0.3113886328 | BE2: 5.081360743 | BF2: 0.3321919905 | BG2: 5.00781476 | BH2: 0.3235383155 | BI2: 4.716978736 | BJ2: 0.3056420409 | BK2: 5.039184795 | BL2: 0.3281550295 | BM2: 4.956782737 | BN2: 0.3215417363 | BO2: 4.85625204 | BP2: 0.3168317081 | BQ2: 5.165309437 | BR2: 0.3354973312 | BS2: 5.016601194 | BT2: 0.3237747021 | BU2: 4.937325254 | BV2: 0.3196128693 | BW2: 4.82930007 | BX2: 0.3086546683 | BY2: 4.972343559 | BZ2: 0.3211347188 | CA2: 4.91662523 | CB2: 0.3207232556 | CC2: 4.983764464 | CD2: 0.3219437528 | CE2: 5.02144561 | CF2: 0.3241799643 | CG2: 4.987401579 | CH2: 0.3217612824 | CI2: 5.095727739 | CJ2: 0.3300902115 | CK2: 4.963521802 | CL2: 0.3203468027 | CM2: 4.947363439 | CN2: 0.3203767018 | CO2: 5.162700832 | CP2: 0.3296947531 | CQ2: 5.207385119 | CR2: 0.3360354236 | CS2: 4.963871115 | CT2: 0.3209256282 | CU2: 5.004395773 | CV2: 0.3226127222 | CW2: 5.15390659 | CX2: 0.332010916 | CY2: 4.949866843 | CZ2: 0.3184929962 | DA2: 4.970553059 | DB2: 0.3194582098 | DC2: 4.917224255 | DD2: 0.3159897595 | DE2: 5.076425116 | DF2: 0.3241904794 | DG2: 4.990688598 | DH2: 0.3218767925 | DI2: 4.903428527 | DJ2: 0.3153129863 | DK2: 5.148194763 | DL2: 0.3295174947 | DM2: 4.97870903 | DN2: 0.3166754569 | DO2: 4.896497187 | DP2: 0.3151783606 | DQ2: 5.007649218 | DR2: 0.3231654248 | DS2: 5.051591758 | DT2: 0.3234735076 | DU2: 5.07848417 | DV2: 0.3236013327 | DW2: 5.02322979 | DX2: 0.3197018048 | DY2: 4.988154059 | DZ2: 0.3177791034 | EA2: 4.990523044 | EB2: 0.3207041751 | EC2: 4.919453898 | ED2: 0.3134715817 | EE2: 5.13309299 | EF2: 0.3275217577 | EG2: 5.020311702 | EH2: 0.3200508627 | EI2: 5.042883667 | EJ2: 0.3194336197 | EK2: 5.072595531 | EL2: 0.3259078912 | EM2: 5.062182087 | EN2: 0.3219781398 | EO2: 5.102283678 | EP2: 0.3236255915 | EQ2: 5.063034313 | ER2: 0.3226361937 | ES2: 5.038527058 | ET2: 0.3194527157 | EU2: 5.015738369 | EV2: 0.3176354576 | EW2: 5.206371622 | EX2: 0.3313476275 | EY2: 5.322102997 | EZ2: 0.3372201589 | FA2: 5.239599662 | FB2: 0.3304038902 | FC2: 5.257674008 | FD2: 0.3308517172 | FE2: 5.289755657 | FF2: 0.3308971017 | FG2: 5.430012091 | FH2: 0.3384881626 | FI2: 5.356345845 | FJ2: 0.3327945571 | FK2: 5.66329555 | FL2: 0.3432357978 | FM2: 5.556566491 | FN2: 0.3361944798 | FO2: 5.655510546 | FP2: 0.3445788346 | FQ2: 5.767036741 | FR2: 0.3438987887 | FS2: 6.055485469 | FT2: 0.3490587111 | FU2: 6.82211908 | FV2: 0.3824074144 | FW2: 8.751324968 | FX2: 0.4370785309 | FY2: 10.21621875 | FZ2: 0.4575527814 | GA2: 10.57019018 | GB2: 0.4748204421 | GC2: 10.39952967 | GD2: 0.4626524552 | GE2: 10.89330319 | GF2: 0.475542957 | GG2: 11.04350553 | GH2: 0.4801200996 | GI2: 10.95143705 | GJ2: 0.4687673543 | GK2: 11.34213295 | GL2: 0.480461555 | GM2: 11.57925748 | GN2: 0.4896394256 | GO2: 11.75028333 | GP2: 0.4916343505 | GQ2: 11.66408527 | GR2: 0.4821137422 | GS2: 11.99726222 | GT2: 0.4901405766 | GU2: 12.58760679 | GV2: 0.5148190841 | GW2: 12.1854209 | GX2: 0.496038177 | GY2: 12.58322019 | GZ2: 0.5056082972 | HA2: 13.54802881 | HB2: 0.5198484623 | HC2: 14.78141532 | HD2: 0.5329786218 | HE2: 15.78401924 | HF2: 0.5632129658 | HG2: 15.49173419 | HH2: 0.5435909876 | HI2: 16.44042224 | HJ2: 0.5713429644 | HK2: 16.84045102 | HL2: 0.5727594599 | HM2: 18.24816581 | HN2: 0.5908787203 | HO2: 17.97644881 | HP2: 0.5788921767
A3: Plot Type | B3: 1 | C3: 1.911393212 | D3: 0.1841 | E3: 0.6277458441 | F3: 0.07976010934 | G3: 0.805630792 | H3: 0.09754404798 | I3: 1.800273466 | J3: 0.1790604278 | K3: 2.003425222 | L3: 0.1840738162 | M3: 1.985994387 | N3: 0.186698043 | O3: 2.059277588 | P3: 0.1866818768 | Q3: 2.972077871 | R3: 0.2321295191 | S3: 2.893705044 | T3: 0.2340143189 | U3: 3.140065755 | V3: 0.2492007361 | W3: 3.231230151 | X3: 0.2488060759 | Y3: 3.205612783 | Z3: 0.2523363182 | AA3: 3.310990448 | AB3: 0.2557164457 | AC3: 4.431431162 | AD3: 0.305898868 | AE3: 4.597342093 | AF3: 0.3138402217 | AG3: 4.618683582 | AH3: 0.3127146865 | AI3: 4.910203955 | AJ3: 0.3267475035 | AK3: 4.914989505 | AL3: 0.3263096882 | AM3: 4.569237411 | AN3: 0.3008127226 | AO3: 4.911610519 | AP3: 0.3244358667 | AQ3: 4.867898609 | AR3: 0.3230869465 | AS3: 4.872309129 | AT3: 0.3218231892 | AU3: 4.848344051 | AV3: 0.3208056912 | AW3: 4.927940234 | AX3: 0.3249500211 | AY3: 5.008900783 | AZ3: 0.327841007 | BA3: 4.912391277 | BB3: 0.3230197895 | BC3: 4.744276488 | BD3: 0.3129996158 | BE3: 5.059090104 | BF3: 0.3335228167 | BG3: 4.98312798 | BH3: 0.3251511775 | BI3: 4.694202866 | BJ3: 0.3070467148 | BK3: 5.0185953 | BL3: 0.3297155722 | BM3: 4.935606819 | BN3: 0.3232156089 | BO3: 4.837041116 | BP3: 0.3181843194 | BQ3: 5.143649111 | BR3: 0.3370686766 | BS3: 4.994326521 | BT3: 0.3255308978 | BU3: 4.91682375 | BV3: 0.3213074206 | BW3: 4.802414405 | BX3: 0.3103925296 | BY3: 4.95012891 | BZ3: 0.3228144206 | CA3: 4.898177564 | CB3: 0.3220452292 | CC3: 4.961047735 | CD3: 0.3235072399 | CE3: 4.999658091 | CF3: 0.3258486526 | CG3: 4.964591583 | CH3: 0.3233377362 | CI3: 5.073712399 | CJ3: 0.331544129 | CK3: 4.941234439 | CL3: 0.3219432054 | CM3: 4.927039739 | CN3: 0.321884887 | CO3: 5.137680097 | CP3: 0.3317098356 | CQ3: 5.184286782 | CR3: 0.3376101852 | CS3: 4.944485866 | CT3: 0.3225558367 | CU3: 4.982933131 | CV3: 0.3240830744 | CW3: 5.132357359 | CX3: 0.3336488714 | CY3: 4.928771448 | CZ3: 0.3200943873 | DA3: 4.948751637 | DB3: 0.3210135648 | DC3: 4.896947047 | DD3: 0.3176741586 | DE3: 5.051509784 | DF3: 0.3259301611 | DG3: 4.970144248 | DH3: 0.3233421411 | DI3: 4.883692782 | DJ3: 0.316953055 | DK3: 5.124911844 | DL3: 0.3312690075 | DM3: 4.953800072 | DN3: 0.3184444532 | DO3: 4.875882669 | DP3: 0.3165667765 | DQ3: 4.98775093 | DR3: 0.3244521744 | DS3: 5.029276283 | DT3: 0.3250346319 | DU3: 5.054178305 | DV3: 0.3253041437 | DW3: 4.999508432 | DX3: 0.3214244457 | DY3: 4.967989066 | DZ3: 0.3196869627 | EA3: 4.971325179 | EB3: 0.3221735343 | EC3: 4.895975387 | ED3: 0.3148750605 | EE3: 5.110259119 | EF3: 0.3290879903 | EG3: 4.999696134 | EH3: 0.321810308 | EI3: 5.018894594 | EJ3: 0.3212091712 | EK3: 5.052274638 | EL3: 0.3270975193 | EM3: 5.039714114 | EN3: 0.3235523596 | EO3: 5.077900998 | EP3: 0.3252482826 | EQ3: 5.042675592 | ER3: 0.3241863846 | ES3: 5.015818479 | ET3: 0.3209545036 | EU3: 4.994139502 | EV3: 0.3193182167 | EW3: 5.184590593 | EX3: 0.3327133666 | EY3: 5.298416667 | EZ3: 0.3388291443 | FA3: 5.216486105 | FB3: 0.33194757 | FC3: 5.234036167 | FD3: 0.3324337783 | FE3: 5.26573453 | FF3: 0.3326256562 | FG3: 5.406850726 | FH3: 0.3400935703 | FI3: 5.332578176 | FJ3: 0.3344531601 | FK3: 5.635087982 | FL3: 0.3449899242 | FM3: 5.531308631 | FN3: 0.3379639177 | FO3: 5.634050767 | FP3: 0.3461220117 | FQ3: 5.740679139 | FR3: 0.3455962056 | FS3: 6.027078346 | FT3: 0.3507486882 | FU3: 6.791712471 | FV3: 0.3841979132 | FW3: 8.715683838 | FX3: 0.4386782676 | FY3: 10.1753743 | FZ3: 0.4595208118 | GA3: 10.52994266 | GB3: 0.4762242422 | GC3: 10.3566997 | GD3: 0.4648752873 | GE3: 10.8480294 | GF3: 0.4778847952 | GG3: 11.00209372 | GH3: 0.4824977422 | GI3: 10.90225316 | GJ3: 0.4711710962 | GK3: 11.29042664 | GL3: 0.4826852057 | GM3: 11.53119833 | GN3: 0.4916904772 | GO3: 11.70631885 | GP3: 0.4936296356 | GQ3: 11.61292674 | GR3: 0.4844546785 | GS3: 11.94890179 | GT3: 0.4925074141 | GU3: 12.5376226 | GV3: 0.5170041685 | GW3: 12.13719282 | GX3: 0.4985902488 | GY3: 12.53295212 | GZ3: 0.5079609312 | HA3: 13.48507841 | HB3: 0.5222080425 | HC3: 14.72474613 | HD3: 0.5354362804 | HE3: 15.71037585 | HF3: 0.5659581225 | HG3: 15.42380945 | HH3: 0.546389864 | HI3: 16.37300846 | HJ3: 0.5741827095 | HK3: 16.77009196 | HL3: 0.5755047967 | HM3: 18.20773853 | HN3: 0.5932376225 | HO3: 17.90299658 | HP3: 0.5818273711
A4: 1st free col | B4: 225 | C4: 1.972985587 | D4: 0.1844 | E4: 0.7943365938 | F4: 0.09645985316 | G4: 1.198730174 | H4: 0.1321290782 | I4: 1.778184755 | J4: 0.1798988014 | K4: 1.982743018 | L4: 0.1850291188 | M4: 1.96945979 | N4: 0.1875524777 | O4: 2.040159445 | P4: 0.1876334708 | Q4: 2.94263738 | R4: 0.2332374379 | S4: 2.863768018 | T4: 0.2351032282 | U4: 3.113441713 | V4: 0.2501384103 | W4: 3.198539766 | X4: 0.2500637924 | Y4: 3.181343271 | Z4: 0.2533566296 | AA4: 3.28543303 | AB4: 0.256884941 | AC4: 4.399092175 | AD4: 0.3069539157 | AE4: 4.568099503 | AF4: 0.3148540235 | AG4: 4.58614829 | AH4: 0.3141027851 | AI4: 4.874474605 | AJ4: 0.3279495794 | AK4: 4.881141229 | AL4: 0.3275682637 | AM4: 4.532625115 | AN4: 0.3021083529 | AO4: 4.874508118 | AP4: 0.3254699807 | AQ4: 4.837584568 | AR4: 0.3241433072 | AS4: 4.839257055 | AT4: 0.3230410237 | AU4: 4.816928672 | AV4: 0.3218767617 | AW4: 4.892457364 | AX4: 0.3260569538 | AY4: 4.969377932 | AZ4: 0.3292532446 | BA4: 4.877006171 | BB4: 0.3242232728 | BC4: 4.714458759 | BD4: 0.3142055597 | BE4: 5.024006339 | BF4: 0.3343252031 | BG4: 4.944224976 | BH4: 0.3263143162 | BI4: 4.658316091 | BJ4: 0.3079858241 | BK4: 4.986156514 | BL4: 0.3308049718 | BM4: 4.902236552 | BN4: 0.3244750453 | BO4: 4.806779627 | BP4: 0.3190521167 | BQ4: 5.109522498 | BR4: 0.3381564753 | BS4: 4.959221406 | BT4: 0.3268876215 | BU4: 4.884515924 | BV4: 0.3225963006 | BW4: 4.760037752 | BX4: 0.3117502301 | BY4: 4.915120583 | BZ4: 0.3240797824 | CA4: 4.869121805 | CB4: 0.3228693529 | CC4: 4.925252255 | CD4: 0.3246164617 | CE4: 4.965324433 | CF4: 0.3270921264 | CG4: 4.928648411 | CH4: 0.3244655556 | CI4: 5.039027909 | CJ4: 0.3325002857 | CK4: 4.906114624 | CL4: 0.3230986319 | CM4: 4.895019483 | CN4: 0.3229325165 | CO4: 5.098234841 | CP4: 0.3334162679 | CQ4: 5.147892409 | CR4: 0.3386980373 | CS4: 4.913941123 | CT4: 0.3237602484 | CU4: 4.949118274 | CV4: 0.3250768149 | CW4: 5.098402891 | CX4: 0.3348291888 | CY4: 4.895530237 | CZ4: 0.3212668585 | DA4: 4.914399031 | DB4: 0.3221222437 | DC4: 4.864991968 | DD4: 0.3189636823 | DE4: 5.012242491 | DF4: 0.3272542277 | DG4: 4.937777527 | DH4: 0.3243341942 | DI4: 4.852593486 | DJ4: 0.3181837553 | DK4: 5.088218705 | DL4: 0.3326017581 | DM4: 4.914539351 | DN4: 0.3198371836 | DO4: 4.843405897 | DP4: 0.317479901 | DQ4: 4.956408431 | DR4: 0.3252243086 | DS4: 4.994113839 | DT4: 0.3261392719 | DU4: 5.015872857 | DV4: 0.3265853458 | DW4: 4.962122523 | DX4: 0.3227481374 | DY4: 4.936200207 | DZ4: 0.3212799235 | EA4: 4.941081801 | EB4: 0.3231751562 | EC4: 4.858981362 | ED4: 0.3158025769 | EE4: 5.074280227 | EF4: 0.3301853143 | EG4: 4.967205357 | EH4: 0.3231881522 | EI4: 4.981084568 | EJ4: 0.3226032136 | EK4: 5.020268481 | EL4: 0.3277445541 | EM4: 5.004310456 | EN4: 0.3246767603 | EO4: 5.039478151 | EP4: 0.3264133835 | EQ4: 5.010598978 | ER4: 0.3252839999 | ES4: 4.98003735 | ET4: 0.3219900958 | EU4: 4.960101445 | EV4: 0.3205944298 | EW4: 5.150278204 | EX4: 0.3335595329 | EY4: 5.261094862 | EZ4: 0.3399496843 | FA4: 5.180067448 | FB4: 0.3330094131 | FC4: 5.196789564 | FD4: 0.3335432214 | FE4: 5.227878688 | FF4: 0.3339227578 | FG4: 5.370356623 | FH4: 0.3412134145 | FI4: 5.295124961 | FJ4: 0.3356537777 | FK4: 5.590633672 | FL4: 0.3462749854 | FM4: 5.491502559 | FN4: 0.3392988028 | FO4: 5.600243576 | FP4: 0.3471530171 | FQ4: 5.699143795 | FR4: 0.3468078456 | FS4: 5.982312086 | FT4: 0.3519405352 | FU4: 6.743797429 | FV4: 0.3854295841 | FW4: 8.659526858 | FX4: 0.4395587399 | FY4: 10.11100906 | FZ4: 0.4607904353 | GA4: 10.46652809 | GB4: 0.4768078364 | GC4: 10.28919936 | GD4: 0.4664439077 | GE4: 10.77667512 | GF4: 0.4795716514 | GG4: 10.93682878 | GH4: 0.484219354 | GI4: 10.82473386 | GJ4: 0.4729128644 | GK4: 11.2089346 | GL4: 0.4841890299 | GM4: 11.45546081 | GN4: 0.4929726667 | GO4: 11.63703868 | GP4: 0.4948528862 | GQ4: 11.5322958 | GR4: 0.486110667 | GS4: 11.87268281 | GT4: 0.4941850315 | GU4: 12.45885088 | GV4: 0.5183949775 | GW4: 12.06118086 | GX4: 0.5004625926 | GY4: 12.45372821 | GZ4: 0.5095795024 | HA4: 13.38586104 | HB4: 0.5237811349 | HC4: 14.63543374 | HD4: 0.5370808591 | HE4: 15.59429922 | HF4: 0.5678965312 | HG4: 15.31674417 | HH4: 0.5484685365 | HI4: 16.26675194 | HJ4: 0.576238019 | HK4: 16.65919406 | HL4: 0.577431503 | HM4: 18.14233651 | HN4: 0.5952190191 | HO4: 17.7872192 | HP4: 0.5839826132
A5: Sigma Level | B5: 2 | C5: 2.83922496 | D5: 0.2288 | E5: 0.9779769818 | F5: 0.1134178779 | G5: 1.677410243 | H5: 0.1678039275 | I5: 1.749811554 | J5: 0.1804375202 | K5: 1.956173578 | L5: 0.1857228174 | M5: 1.948220984 | N5: 0.1881272132 | O5: 2.015599275 | P5: 0.1883231082 | Q5: 2.904819031 | R5: 0.2339858618 | S5: 2.825312549 | T5: 0.2358192114 | U5: 3.079246417 | V5: 0.250659801 | W5: 3.156545186 | X5: 0.2509517776 | Y5: 3.150171505 | Z5: 0.2539753844 | AA5: 3.25260351 | AB5: 0.2576738903 | AC5: 4.357558053 | AD5: 0.3074942069 | AE5: 4.530545546 | AF5: 0.3153368574 | AG5: 4.544355992 | AH5: 0.3150207766 | AI5: 4.828584138 | AJ5: 0.3286129459 | AK5: 4.837666767 | AL5: 0.3282947176 | AM5: 4.485595973 | AN5: 0.302933425 | AO5: 4.826855843 | AP5: 0.3259475296 | AQ5: 4.798654315 | AR5: 0.3246533653 | AS5: 4.796805468 | AT5: 0.3237370448 | AU5: 4.776582714 | AV5: 0.3224069208 | AW5: 4.846884941 | AX5: 0.3266164782 | AY5: 4.918610299 | AZ5: 0.3301507802 | BA5: 4.831557457 | BB5: 0.3248982794 | BC5: 4.676161973 | BD5: 0.314908766 | BE5: 4.978951727 | BF5: 0.3345341451 | BG5: 4.894257437 | BH5: 0.3269335009 | BI5: 4.612225744 | BJ5: 0.3083832877 | BK5: 4.944496433 | BL5: 0.3313349717 | BM5: 4.859375397 | BN5: 0.3252180134 | BO5: 4.767919178 | BP5: 0.3193647963 | BQ5: 5.065694334 | BR5: 0.3386726004 | BS5: 4.914129857 | BT5: 0.3277349595 | BU5: 4.843019164 | BV5: 0.3233750916 | BW5: 4.705603215 | BX5: 0.3126177769 | BY5: 4.870154745 | BZ5: 0.3248282922 | CA5: 4.831811876 | CB5: 0.3231288611 | CC5: 4.879277962 | CD5: 0.3251815557 | CE5: 4.921226144 | CF5: 0.3278096467 | CG5: 4.882483966 | CH5: 0.3250533714 | CI5: 4.994484198 | CJ5: 0.3328812194 | CK5: 4.861007556 | CL5: 0.3237194765 | CM5: 4.853896762 | CN5: 0.3234347175 | CO5: 5.047560682 | CP5: 0.334675805 | CQ5: 5.101150458 | CR5: 0.3392108486 | CS5: 4.874711439 | CT5: 0.3244412893 | CU5: 4.90569068 | CV5: 0.3255134368 | CW5: 5.054793977 | CX5: 0.3354562459 | CY5: 4.852836214 | CZ5: 0.3219154234 | DA5: 4.870278286 | DB5: 0.3226944277 | DC5: 4.823947828 | DD5: 0.3197538612 | DE5: 4.961804441 | DF5: 0.3280554112 | DG5: 4.896210596 | DH5: 0.3247725815 | DI5: 4.812650117 | DJ5: 0.318905383 | DK5: 5.041088004 | DL5: 0.3334077749 | DM5: 4.864107536 | DN5: 0.3207408172 | DO5: 4.801697945 | DP5: 0.3178437582 | DQ5: 4.916160906 | DR5: 0.3254192737 | DS5: 4.948953079 | DT5: 0.3266979361 | DU5: 4.966671103 | DV5: 0.3273411439 | DW5: 4.914100844 | DX5: 0.3235656421 | DY5: 4.895362826 | DZ5: 0.3224289334 | EA5: 4.902243046 | EB5: 0.3236278952 | EC5: 4.811468857 | ED5: 0.3161789889 | EE5: 5.028071108 | EF5: 0.3307248311 | EG5: 4.925471578 | EH5: 0.3240727705 | EI5: 4.93251673 | EJ5: 0.32350281 | EK5: 4.979170008 | EL5: 0.3277965768 | EM5: 4.958839306 | EN5: 0.3252602496 | EO5: 4.990127927 | EP5: 0.3270265045 | EQ5: 4.969403126 | ER5: 0.3258401173 | ES5: 4.934082447 | ET5: 0.3224755948 | EU5: 4.916381761 | EV5: 0.3213607056 | EW5: 5.10621424 | EX5: 0.3338175749 | EY5: 5.213161174 | EZ5: 0.3404909994 | FA5: 5.133294114 | FB5: 0.3335033952 | FC5: 5.148951697 | FD5: 0.334090166 | FE5: 5.179254986 | FF5: 0.3346833229 | FG5: 5.323486316 | FH5: 0.3417569722 | FI5: 5.247020437 | FJ5: 0.336299143 | FK5: 5.533534044 | FL5: 0.3469868733 | FM5: 5.440373126 | FN5: 0.3400909907 | FO5: 5.556827829 | FP5: 0.3475883247 | FQ5: 5.645795653 | FR5: 0.3474355487 | FS5: 5.924813386 | FT5: 0.3525376956 | FU5: 6.682255746 | FV5: 0.3860026445 | FW5: 8.587403531 | FX5: 0.4396486171 | FY5: 10.02833752 | FZ5: 0.4612587945 | GA5: 10.38508395 | GB5: 0.4765239454 | GC5: 10.20249713 | GD5: 0.467231236 | GE5: 10.68502105 | GF5: 0.4804668665 | GG5: 10.85299806 | GH5: 0.48514546 | GI5: 10.72515933 | GJ5: 0.4738515513 | GK5: 11.10425883 | GL5: 0.4848511967 | GM5: 11.35818073 | GN5: 0.4933821189 | GO5: 11.5480555 | GP5: 0.495205002 | GQ5: 11.42872468 | GR5: 0.4869475495 | GS5: 11.77478008 | GT5: 0.4950375183 | GU5: 12.35767324 | GV5: 0.5188788361 | GW5: 11.96354305 | GX5: 0.5015035222 | GY5: 12.35196673 | GZ5: 0.5103328838 | HA5: 13.25841471 | HB5: 0.5244402969 | HC5: 14.52071369 | HD5: 0.5377791241 | HE5: 15.44519319 | HF5: 0.5688711538 | HG5: 15.17921215 | HH5: 0.5496586034 | HI5: 16.13026096 | HJ5: 0.577342384 | HK5: 16.51674162 | HL5: 0.5783834885 | HM5: 18.05481814 | HN5: 0.5967363137 | HO5: 17.63849625 | HP5: 0.5851832981
A6: Absolute Errs | B6: FALSE | C6: 2.758620312 | D6: 0.2305 | E6: 1.180411944 | F6: 0.1306381782 | G6: 2.260302557 | H6: 0.2046029373 | I6: 1.717452491 | J6: 0.1806329402 | K6: 1.9258694 | L6: 0.1860987127 | M6: 1.923998611 | N6: 0.1883756878 | O6: 1.987586798 | P6: 0.1886949188 | Q6: 2.86168664 | R6: 0.2343141581 | S6: 2.781454073 | T6: 0.2361042638 | U6: 3.040250164 | V6: 0.2507226683 | W6: 3.108648564 | X6: 0.2513980921 | Y6: 3.114622836 | Z6: 0.2541424546 | AA6: 3.215161542 | AB6: 0.2580193776 | AC6: 4.310193643 | AD6: 0.3074759705 | AE6: 4.487722622 | AF6: 0.315249607 | AG6: 4.496692452 | AH6: 0.3153942907 | AI6: 4.776250327 | AJ6: 0.328683861 | AK6: 4.788088162 | AL6: 0.3284301968 | AM6: 4.431960006 | AN6: 0.3032210965 | AO6: 4.772514196 | AP6: 0.3258298254 | AQ6: 4.754261748 | AR6: 0.3245757988 | AS6: 4.748393545 | AT6: 0.3238548649 | AU6: 4.730574767 | AV6: 0.322353218 | AW6: 4.794914973 | AX6: 0.3265832651 | AY6: 4.860710775 | AZ6: 0.3304609006 | BA6: 4.779727119 | BB6: 0.3249901241 | BC6: 4.632488707 | BD6: 0.3150522652 | BE6: 4.927576324 | BF6: 0.3341327155 | BG6: 4.837273436 | BH6: 0.3269585689 | BI6: 4.559665792 | BJ6: 0.3082069055 | BK6: 4.89699011 | BL6: 0.3312626344 | BM6: 4.810495709 | BN6: 0.3253843225 | BO6: 4.723608013 | BP6: 0.3190970267 | BQ6: 5.015715315 | BR6: 0.3385752384 | BS6: 4.862704923 | BT6: 0.3280042655 | BU6: 4.79569529 | BV6: 0.3235807009 | BW6: 4.643520756 | BX6: 0.3129248865 | BY6: 4.818874261 | BZ6: 0.3249993102 | CA6: 4.789270407 | CB6: 0.3228027299 | CC6: 4.82684942 | CD6: 0.3251567414 | CE6: 4.870935806 | CF6: 0.3279430843 | CG6: 4.829838215 | CH6: 0.3250535621 | CI6: 4.943689935 | CJ6: 0.3326560693 | CK6: 4.809567542 | CL6: 0.3237554421 | CM6: 4.807003094 | CN6: 0.3233508047 | CO6: 4.989762939 | CP6: 0.3353864067 | CQ6: 5.047847682 | CR6: 0.3391070743 | CS6: 4.82997497 | CT6: 0.3245437854 | CU6: 4.856168595 | CV6: 0.3253575675 | CW6: 5.00506355 | CX6: 0.3354792424 | CY6: 4.804148196 | CZ6: 0.321987539 | DA6: 4.8199638 | DB6: 0.322683762 | DC6: 4.777139781 | DD6: 0.3199806796 | DE6: 4.904281823 | DF6: 0.3282688044 | DG6: 4.84881096 | DH6: 0.3246217876 | DI6: 4.767098651 | DJ6: 0.3190594763 | DK6: 4.987337992 | DL6: 0.3336217593 | DM6: 4.806590313 | DN6: 0.3210821472 | DO6: 4.754137745 | DP6: 0.3176288707 | DQ6: 4.870268968 | DR6: 0.3250212748 | DS6: 4.897452658 | DT6: 0.326665365 | DU6: 4.910559079 | DV6: 0.3275103075 | DW6: 4.859333828 | DX6: 0.3238107305 | DY6: 4.848785326 | DZ6: 0.3230409065 | EA6: 4.857955402 | EB6: 0.3234950731 | EC6: 4.757287054 | ED6: 0.315973802 | EE6: 4.97537535 | EF6: 0.3306628322 | EG6: 4.877875821 | EH6: 0.3243924964 | EI6: 4.877125758 | EJ6: 0.3238350803 | EK6: 4.932308774 | EL6: 0.3272493729 | EM6: 4.906984466 | EN6: 0.3252555566 | EO6: 4.933848387 | EP6: 0.3270379743 | EQ6: 4.92242548 | ER6: 0.3258096835 | ES6: 4.881676762 | ET6: 0.3223716684 | EU6: 4.866522356 | EV6: 0.321554965 | EW6: 5.055968503 | EX6: 0.3334665878 | EY6: 5.158498904 | EZ6: 0.3404092355 | FA6: 5.079955402 | FB6: 0.3333894969 | FC6: 5.094398106 | FD6: 0.3340303018 | FE6: 5.123802626 | FF6: 0.3348457351 | FG6: 5.27003696 | FH6: 0.3416802075 | FI6: 5.192161745 | FJ6: 0.3363369723 | FK6: 5.468414971 | FL6: 0.3470679151 | FM6: 5.382062535 | FN6: 0.3402763032 | FO6: 5.507320812 | FP6: 0.3473926685 | FQ6: 5.584956663 | FR6: 0.3474284624 | FS6: 5.859240447 | FT6: 0.3524917912 | FU6: 6.612073163 | FV6: 0.3858706683 | FW6: 8.505156862 | FX6: 0.4389406179 | FY6: 9.934057249 | FZ6: 0.4608879458 | GA6: 10.29220835 | GB6: 0.4753955683 | GC6: 10.10361709 | GD6: 0.4671734876 | GE6: 10.58049246 | GF6: 0.4804979155 | GG6: 10.75739305 | GH6: 0.4852010329 | GI6: 10.61159648 | GJ6: 0.4739111101 | GK6: 10.98487953 | GL6: 0.4846180612 | GM6: 11.24723913 | GN6: 0.4928856622 | GO6: 11.44657819 | GP6: 0.4946574566 | GQ6: 11.31060409 | GR6: 0.4868975265 | GS6: 11.66312511 | GT6: 0.4949958109 | GU6: 12.24228649 | GV6: 0.5184165447 | GW6: 11.85218943 | GX6: 0.5016287076 | GY6: 12.23591178 | GZ6: 0.510160041 | HA6: 13.11306436 | HB6: 0.5241321269 | HC6: 14.38987993 | HD6: 0.5374745062 | HE6: 15.27513744 | HF6: 0.5688030321 | HG6: 15.02235542 | HH6: 0.5498636526 | HI6: 15.9745932 | HJ6: 0.5774063355 | HK6: 16.35427529 | HL6: 0.578283629 | HM6: 17.94900838 | HN6: 0.5977231931 | HO6: 17.46887639 | HP6: 0.5853321533
A7: Symbol Type | B7: 1 | C7: 3.01998564 | D7: 0.245 | E7: 1.403565 | F7: 0.1481248104 | G7: 2.970094905 | H7: 0.2425615314 | I7: 1.683729105 | J7: 0.1804692298 | K7: 1.894285549 | L7: 0.1861263518 | M7: 1.898755024 | N7: 0.1882777716 | O7: 1.958391417 | P7: 0.1887187805 | Q7: 2.816734537 | R7: 0.2341957301 | S7: 2.735745741 | T7: 0.235935292 | U7: 2.9996122 | V7: 0.2503219191 | W7: 3.058730197 | X7: 0.2513665784 | Y7: 3.077577205 | Z7: 0.2538443054 | AA7: 3.176140451 | AB7: 0.2578934135 | AC7: 4.260836127 | AD7: 0.3069006839 | AE7: 4.443099988 | AF7: 0.3145993407 | AG7: 4.447019088 | AH7: 0.3151930676 | AI7: 4.721712946 | AJ7: 0.3281565797 | AK7: 4.736421978 | AL7: 0.3279637256 | AM7: 4.376062481 | AN7: 0.3029480618 | AO7: 4.715885616 | AP7: 0.3251264038 | AQ7: 4.708003289 | AR7: 0.3239168918 | AS7: 4.697943331 | AT7: 0.323384939 | AU7: 4.682632122 | AV7: 0.321720004 | AW7: 4.740757757 | AX7: 0.3259600052 | AY7: 4.800370036 | AZ7: 0.3301584819 | BA7: 4.725714144 | BB7: 0.3244913664 | BC7: 4.586977109 | BD7: 0.3146244318 | BE7: 4.874042261 | BF7: 0.3331534356 | BG7: 4.777889478 | BH7: 0.3263874895 | BI7: 4.504894328 | BJ7: 0.3074709668 | BK7: 4.847486225 | BL7: 0.3305938202 | BM7: 4.759557431 | BN7: 0.324960499 | BO7: 4.677435958 | BP7: 0.318270501 | BQ7: 4.963634444 | BR7: 0.337872277 | BS7: 4.809112747 | BT7: 0.3276737219 | BU7: 4.746378203 | BV7: 0.323196471 | BW7: 4.578819928 | BX7: 0.3126466788 | BY7: 4.765433571 | BZ7: 0.3245789815 | CA7: 4.744943854 | CB7: 0.3219173806 | CC7: 4.772214077 | CD7: 0.3245440291 | CE7: 4.818527642 | CF7: 0.3274816288 | CG7: 4.774976205 | CH7: 0.3244661123 | CI7: 4.890760167 | CJ7: 0.3318430756 | CK7: 4.755961945 | CL7: 0.3232036149 | CM7: 4.758137525 | CN7: 0.3226875763 | CO7: 4.929524043 | CP7: 0.3354905043 | CQ7: 4.992302356 | CR7: 0.3383951214 | CS7: 4.783355998 | CT7: 0.3240594331 | CU7: 4.804564005 | CV7: 0.3246218347 | CW7: 4.953240475 | CX7: 0.334896315 | CY7: 4.753410595 | CZ7: 0.3214773629 | DA7: 4.767531755 | DB7: 0.3220911107 | DC7: 4.728359935 | DD7: 0.319625762 | DE7: 4.844334778 | DF7: 0.3278771195 | DG7: 4.799418655 | DH7: 0.3238940287 | DI7: 4.719629395 | DJ7: 0.3186335514 | DK7: 4.931323174 | DL7: 0.3332263754 | DM7: 4.746647385 | DN7: 0.3208335208 | DO7: 4.704578339 | DP7: 0.3168526472 | DQ7: 4.82245051 | DR7: 0.3240625553 | DS7: 4.843784835 | DT7: 0.3260441972 | DU7: 4.852082646 | DV7: 0.3270791321 | DW7: 4.802258372 | DX7: 0.323463547 | DY7: 4.800241138 | DZ7: 0.3230662645 | EA7: 4.811806788 | EB7: 0.3227874504 | EC7: 4.70082544 | ED7: 0.3152036391 | EE7: 4.920462051 | EF7: 0.3300043404 | EG7: 4.828274011 | EH7: 0.3241214277 | EI7: 4.819399099 | EJ7: 0.3235731061 | EK7: 4.883481198 | EL7: 0.3261472735 | EM7: 4.852946907 | EN7: 0.3246630615 | EO7: 4.875198965 | EP7: 0.3264468637 | EQ7: 4.87347189 | ER7: 0.3251951639 | ES7: 4.827065892 | ET7: 0.3216867361 | EU7: 4.814562545 | EV7: 0.3211614703 | EW7: 5.003611602 | EX7: 0.3325350064 | EY7: 5.101536464 | EZ7: 0.3397110166 | FA7: 5.024372496 | FB7: 0.3326769455 | FC7: 5.037548397 | FD7: 0.3333684789 | FE7: 5.06601403 | FF7: 0.3343968367 | FG7: 5.214338704 | FH7: 0.3409893395 | FI7: 5.134993211 | FJ7: 0.335764201 | FK7: 5.400552012 | FL7: 0.3465115452 | FM7: 5.321294763 | FN7: 0.3398397272 | FO7: 5.455733288 | FP7: 0.3465818996 | FQ7: 5.521555639 | FR7: 0.3467871605 | FS7: 5.790905599 | FT7: 0.3518065408 | FU7: 6.538935455 | FV7: 0.3850443476 | FW7: 8.419449985 | FX7: 0.4374921002 | FY7: 9.835806265 | FZ7: 0.4597079331 | GA7: 10.19542553 | GB7: 0.4735141196 | GC7: 10.00056992 | GD7: 0.466275341 | GE7: 10.47155763 | GF7: 0.479662283 | GG7: 10.65775908 | GH7: 0.4843815702 | GI7: 10.49324552 | GJ7: 0.4730867156 | GK7: 10.86046812 | GL7: 0.4835085108 | GM7: 11.13162386 | GN7: 0.4915235168 | GO7: 11.34082783 | GP7: 0.4932546088 | GQ7: 11.18750347 | GR7: 0.4859646508 | GS7: 11.5467635 | GT7: 0.4940632884 | GU7: 12.12203859 | GV7: 0.5170455557 | GW7: 11.73614121 | GX7: 0.5008280071 | GY7: 12.11496544 | GZ7: 0.5090749766 | HA7: 12.96158541 | HB7: 0.5228815913 | HC7: 14.25353183 | HD7: 0.5361916835 | HE7: 15.09790889 | HF7: 0.5676976848 | HG7: 14.85888157 | HH7: 0.5490670721 | HI7: 15.81235994 | HJ7: 0.5764246924 | HK7: 16.18495712 | HL7: 0.5771400144 | HM7: 17.82953164 | HN7: 0.5981365261 | HO7: 17.2921012 | HP7: 0.5844171196
A8: Inverse Plot | B8: FALSE | C8: 3.083693094 | D8: 0.2455 | E8: 1.649556533 | F8: 0.1658818937 | G8: 3.834414377 | H8: 0.2817162498 | I8: 1.651373464 | J8: 0.1799596519 | K8: 1.86398076 | L8: 0.1858034957 | M8: 1.874535307 | N8: 0.1878413973 | O8: 1.930378369 | P8: 0.1883927604 | Q8: 2.773604475 | R8: 0.2336401721 | S8: 2.69189057 | T8: 0.2353259851 | U8: 2.960624771 | V8: 0.2494900196 | W8: 3.010834176 | X8: 0.2508597893 | Y8: 3.04203583 | Z8: 0.2531050909 | AA8: 3.138701493 | AB8: 0.2573062029 | AC8: 4.213484159 | AD8: 0.3058149533 | AE8: 4.400292704 | AF8: 0.3134387393 | AG8: 4.399360139 | AH8: 0.3144334091 | AI8: 4.669390289 | AJ8: 0.327073819 | AK8: 4.686853901 | AL8: 0.3269330948 | AM8: 4.322431884 | AN8: 0.3021364408 | AO8: 4.661557813 | AP8: 0.3238942517 | AQ8: 4.663626523 | AR8: 0.3227300249 | AS8: 4.649542002 | AT8: 0.3223653378 | AU8: 4.636638806 | AV8: 0.320558578 | AW8: 4.688800789 | AX8: 0.3247971913 | AY8: 4.74247653 | AZ8: 0.3292680241 | BA8: 4.67389434 | BB8: 0.3234424125 | BC8: 4.543314259 | BD8: 0.3136599263 | BE8: 4.822686548 | BF8: 0.331675641 | BG8: 4.720916499 | BH8: 0.3252665281 | BI8: 4.452348611 | BJ8: 0.3062350931 | BK8: 4.799995287 | BL8: 0.3293827125 | BM8: 4.710687277 | BN8: 0.3239808787 | BO8: 4.633143599 | BP8: 0.3169521794 | BQ8: 4.913671005 | BR8: 0.3366206661 | BS8: 4.757695047 | BT8: 0.3267701075 | BU8: 4.699063278 | BV8: 0.3222535301 | BW8: 4.516742407 | BX8: 0.3118056925 | BY8: 4.714162121 | BZ8: 0.3236013586 | CA8: 4.702423291 | CB8: 0.3205445389 | CC8: 4.719798164 | CD8: 0.323393057 | CE8: 4.768247451 | CF8: 0.3264626648 | CG8: 4.72234253 | CH8: 0.3233386138 | CI8: 4.83998295 | CJ8: 0.3305081022 | CK8: 4.704533572 | CL8: 0.3221087007 | CM8: 4.711258854 | CN8: 0.321498763 | CO8: 4.87172419 | CP8: 0.3349796643 | CQ8: 4.939014432 | CR8: 0.3371326682 | CS8: 4.738631315 | CT8: 0.3230274717 | CU8: 4.755057604 | CV8: 0.323365843 | CW8: 4.903523149 | CX8: 0.3337546893 | CY8: 4.704733871 | CZ8: 0.3204262266 | DA8: 4.717229884 | DB8: 0.3209644867 | DC8: 4.681560144 | DD8: 0.3187178618 | DE8: 4.78681986 | DF8: 0.3269120885 | DG8: 4.752035152 | DH8: 0.3226482637 | DI8: 4.674088028 | DJ8: 0.3176621142 | DK8: 4.877581538 | DL8: 0.332253655 | DM8: 4.689134973 | DN8: 0.3200150805 | DO8: 4.657034737 | DP8: 0.3155779729 | DQ8: 4.776579499 | DR8: 0.3226207851 | DS8: 4.792297457 | DT8: 0.324884756 | DU8: 4.795979218 | DV8: 0.3260825489 | DW8: 4.74749839 | DX8: 0.3225522183 | DY8: 4.753663024 | DZ8: 0.322502953 | EA8: 4.767535892 | EB8: 0.3215623544 | EC8: 4.646658198 | ED8: 0.3139308943 | EE8: 4.86777996 | EF8: 0.3288027029 | EG8: 4.780684591 | EH8: 0.3232815246 | EI8: 4.764013425 | EJ8: 0.3227381108 | EK8: 4.836642998 | EL8: 0.3245795642 | EM8: 4.801104431 | EN8: 0.3235307649 | EO8: 4.818931089 | EP8: 0.3253010608 | EQ8: 4.826508283 | ER8: 0.3240463435 | ES8: 4.774674085 | ET8: 0.320476287 | EU8: 4.764711801 | EV8: 0.3202121001 | EW8: 4.953385183 | EX8: 0.3310983018 | EY8: 5.046888613 | EZ8: 0.3384529082 | FA8: 4.971048392 | FB8: 0.3314234676 | FC8: 4.983008197 | FD8: 0.332158314 | FE8: 5.010570885 | FF8: 0.3333729948 | FG8: 5.160903888 | FH8: 0.3397403382 | FI8: 5.08014629 | FJ8: 0.3346272315 | FK8: 5.33544302 | FL8: 0.3453628373 | FM8: 5.262992853 | FN8: 0.3388166316 | FO8: 5.406244573 | FP8: 0.3452217014 | FQ8: 5.460728954 | FR8: 0.3455635977 | FS8: 5.725344926 | FT8: 0.3505374593 | FU8: 6.468767805 | FV8: 0.3835906259 | FW8: 8.337226363 | FX8: 0.4354204143 | FY8: 9.741544281 | FZ8: 0.4578143541 | GA8: 10.10257625 | GB8: 0.471032023 | GC8: 9.901703903 | GD8: 0.4646095586 | GE8: 10.36704181 | GF8: 0.478027667 | GG8: 10.56216791 | GH8: 0.4827534601 | GI8: 10.37969452 | GJ8: 0.4714451554 | GK8: 10.74110365 | GL8: 0.4816124346 | GM8: 11.02070137 | GN8: 0.4894060355 | GO8: 11.2393717 | GP8: 0.491110109 | GQ8: 11.0693957 | GR8: 0.4842244983 | GS8: 11.4351222 | GT8: 0.4923154981 | GU8: 12.0066713 | GV8: 0.5148769382 | GW8: 11.62479991 | GX8: 0.4991662886 | GY8: 11.99892607 | GZ8: 0.5071655962 | HA8: 12.81624978 | HB8: 0.5207900008 | HC8: 14.1227155 | HD8: 0.5340345828 | HE8: 14.92786552 | HF8: 0.5656446607 | HG8: 14.70203428 | HH8: 0.5473333963 | HI8: 15.65670435 | HJ8: 0.5744769817 | HK8: 16.02250426 | HL8: 0.5750452938 | HM8: 17.70160961 | HN8: 0.5979582478 | HO8: 17.12249197 | HP8: 0.5825123275
A9: Color Plot | B9: FALSE | C9: 3.096145037 | D9: 0.2484 | E9: 1.920723934 | F9: 0.1839136109 | G9: 4.886902688 | H9: 0.322104784 | I9: 1.62300683 | J9: 0.1791454892 | K9: 1.837410146 | L9: 0.1851563001 | M9: 1.853301599 | N9: 0.1871019171 | O9: 1.905817105 | P9: 0.1877432705 | Q9: 2.735790594 | R9: 0.2326924922 | S9: 2.653441447 | T9: 0.2343257057 | U9: 2.926446407 | V9: 0.2482943654 | W9: 2.968840751 | X9: 0.249918782 | Y9: 3.010878061 | Z9: 0.2519846979 | AA9: 3.105877751 | AB9: 0.2563053181 | AC9: 4.171973913 | AD9: 0.3043067383 | AE9: 4.362768764 | AF9: 0.3118618278 | AG9: 4.35757665 | AH9: 0.3131768583 | AI9: 4.623521227 | AJ9: 0.3255232979 | AK9: 4.643399643 | AL9: 0.3254218 | AM9: 4.275413046 | AN9: 0.300851986 | AO9: 4.613932103 | AP9: 0.3222331908 | AQ9: 4.624726592 | AR9: 0.3211113512 | AS9: 4.607110746 | AT9: 0.3208786631 | AU9: 4.596320924 | AV9: 0.318963032 | AW9: 4.643253313 | AX9: 0.3231890276 | AY9: 4.691720443 | AZ9: 0.3278616669 | BA9: 4.628465841 | BB9: 0.3219282426 | BC9: 4.50503746 | BD9: 0.3122368873 | BE9: 4.77766972 | BF9: 0.3298190538 | BG9: 4.670970109 | BH9: 0.3236864982 | BI9: 4.406285583 | BJ9: 0.3045994076 | BK9: 4.75836473 | BL9: 0.3277274281 | BM9: 4.667844419 | BN9: 0.3225248246 | BO9: 4.594319238 | BP9: 0.3152488646 | BQ9: 4.869872737 | BR9: 0.3349218036 | BS9: 4.712617381 | BT9: 0.3253666277 | BU9: 4.657583689 | BV9: 0.3208282696 | BW9: 4.462317343 | BX9: 0.3104700593 | BY9: 4.669213621 | BZ9: 0.3221456427 | CA9: 4.665153482 | CB9: 0.3187954243 | CC9: 4.673848107 | CD9: 0.3217970702 | CE9: 4.724168634 | CF9: 0.3249687425 | CG9: 4.676201256 | CH9: 0.3217624097 | CI9: 4.795471952 | CJ9: 0.3287593008 | CK9: 4.659448844 | CL9: 0.3205594029 | CM9: 4.670164911 | CN9: 0.3198806755 | CO9: 4.821045981 | CP9: 0.333895272 | CQ9: 4.89230098 | CR9: 0.3354219911 | CS9: 4.699424249 | CT9: 0.3215315046 | CU9: 4.711660109 | CV9: 0.3216913454 | CW9: 4.859939374 | CX9: 0.3321468529 | CY9: 4.662061522 | CZ9: 0.3189192869 | DA9: 4.673133344 | DB9: 0.3193951625 | DC9: 4.640531848 | DD9: 0.3173305316 | DE9: 4.736396585 | DF9: 0.3254518924 | DG9: 4.710499181 | DH9: 0.320985417 | DI9: 4.634164039 | DJ9: 0.3162238648 | DK9: 4.830466912 | DL9: 0.3307824021 | DM9: 4.638712389 | DN9: 0.3186931313 | DO9: 4.615358639 | DP9: 0.3139081142 | DQ9: 4.736372132 | DR9: 0.3208127677 | DS9: 4.747161725 | DT9: 0.3232809726 | DU9: 4.746793959 | DV9: 0.3246012951 | DW9: 4.69949021 | DX9: 0.321150575 | DY9: 4.712824466 | DZ9: 0.321396608 | EA9: 4.728729278 | EB9: 0.3199190352 | EC9: 4.599173638 | ED9: 0.3122586777 | EE9: 4.821597066 | EF9: 0.3271552691 | EG9: 4.738962974 | EH9: 0.3219408311 | EI9: 4.715455752 | EJ9: 0.321397741 | EK9: 4.795588728 | EL9: 0.3226732515 | EM9: 4.755657006 | EN9: 0.3219503985 | EO9: 4.769603248 | EP9: 0.323693392 | EQ9: 4.785339373 | ER9: 0.3224562926 | ES9: 4.728745814 | ET9: 0.3188383845 | EU9: 4.721008736 | EV9: 0.3187837667 | EW9: 4.90935829 | EX9: 0.3292728673 | EY9: 4.998982595 | EZ9: 0.3367368347 | FA9: 4.924303093 | FB9: 0.3297306127 | FC9: 4.935196028 | FD9: 0.3304978475 | FE9: 4.961964866 | FF9: 0.331857155 | FG9: 5.114061483 | FH9: 0.3380343903 | FI9: 5.032064352 | FJ9: 0.3330181744 | FK9: 5.27836274 | FL9: 0.3437148531 | FM9: 5.21188008 | FN9: 0.3372899014 | FO9: 5.362863948 | FP9: 0.3434222693 | FQ9: 5.407404425 | FR9: 0.3438568996 | FS9: 5.667869763 | FT9: 0.3487873601 | FU9: 6.407254779 | FV9: 0.381627275 | FW9: 8.265147265 | FX9: 0.4328933959 | FY9: 9.658907842 | FZ9: 0.4553606152 | GA9: 10.02118261 | GB9: 0.4681503632 | GC9: 9.815028561 | GD9: 0.4623110922 | GE9: 10.27541226 | GF9: 0.4757264943 | GG9: 10.47836377 | GH9: 0.4804486024 | GI9: 10.28014273 | GJ9: 0.469119419 | GK9: 10.63645634 | GL9: 0.4790834413 | GM9: 10.92345794 | GN9: 0.486704764 | GO9: 11.15042917 | GP9: 0.488397692 | GQ9: 10.96584915 | GR9: 0.4818180459 | GS9: 11.33724571 | GT9: 0.4898940356 | GU9: 11.90553099 | GV9: 0.5120863809 | GW9: 11.52718576 | GX9: 0.4967781748 | GY9: 11.89719449 | GZ9: 0.5045865863 | HA9: 12.6888317 | HB9: 0.5180268038 | HC9: 14.0080289 | HD9: 0.5311779596 | HE9: 14.77878324 | HF9: 0.5628102835 | HG9: 14.56452039 | HH9: 0.5448030772 | HI9: 15.52023673 | HJ9: 0.5717209952 | HK9: 15.88007768 | HL9: 0.5721691687 | HM9: 17.57083311 | HN9: 0.5971961501 | HO9: 16.97378942 | HP9: 0.579772092
A10: 3D plot | B10: FALSE | C10: 3.195669578 | D10: 0.2522 | E10: 2.219643812 | F10: 0.2022242096 | G10: 6.168525608 | H10: 0.363766013 | I10: 1.6009273 | J10: 0.1780927006 | K10: 1.816726302 | L10: 0.1842371971 | M10: 1.836774128 | N10: 0.1861192395 | O10: 1.886697431 | P10: 0.1868229288 | Q10: 2.70635635 | R10: 0.2314294657 | S10: 2.623513289 | T10: 0.2330154903 | U10: 2.899846035 | V10: 0.2468318214 | W10: 2.93615198 | X10: 0.2486197912 | Y10: 2.986628115 | Z10: 0.250573894 | AA10: 3.080328409 | AB10: 0.2549718449 | AC10: 4.139668302 | AD10: 0.3024982253 | AE10: 4.333568132 | AF10: 0.3099963582 | AG10: 4.325053671 | AH10: 0.3115252134 | AI10: 4.587821798 | AJ10: 0.3236306302 | AK10: 4.609579608 | AL10: 0.3235522772 | AM10: 4.238815154 | AN10: 0.2991987564 | AO10: 4.576866837 | AP10: 0.3202777904 | AQ10: 4.594454937 | AR10: 0.3191920058 | AS10: 4.574087092 | AT10: 0.3190453566 | AU10: 4.564944791 | AV10: 0.3170626274 | AW10: 4.607805315 | AX10: 0.321265798 | AY10: 4.652213733 | AZ10: 0.3260533449 | BA10: 4.593108993 | BB10: 0.3200715255 | BC10: 4.475247672 | BD10: 0.3104706008 | BE10: 4.742638772 | BF10: 0.3277340836 | BG10: 4.632096669 | BH10: 0.3217754046 | BI10: 4.370436996 | BJ10: 0.3026964236 | BK10: 4.725967214 | BL10: 0.3257620682 | BM10: 4.634499728 | BN10: 0.3207102976 | BO10: 4.564108196 | BP10: 0.3132985488 | BQ10: 4.835787916 | BR10: 0.3329133213 | BS10: 4.677531672 | BT10: 0.323576984 | BU10: 4.625299867 | BV10: 0.3190361556 | BW10: 4.419953933 | BX10: 0.3087479843 | BY10: 4.634229529 | BZ10: 0.3203297673 | CA10: 4.636153803 | CB10: 0.3168117396 | CC10: 4.638086506 | CD10: 0.3198853659 | CE10: 4.689862196 | CF10: 0.3231208906 | CG10: 4.640290476 | CH10: 0.3198651948 | CI10: 4.760833189 | CJ10: 0.3267383487 | CK10: 4.624360258 | CL10: 0.3186812364 | CM10: 4.638184882 | CN10: 0.3179644015 | CO10: 4.781595062 | CP10: 0.3323251784 | CQ10: 4.855946447 | CR10: 0.3334016791 | CS10: 4.668911124 | CT10: 0.3196927262 | CU10: 4.677887326 | CV10: 0.3197339998 | CW10: 4.826020048 | CX10: 0.3302030631 | CY10: 4.628850608 | CZ10: 0.317078627 | DA10: 4.638814575 | DB10: 0.3175102754 | DC10: 4.608598916 | DD10: 0.3155761647 | DE10: 4.697149946 | DF10: 0.3236148276 | DG10: 4.678175739 | DH10: 0.3190402025 | DI10: 4.603091833 | DJ10: 0.3144353215 | DK10: 4.793796242 | DL10: 0.3289318088 | DM10: 4.599464571 | DN10: 0.3169747697 | DO10: 4.582926393 | DP10: 0.3119783532 | DQ10: 4.705085769 | DR10: 0.3187849781 | DS10: 4.712034269 | DT10: 0.3213627758 | DU10: 4.708511568 | DV10: 0.3227553733 | DW10: 4.66212317 | DX10: 0.3193721696 | DY10: 4.68103396 | DZ10: 0.3198368592 | EA10: 4.698530827 | EB10: 0.3179906247 | EC10: 4.562218675 | ED10: 0.3103224624 | EE10: 4.785654832 | EF10: 0.3251955043 | EG10: 4.706489196 | EH10: 0.3202079623 | EI10: 4.677659935 | EJ10: 0.3196605853 | EK10: 4.76364436 | EL10: 0.3205827734 | EM10: 4.720286514 | EN10: 0.3200499944 | EO10: 4.731211689 | EP10: 0.3217541009 | EQ10: 4.753300419 | ER10: 0.3205538279 | ES10: 4.693001913 | ET10: 0.3169057218 | EU10: 4.686993912 | EV10: 0.3169921852 | EW10: 4.875097722 | EX10: 0.3272065888 | EY10: 4.96169947 | EZ10: 0.3347018224 | FA10: 4.887923625 | FB10: 0.3277355257 | FC10: 4.897985347 | FD10: 0.3285216007 | FE10: 4.924133743 | FF10: 0.3299721216 | FG10: 5.077606384 | FH10: 0.3360097014 | FI10: 4.994642711 | FJ10: 0.3310673858 | FK10: 5.233935475 | FL10: 0.3417011023 | FM10: 5.172097296 | FN10: 0.3353832233 | FO10: 5.329105853 | FP10: 0.3413293824 | FQ10: 5.365902088 | FR10: 0.3418053329 | FS10: 5.623136407 | FT10: 0.346698026 | FU10: 6.359379796 | FV10: 0.3793133541 | FW10: 8.209052109 | FX10: 0.4301157689 | FY10: 9.59459166 | FZ10: 0.4525455038 | GA10: 9.957838634 | GB10: 0.4651025952 | GC10: 9.747565818 | GD10: 0.4595661498 | GE10: 10.20409225 | GF10: 0.4729451923 | GG10: 10.41313597 | GH10: 0.4776537228 | GI10: 10.20265522 | GJ10: 0.4662979236 | GK10: 10.55500408 | GL10: 0.4761264151 | GM10: 10.84777165 | GN10: 0.4836385434 | GO10: 11.08120583 | GP10: 0.4853371014 | GQ10: 10.88525257 | GR10: 0.47894025 | GS10: 11.2610634 | GT10: 0.4869950733 | GU10: 11.82681146 | GV10: 0.5088999581 | GW10: 11.45120688 | GX10: 0.4938571364 | GY10: 11.81801238 | GZ10: 0.501546883 | HA10: 12.58965383 | HB10: 0.5148158581 | HC10: 13.91876326 | HD10: 0.5278532404 | HE10: 14.66273982 | HF10: 0.5594241776 | HG10: 14.45748046 | HH10: 0.5416811062 | HI10: 15.41401286 | HJ10: 0.5683800067 | HK10: 15.76921593 | HL10: 0.5687446459 | HM10: 17.44291769 | HN10: 0.5958835401 | HO10: 16.85804055 | HP10: 0.5764184106
A11: Linear | B11: FALSE | C11: 4.285591675 | D11: 0.3006 | E11: 2.54915648 | F11: 0.2208180029 | G11: 7.729167461 | H11: 0.4067400412 | I11: 1.586923624 | J11: 0.1768865766 | K11: 1.803604909 | L11: 0.1831206468 | M11: 1.826291851 | N11: 0.1849729752 | O11: 1.874568311 | P11: 0.1857062958 | Q11: 2.687686331 | R11: 0.2299534155 | S11: 2.604530699 | T11: 0.2315014849 | U11: 2.882978659 | V11: 0.245220874 | W11: 2.915416113 | X11: 0.2470680535 | Y11: 2.971250579 | Z11: 0.2489869742 | AA11: 3.064123323 | AB11: 0.2534138132 | AC11: 4.119184536 | AD11: 0.3005359294 | AE11: 4.315056471 | AF11: 0.3079934597 | AG11: 4.30442602 | AH11: 0.309612281 | AI11: 4.565184158 | AJ11: 0.3215491488 | AK11: 4.588133696 | AL11: 0.3214759841 | AM11: 4.215603151 | AN11: 0.2973106868 | AO11: 4.553364823 | AP11: 0.3181864655 | AQ11: 4.575263987 | AR11: 0.3171274828 | AS11: 4.553146419 | AT11: 0.3170139419 | AU11: 4.545052315 | AV11: 0.3150113239 | AW11: 4.585328581 | AX11: 0.3191833112 | AY11: 4.627156998 | AZ11: 0.3239895577 | BA11: 4.570688198 | BB11: 0.3180226816 | BC11: 4.456358286 | BD11: 0.308504161 | BE11: 4.720431705 | BF11: 0.3255896424 | BG11: 4.607445473 | BH11: 0.3196880726 | BI11: 4.347707089 | BJ11: 0.3006803097 | BK11: 4.705427394 | BL11: 0.3236458546 | BM11: 4.613354595 | BN11: 0.3186842997 | BO11: 4.544957991 | BP11: 0.3112592351 | BQ11: 4.814177892 | BR11: 0.3307579345 | BS11: 4.655280356 | BT11: 0.3215461628 | BU11: 4.604827254 | BV11: 0.3170223746 | BW11: 4.393084207 | BX11: 0.3067789797 | BY11: 4.612044048 | BZ11: 0.3183008438 | CA11: 4.617773638 | CB11: 0.3147541912 | CC11: 4.615410552 | CD11: 0.317812819 | CE11: 4.668107438 | CF11: 0.3210688112 | CG11: 4.617519466 | CH11: 0.31780067 | CI11: 4.738872889 | CJ11: 0.3246089717 | CK11: 4.602110482 | CL11: 0.3166263592 | CM11: 4.617909601 | CN11: 0.3159051862 | CO11: 4.756567513 | CP11: 0.3303965832 | CQ11: 4.83289606 | CR11: 0.3312354057 | CS11: 4.649563931 | CT11: 0.3176601033 | CU11: 4.656475325 | CV11: 0.3176523786 | CW11: 4.804513112 | CX11: 0.3280807942 | CY11: 4.607791681 | CZ11: 0.3150533663 | DA11: 4.61705388 | DB11: 0.3154625278 | DC11: 4.588348364 | DD11: 0.3135968894 | DE11: 4.672259474 | DF11: 0.3215497223 | DG11: 4.657683479 | DH11: 0.31697021 | DI11: 4.583388695 | DJ11: 0.3124413816 | DK11: 4.770540368 | DL11: 0.3268517992 | DM11: 4.574571145 | DN11: 0.3149992071 | DO11: 4.562365469 | DP11: 0.3099450276 | DQ11: 4.685255047 | DR11: 0.3167016956 | DS11: 4.689760905 | DT11: 0.3192855666 | DU11: 4.684233457 | DV11: 0.3206943288 | DW11: 4.638424524 | DX11: 0.3173610782 | DY11: 4.660866984 | DZ11: 0.317950068 | EA11: 4.679387038 | EB11: 0.3159333512 | EC11: 4.538787181 | ED11: 0.3082791091 | EE11: 4.762865085 | EF11: 0.323082177 | EG11: 4.68589409 | EH11: 0.3182233049 | EI11: 4.653687966 | EJ11: 0.3176673777 | EK11: 4.743397837 | EL11: 0.3184774882 | EM11: 4.69785846 | EN11: 0.3179835119 | EO11: 4.706866668 | EP11: 0.3196402973 | EQ11: 4.732987026 | ER11: 0.3184930756 | ES11: 4.670338142 | ET11: 0.3148348716 | EU11: 4.665423008 | EV11: 0.3149824988 | EW11: 4.853379066 | EX11: 0.3250668639 | EY11: 4.938059695 | EZ11: 0.3325127357 | FA11: 4.864857235 | FB11: 0.3255998367 | FC11: 4.874390743 | FD11: 0.3263896772 | FE11: 4.900142368 | FF11: 0.3278706088 | FG11: 5.054491965 | FH11: 0.3338302999 | FI11: 4.970913045 | FJ11: 0.3289329072 | FK11: 5.205760459 | FL11: 0.3394847271 | FM11: 5.146867467 | FN11: 0.3332510651 | FO11: 5.307705168 | FP11: 0.3391125941 | FQ11: 5.339584214 | FR11: 0.3395751032 | FS11: 5.594768886 | FT11: 0.3444387223 | FU11: 6.329021402 | FV11: 0.3768363233 | FW11: 8.173485393 | FX11: 0.4273125602 | FY11: 9.55380625 | FZ11: 0.4495970835 | GA11: 9.91767608 | GB11: 0.462135631 | GC11: 9.704781105 | GD11: 0.4565971105 | GE11: 10.15885972 | GF11: 0.4699090856 | GG11: 10.37176887 | GH11: 0.474595246 | GI11: 10.15350958 | GJ11: 0.46320925 | GK11: 10.50334566 | GL11: 0.4729809166 | GM11: 10.79977416 | GN11: 0.4804557805 | GO11: 11.03730975 | GP11: 0.4821762883 | GQ11: 10.8341354 | GR11: 0.4758242526 | GS11: 11.21274712 | GT11: 0.4838534681 | GU11: 11.77689008 | GV11: 0.5055758147 | GW11: 11.4030186 | GX11: 0.4906398186 | GY11: 11.7677946 | GZ11: 0.4982927449 | HA11: 12.52675097 | HB11: 0.5114172952 | HC11: 13.86215035 | HD11: 0.5243297743 | HE11: 14.58913641 | HF11: 0.5557606653 | HG11: 14.38958622 | HH11: 0.5382204068 | HI11: 15.34663838 | HJ11: 0.564724683 | HK11: 15.69890037 | HL11: 0.5650491598 | HM11: 17.32345388 | HN11: 0.5940777853 | HO11: 16.78462264 | HP11: 0.5727229787
A12: Data Range | B12: Q14:U121 | C12: 4.46550784 | D12: 0.3083 | E12: 2.91239294 | F12: 0.2396993708 | G12: 9.629572764 | H12: 0.4510682365 | I12: 1.582130298 | J12: 0.1756248302 | K12: 1.799108984 | L12: 0.1818971056 | M12: 1.822703981 | N12: 0.1837559875 | O12: 1.870412374 | P12: 0.1844838344 | Q12: 2.68129307 | R12: 0.2283839225 | S12: 2.598031533 | T12: 0.2299063451 | U12: 2.877210775 | V12: 0.2435920328 | W12: 2.908313045 | X12: 0.2453892815 | Y12: 2.965991249 | Z12: 0.2473525012 | AA12: 3.058575331 | AB12: 0.2517574457 | AC12: 4.112182086 | AD12: 0.2985788241 | AE12: 4.308733485 | AF12: 0.3060153953 | AG12: 4.297364827 | AH12: 0.3075930353 | AI12: 4.557442273 | AJ12: 0.3194474828 | AK12: 4.580799326 | AL12: 0.3193611296 | AM12: 4.207657536 | AN12: 0.2953407373 | AO12: 4.545330053 | AP12: 0.3161286426 | AQ12: 4.568708478 | AR12: 0.3150850375 | AS12: 4.545985217 | AT12: 0.314948992 | AU12: 4.538255066 | AV12: 0.3129753058 | AW12: 4.577644042 | AX12: 0.3171102778 | AY12: 4.618580186 | AZ12: 0.321837501 | BA12: 4.563019855 | BB12: 0.3159476959 | BC12: 4.449899608 | BD12: 0.306496877 | BE12: 4.712847601 | BF12: 0.3235594599 | BG12: 4.599013615 | BH12: 0.3175936054 | BI12: 4.339937305 | BJ12: 0.2987143994 | BK12: 4.698409283 | BL12: 0.3215502304 | BM12: 4.606122071 | BN12: 0.3166109653 | BO12: 4.538420058 | BP12: 0.3092961367 | BQ12: 4.806793379 | BR12: 0.3286302598 | BS12: 4.647666102 | BT12: 0.319438689 | BU12: 4.59782442 | BV12: 0.314950071 | BW12: 4.383884991 | BX12: 0.3047225626 | BY12: 4.604454516 | BZ12: 0.3162232435 | CA12: 4.611502037 | CB12: 0.3127894695 | CC12: 4.607657318 | CD12: 0.315747335 | CE12: 4.660666804 | CF12: 0.3189787515 | CG12: 4.609733 | CH12: 0.315736091 | CI12: 4.731370143 | CJ12: 0.322543679 | CK12: 4.59450206 | CL12: 0.314561245 | CM12: 4.610981649 | CN12: 0.3138698549 | CO12: 4.747990916 | CP12: 0.3282657297 | CQ12: 4.825017224 | CR12: 0.3290986696 | CS12: 4.642950064 | CT12: 0.315598307 | CU12: 4.649158778 | CV12: 0.3156151225 | CW12: 4.797160933 | CX12: 0.3259519799 | CY12: 4.600590808 | CZ12: 0.3130075794 | DA12: 4.609614181 | DB12: 0.3134178158 | DC12: 4.581420771 | DD12: 0.3115530549 | DE12: 4.663741646 | DF12: 0.3194238789 | DG12: 4.650682563 | DH12: 0.3149431379 | DI12: 4.576650856 | DJ12: 0.3104035822 | DK12: 4.762583343 | DL12: 0.3247108833 | DM12: 4.566048827 | DN12: 0.3129264919 | DO12: 4.555341589 | DP12: 0.3079728654 | DQ12: 4.678486533 | DR12: 0.3147316954 | DS12: 4.682146089 | DT12: 0.317217628 | DU12: 4.675926492 | DV12: 0.3185851354 | DW12: 4.630314197 | DX12: 0.3152802274 | DY12: 4.653957347 | DZ12: 0.3158890911 | EA12: 4.672848827 | EB12: 0.3139138829 | EC12: 4.530777436 | ED12: 0.3062941581 | EE12: 4.755074115 | EF12: 0.3209864965 | EG12: 4.678846148 | EH12: 0.316147644 | EI12: 4.645481912 | EJ12: 0.3155795962 | EK12: 4.736489411 | EL12: 0.3165279534 | EM12: 4.690189832 | EN12: 0.3159183652 | EO12: 4.698540474 | EP12: 0.3175232291 | EQ12: 4.726044866 | ER12: 0.3164409857 | ES12: 4.662590584 | ET12: 0.3127936018 | EU12: 4.65804357 | EV12: 0.3129175205 | EW12: 4.845961837 | EX12: 0.3230270403 | EY12: 4.929978424 | EZ12: 0.3303469215 | FA12: 4.856972626 | FB12: 0.3234965666 | FC12: 4.86632371 | FD12: 0.3242747927 | FE12: 4.891934381 | FF12: 0.3257228686 | FG12: 5.046590819 | FH12: 0.3316727479 | FI12: 4.962797791 | FJ12: 0.3267876612 | FK12: 5.196120264 | FL12: 0.3372452849 | FM12: 5.138234562 | FN12: 0.3310661614 | FO12: 5.300395649 | FP12: 0.3369514953 | FQ12: 5.330582923 | FR12: 0.3373468905 | FS12: 5.585065371 | FT12: 0.3421924842 | FU12: 6.318639053 | FV12: 0.3743968567 | FW12: 8.161328519 | FX12: 0.4247108691 | FY12: 9.539855804 | FZ12: 0.4467542177 | GA12: 9.903948677 | GB12: 0.4594898364 | GC12: 9.690140585 | GD12: 0.4536445081 | GE12: 10.14337912 | GF12: 0.4668641414 | GG12: 10.35761381 | GH12: 0.4715209515 | GI12: 10.1366873 | GJ12: 0.4601036243 | GK12: 10.48566612 | GL12: 0.4699017753 | GM12: 10.78335394 | GN12: 0.4774143239 | GO12: 11.02229712 | GP12: 0.4791713229 | GQ12: 10.81663885 | GR12: 0.4727224931 | GS12: 11.19621115 | GT12: 0.480723734 | GU12: 11.75981119 | GV12: 0.5023832533 | GW12: 11.38652488 | GX12: 0.4873868692 | GY12: 11.75060951 | GZ12: 0.4950878031 | HA12: 12.50521913 | HB12: 0.5081064467 | HC12: 13.84277661 | HD12: 0.5208930115 | HE12: 14.5639359 | HF12: 0.5521165424 | HG12: 14.36633806 | HH12: 0.5347013444 | HI12: 15.32357156 | HJ12: 0.5610511569 | HK12: 15.67482755 | HL12: 0.5613820966 | HM12: 17.21766281 | HN12: 0.5918578058 | HO12: 16.75948358 | HP12: 0.5689851781
A13: Filled Symbols | B13: FALSE | C13: 4.471884101 | D13: 0.3083 | E13: 3.312804636 | F13: 0.2588727611 | G13: 11.94371057 | H13: 0.4967932704 | I13: 1.586935648 | J13: 0.1744096807 | K13: 1.803602761 | L13: 0.1806656975 | M13: 1.826301184 | N13: 0.1825668697 | O13: 1.874566307 | P13: 0.1832545813 | Q13: 2.687694512 | R13: 0.2268481376 | S13: 2.604542315 | T13: 0.2283592997 | U13: 2.88300966 | V13: 0.2420772567 | W13: 2.915418227 | X13: 0.2437194792 | Y13: 2.971276205 | Z13: 0.2458028903 | AA13: 3.064133901 | AB13: 0.2501369312 | AC13: 4.119228249 | AD13: 0.2967854625 | AE13: 4.315111424 | AF13: 0.304222416 | AG13: 4.304442147 | AH13: 0.3056310637 | AI13: 4.565223345 | AJ13: 0.3174958968 | AK13: 4.588170686 | AL13: 0.3173790467 | AM13: 4.215622016 | AN13: 0.2934485016 | AO13: 4.553413459 | AP13: 0.3142710344 | AQ13: 4.575319501 | AR13: 0.3132301367 | AS13: 4.553183642 | AT13: 0.313017797 | AU13: 4.545103717 | AV13: 0.3111195192 | AW13: 4.585374254 | AX13: 0.3152146427 | AY13: 4.627178138 | AZ13: 0.3197715217 | BA13: 4.570725208 | BB13: 0.3140146715 | BC13: 4.45639488 | BD13: 0.3046113672 | BE13: 4.720500881 | BF13: 0.3218080095 | BG13: 4.607484194 | BH13: 0.3156616845 | BI13: 4.347757105 | BJ13: 0.2969579591 | BK13: 4.705481447 | BL13: 0.3196449705 | BM13: 4.613388093 | BN13: 0.3146582637 | BO13: 4.545024062 | BP13: 0.3075682919 | BQ13: 4.814232628 | BR13: 0.3267026688 | BS13: 4.655305772 | BT13: 0.3174252979 | BU13: 4.604858693 | BV13: 0.3129871307 | BW13: 4.393101551 | BX13: 0.3027453317 | BY13: 4.61207579 | BZ13: 0.3142652812 | CA13: 4.617847089 | CB13: 0.3110767444 | CC13: 4.615454924 | CD13: 0.3138562472 | CE13: 4.668143088 | CF13: 0.3170200357 | CG13: 4.61756189 | CH13: 0.3138387176 | CI13: 4.73893278 | CJ13: 0.3207097885 | CK13: 4.602151382 | CL13: 0.3126531973 | CM13: 4.617962288 | CN13: 0.3120232982 | CO13: 4.756560097 | CP13: 0.3261052469 | CQ13: 4.832948237 | CR13: 0.3271645764 | CS13: 4.649605341 | CT13: 0.3136743718 | CU13: 4.65653043 | CV13: 0.3137872778 | CW13: 4.804559138 | CX13: 0.323989084 | CY13: 4.607831362 | CZ13: 0.3111070038 | DA13: 4.617098197 | DB13: 0.3115417902 | DC13: 4.58837737 | DD13: 0.3096102405 | DE13: 4.672286525 | DF13: 0.3174095206 | DG13: 4.657740162 | DH13: 0.3131232075 | DI13: 4.583424176 | DJ13: 0.3084870137 | DK13: 4.770569798 | DL13: 0.3226825053 | DM13: 4.574588045 | DN13: 0.3109245431 | DO13: 4.562423786 | DP13: 0.3062216394 | DQ13: 4.68532857 | DR13: 0.3130345752 | DS13: 4.689806729 | DT13: 0.3153264924 | DU13: 4.684263656 | DV13: 0.3165986673 | DW13: 4.638449238 | DX13: 0.3132981952 | DY13: 4.660864827 | DZ13: 0.3138208966 | EA13: 4.679445881 | EB13: 0.3120958249 | EC13: 4.538838342 | ED13: 0.3045284183 | EE13: 4.762913098 | EF13: 0.3190782423 | EG13: 4.685916354 | EH13: 0.3141491373 | EI13: 4.653706577 | EJ13: 0.3135663803 | EK13: 4.743478763 | EL13: 0.3148921088 | EM13: 4.697901897 | EN13: 0.3140218602 | EO13: 4.706907647 | EP13: 0.3155744085 | EQ13: 4.733036351 | ER13: 0.3145638063 | ES13: 4.670386901 | ET13: 0.3109472843 | EU13: 4.665453436 | EV13: 0.3109645424 | EW13: 4.853446937 | EX13: 0.3212523725 | EY13: 4.938110354 | EZ13: 0.3283798411 | FA13: 4.864908562 | FB13: 0.3215961098 | FC13: 4.874437792 | FD13: 0.3223482828 | FE13: 4.900174743 | FF13: 0.3237028983 | FG13: 5.054543049 | FH13: 0.3297118374 | FI13: 4.970954398 | FJ13: 0.3248054429 | FK13: 5.205795881 | FL13: 0.3351642022 | FM13: 5.146897968 | FN13: 0.3290055202 | FO13: 5.30776947 | FP13: 0.3350211654 | FQ13: 5.339627445 | FR13: 0.3353012113 | FS13: 5.59481198 | FT13: 0.3401412889 | FU13: 6.329073867 | FV13: 0.3721925856 | FW13: 8.173566366 | FX13: 0.4225214691 | FY13: 9.553870503 | FZ13: 0.4442472186 | GA13: 9.917768538 | GB13: 0.4573795579 | GC13: 9.704830346 | GD13: 0.4509475448 | GE13: 10.15890461 | GF13: 0.464057043 | GG13: 10.37181753 | GH13: 0.4686799004 | GI13: 10.15355121 | GJ13: 0.4572326457 | GK13: 10.50339776 | GL13: 0.467138445 | GM13: 10.79984126 | GN13: 0.4747605744 | GO13: 11.03738418 | GP13: 0.4765656495 | GQ13: 10.8341804 | GR13: 0.4698862578 | GS13: 11.21279515 | GT13: 0.4778594234 | GU13: 11.77695843 | GV13: 0.4995809159 | GW13: 11.40306192 | GX13: 0.484361823 | GY13: 11.76784934 | GZ13: 0.4921917028 | HA13: 12.52680269 | HB13: 0.5051515377 | HC13: 13.86221158 | HD13: 0.5178213782 | HE13: 14.5891799 | HF13: 0.5487870342 | HG13: 14.38961941 | HH13: 0.5314090124 | HI13: 15.34668114 | HJ13: 0.5576570356 | HK13: 15.69894771 | HL13: 0.5580405401 | HM13: 17.13016806 | HN13: 0.5893206254 | HO13: 16.78465999 | HP13: 0.5655078233
A14: ConcAge | B14: FALSE | C14: 4.749050477 | D14: 0.3213 | E14: 3.754196245 | F14: 0.27834269 | G14: 14.76165356 | H14: 0.5439591593 | I14: 1.600950374 | J14: 0.1733395722 | K14: 1.81672218 | L14: 0.1795261838 | M14: 1.836792038 | N14: 0.181501957 | O14: 1.886693586 | P14: 0.1821181232 | Q14: 2.706372049 | R14: 0.2254704809 | S14: 2.62353558 | T14: 0.2269856811 | U14: 2.899905525 | V14: 0.2407992639 | W14: 2.936156037 | X14: 0.2421939241 | Y14: 2.986677291 | Z14: 0.2444636818 | AA14: 3.080348708 | AB14: 0.2486835543 | AC14: 4.139752188 | AD14: 0.295301132 | AE14: 4.333673587 | AF14: 0.3027597783 | AG14: 4.325084619 | AH14: 0.3038853135 | AI14: 4.587896999 | AJ14: 0.3158524965 | AK14: 4.609650591 | AL14: 0.3156903118 | AM14: 4.238851355 | AN14: 0.2917872774 | AO14: 4.576960169 | AP14: 0.3127641333 | AQ14: 4.594561467 | AR14: 0.3117130535 | AS14: 4.574158522 | AT14: 0.3113768108 | AU14: 4.565043431 | AV14: 0.3095943088 | AW14: 4.607892961 | AX14: 0.3136499789 | AY14: 4.652254301 | AZ14: 0.317958993 | BA14: 4.593180015 | BB14: 0.3123802105 | BC14: 4.475317896 | BD14: 0.3030003842 | BE14: 4.74277152 | BF14: 0.3204771833 | BG14: 4.632170973 | BH14: 0.3140488225 | BI14: 4.370532975 | BJ14: 0.2955532852 | BK14: 4.726070942 | BL14: 0.3180844278 | BM14: 4.63456401 | BN14: 0.3129843911 | BO14: 4.564234986 | BP14: 0.3062156806 | BQ14: 4.835892954 | BR14: 0.3251313234 | BS14: 4.677580446 | BT14: 0.3156691022 | BU14: 4.625360197 | BV14: 0.3112925794 | BW14: 4.419987216 | BX14: 0.3010074704 | BY14: 4.634290439 | BZ14: 0.3125855794 | CA14: 4.636294755 | CB14: 0.3097547708 | CC14: 4.638171653 | CD14: 0.3122927601 | CE14: 4.689930607 | CF14: 0.3153513474 | CG14: 4.640371886 | CH14: 0.3122622638 | CI14: 4.760948119 | CJ14: 0.319255871 | CK14: 4.624438745 | CL14: 0.3110567946 | CM14: 4.638285988 | CN14: 0.310515113 | CO14: 4.781580832 | CP14: 0.3240901644 | CQ14: 4.856046575 | CR14: 0.3255898148 | CS14: 4.66899059 | CT14: 0.3120441633 | CU14: 4.677993072 | CV14: 0.3123169256 | CW14: 4.826108369 | CX14: 0.3223511286 | CY14: 4.628926757 | CZ14: 0.3095056127 | DA14: 4.638899619 | DB14: 0.3099864352 | DC14: 4.608654579 | DD14: 0.3079258414 | DE14: 4.697201858 | DF14: 0.3156698389 | DG14: 4.678284512 | DH14: 0.3116578589 | DI14: 4.603159921 | DJ14: 0.306846945 | DK14: 4.793852716 | DL14: 0.3209309925 | DM14: 4.599497003 | DN14: 0.3091555468 | DO14: 4.583038304 | DP14: 0.3048332235 | DQ14: 4.705226858 | DR14: 0.3117478256 | DS14: 4.712122204 | DT14: 0.3137653681 | DU14: 4.70856952 | DV14: 0.3148958563 | DW14: 4.662170596 | DX14: 0.3115755543 | DY14: 4.68102982 | DZ14: 0.3119130373 | EA14: 4.698643746 | EB14: 0.3106264657 | EC14: 4.562316853 | ED14: 0.3031249395 | EE14: 4.785746969 | EF14: 0.3175120097 | EG14: 4.706531922 | EH14: 0.312389692 | EI14: 4.67769565 | EJ14: 0.3117908288 | EK14: 4.763799657 | EL14: 0.3137024807 | EM14: 4.72036987 | EN14: 0.3124476404 | EO14: 4.731290326 | EP14: 0.3139517174 | EQ14: 4.753395072 | ER14: 0.3130136154 | ES14: 4.69309548 | ET14: 0.3094454964 | EU14: 4.687052304 | EV14: 0.3092817833 | EW14: 4.875227966 | EX14: 0.3198866334 | EY14: 4.961796684 | EZ14: 0.3267708557 | FA14: 4.888022119 | FB14: 0.32005243 | FC14: 4.898075633 | FD14: 0.3207662217 | FE14: 4.924195869 | FF14: 0.3219743438 | FG14: 5.077704414 | FH14: 0.3281064297 | FI14: 4.994722067 | FJ14: 0.3231468399 | FK14: 5.234003449 | FL14: 0.3334100758 | FM14: 5.172155828 | FN14: 0.3272360823 | FO14: 5.329229249 | FP14: 0.3334779883 | FQ14: 5.365985046 | FR14: 0.3336037944 | FS14: 5.623219103 | FT14: 0.3384513118 | FU14: 6.359480476 | FV14: 0.3704020868 | FW14: 8.209207496 | FX14: 0.4209217324 | FY14: 9.59471496 | FZ14: 0.4422791882 | GA14: 9.958016059 | GB14: 0.4559757578 | GC14: 9.74766031 | GD14: 0.4487247127 | GE14: 10.2041784 | GF14: 0.4617152048 | GG14: 10.41322933 | GH14: 0.4663022578 | GI14: 10.20273511 | GJ14: 0.4548289038 | GK14: 10.55510407 | GL14: 0.4649147943 | GM14: 10.84790041 | GN14: 0.4727095228 | GO14: 11.08134866 | GP14: 0.4745703644 | GQ14: 10.88533892 | GR14: 0.4675453215 | GS14: 11.26115558 | GT14: 0.4754925859 | GU14: 11.82694262 | GV14: 0.4973958315 | GW14: 11.45129 | GX14: 0.4818097512 | GY14: 11.81811741 | GZ14: 0.4898390688 | HA14: 12.58975309 | HB14: 0.5027919575 | HC14: 13.91888077 | HD14: 0.5153637196 | HE14: 14.66282329 | HF14: 0.5460418775 | HG14: 14.45754415 | HH14: 0.528610136 | HI14: 15.41409493 | HJ14: 0.5548172905 | HK14: 15.76930677 | HL14: 0.5552952033 | HM14: 17.06479358 | HN14: 0.5865771309 | HO14: 16.85811222 | HP14: 0.5625726289
A15: ConcSwap | B15: FALSE | C15: 4.762320048 | D15: 0.321 | E15: 4.240761834 | F15: 0.298113744 | G15: 18.19308389 | H15: 0.5926113062 | I15: 1.623039085 | J15: 0.1725011986 | K15: 1.837404384 | L15: 0.1785708812 | M15: 1.853326635 | N15: 0.1806475223 | O15: 1.90581173 | P15: 0.1811665292 | Q15: 2.73581254 | R15: 0.2243625621 | S15: 2.653472606 | T15: 0.2258967718 | U15: 2.926529567 | V15: 0.2398615897 | W15: 2.968846422 | X15: 0.2409362076 | Y15: 3.010946803 | Z15: 0.2434433704 | AA15: 3.105906127 | AB15: 0.247515059 | AC15: 4.172091175 | AD15: 0.2942460843 | AE15: 4.362916178 | AF15: 0.3017459765 | AG15: 4.357619912 | AH15: 0.3024972149 | AI15: 4.623626349 | AJ15: 0.3146504206 | AK15: 4.643498867 | AL15: 0.3144317363 | AM15: 4.275463651 | AN15: 0.2904916471 | AO15: 4.61406257 | AP15: 0.3117300193 | AQ15: 4.624875509 | AR15: 0.3106566928 | AS15: 4.607210597 | AT15: 0.3101589763 | AU15: 4.59645881 | AV15: 0.3085232383 | AW15: 4.643375831 | AX15: 0.3125430462 | AY15: 4.691777152 | AZ15: 0.3165467554 | BA15: 4.628565121 | BB15: 0.3111767272 | BC15: 4.505135625 | BD15: 0.3017944403 | BE15: 4.777855285 | BF15: 0.3196747969 | BG15: 4.671073977 | BH15: 0.3128856838 | BI15: 4.40641975 | BJ15: 0.2946141759 | BK15: 4.758509728 | BL15: 0.3169950282 | BM15: 4.667934277 | BN15: 0.3117249547 | BO15: 4.594496476 | BP15: 0.3053478833 | BQ15: 4.870019567 | BR15: 0.3240435247 | BS15: 4.712685561 | BT15: 0.3143123785 | BU15: 4.657668023 | BV15: 0.3100036994 | BW15: 4.462363869 | BX15: 0.2996497699 | BY15: 4.669298766 | BZ15: 0.3113202176 | CA15: 4.665350514 | CB15: 0.3089306471 | CC15: 4.673967133 | CD15: 0.3111835383 | CE15: 4.724264265 | CF15: 0.3141078736 | CG15: 4.676315058 | CH15: 0.3111344444 | CI15: 4.79563261 | CJ15: 0.3182997143 | CK15: 4.65955856 | CL15: 0.3099013681 | CM15: 4.670306244 | CN15: 0.3094674835 | CO15: 4.821026088 | CP15: 0.3223837321 | CQ15: 4.892440948 | CR15: 0.3245019627 | CS15: 4.699535332 | CT15: 0.3108397516 | CU15: 4.711807929 | CV15: 0.3113231851 | CW15: 4.860062837 | CX15: 0.3211708112 | CY15: 4.662167968 | CZ15: 0.3083331415 | DA15: 4.673252225 | DB15: 0.3088777563 | DC15: 4.640609658 | DD15: 0.3066363177 | DE15: 4.73646915 | DF15: 0.3143457723 | DG15: 4.710651233 | DH15: 0.3106658058 | DI15: 4.634259217 | DJ15: 0.3056162447 | DK15: 4.830545856 | DL15: 0.3195982419 | DM15: 4.638757724 | DN15: 0.3077628164 | DO15: 4.615515076 | DP15: 0.303920099 | DQ15: 4.736569357 | DR15: 0.3109756914 | DS15: 4.747284647 | DT15: 0.3126607281 | DU15: 4.746874969 | DV15: 0.3136146542 | DW15: 4.699556505 | DX15: 0.3102518626 | DY15: 4.71281868 | DZ15: 0.3103200765 | EA15: 4.728887125 | EB15: 0.3096248438 | EC15: 4.599310878 | ED15: 0.3021974231 | EE15: 4.821725861 | EF15: 0.3164146857 | EG15: 4.739022699 | EH15: 0.3110118478 | EI15: 4.715505676 | EJ15: 0.3103967864 | EK15: 4.795805814 | EL15: 0.3130554459 | EM15: 4.755773528 | EN15: 0.3113232397 | EO15: 4.769713174 | EP15: 0.3127866165 | EQ15: 4.785471686 | ER15: 0.3119160001 | ES15: 4.728876608 | ET15: 0.3084099042 | EU15: 4.72109036 | EV15: 0.3080055702 | EW15: 4.909540355 | EX15: 0.3190404671 | EY15: 4.999118488 | EZ15: 0.3256503157 | FA15: 4.924440776 | FB15: 0.3189905869 | FC15: 4.935322236 | FD15: 0.3196567786 | FE15: 4.962051711 | FF15: 0.3206772422 | FG15: 5.114198518 | FH15: 0.3269865855 | FI15: 5.032175282 | FJ15: 0.3219462223 | FK15: 5.278457758 | FL15: 0.3321250146 | FM15: 5.2119619 | FN15: 0.3259011972 | FO15: 5.36303644 | FP15: 0.3324469829 | FQ15: 5.407520391 | FR15: 0.3323921544 | FS15: 5.667985363 | FT15: 0.3372594648 | FU15: 6.407395519 | FV15: 0.3691704159 | FW15: 8.265364477 | FX15: 0.4200412601 | FY15: 9.659080201 | FZ15: 0.4410095647 | GA15: 10.02143063 | GB15: 0.4553921636 | GC15: 9.81516065 | GD15: 0.4471560923 | GE15: 10.27553268 | GF15: 0.4600283486 | GG15: 10.47849428 | GH15: 0.464580646 | GI15: 10.2802544 | GJ15: 0.4530871356 | GK15: 10.63659612 | GL15: 0.4634109701 | GM15: 10.92363793 | GN15: 0.4714273333 | GO15: 11.15062883 | GP15: 0.4733471138 | GQ15: 10.96596986 | GR15: 0.465889333 | GS15: 11.33737457 | GT15: 0.4738149685 | GU15: 11.90571434 | GV15: 0.4960050225 | GW15: 11.52730196 | GX15: 0.4799374074 | GY15: 11.89734131 | GZ15: 0.4882204976 | HA15: 12.68897046 | HB15: 0.5012188651 | HC15: 14.00819316 | HD15: 0.5137191409 | HE15: 14.77889992 | HF15: 0.5441034688 | HG15: 14.56460943 | HH15: 0.5265314635 | HI15: 15.52035144 | HJ15: 0.552761981 | HK15: 15.88020466 | HL15: 0.553368497 | HM15: 17.02439654 | HN15: 0.5837472264 | HO15: 16.9738896 | HP15: 0.5604173868
A16: 1st Symbol-row | B16: 1 | C16: 4.404044383 | D16: 0.2963 | E16: 4.777124711 | F16: 0.3181905803 | G16: IsoLine | H16: IsoLine | I16: 1.651412286 | J16: 0.1719624798 | K16: 1.863973823 | L16: 0.1778771826 | M16: 1.874565441 | N16: 0.1800727868 | O16: 1.930371899 | P16: 0.1804768918 | Q16: 2.773630889 | R16: 0.2236141382 | S16: 2.691928075 | T16: 0.2251807886 | U16: 2.960724863 | V16: 0.239340199 | W16: 3.010841002 | X16: 0.2400482224 | Y16: 3.042118569 | Z16: 0.2428246156 | AA16: 3.138735647 | AB16: 0.2467261097 | AC16: 4.213625297 | AD16: 0.2937057931 | AE16: 4.400470134 | AF16: 0.3012631426 | AG16: 4.39941221 | AH16: 0.3015792234 | AI16: 4.669516815 | AJ16: 0.3139870541 | AK16: 4.686973329 | AL16: 0.3137052824 | AM16: 4.322492794 | AN16: 0.289666575 | AO16: 4.661714845 | AP16: 0.3112524704 | AQ16: 4.663805762 | AR16: 0.3101466347 | AS16: 4.649662183 | AT16: 0.3094629552 | AU16: 4.636804768 | AV16: 0.3079930792 | AW16: 4.688948253 | AX16: 0.3119835218 | AY16: 4.742544785 | AZ16: 0.3156492198 | BA16: 4.674013835 | BB16: 0.3105017206 | BC16: 4.543432411 | BD16: 0.301091234 | BE16: 4.822909897 | BF16: 0.3194658549 | BG16: 4.721041516 | BH16: 0.3122664991 | BI16: 4.452510097 | BJ16: 0.2942167123 | BK16: 4.800169809 | BL16: 0.3164650283 | BM16: 4.710795432 | BN16: 0.3109819866 | BO16: 4.633356924 | BP16: 0.3050352037 | BQ16: 4.913847731 | BR16: 0.3235273996 | BS16: 4.75777711 | BT16: 0.3134650405 | BU16: 4.699164784 | BV16: 0.3092249084 | BW16: 4.516798406 | BX16: 0.2987822231 | BY16: 4.714264604 | BZ16: 0.3105717078 | CA16: 4.702660443 | CB16: 0.3086711389 | CC16: 4.719941426 | CD16: 0.3106184443 | CE16: 4.768362553 | CF16: 0.3133903533 | CG16: 4.722479503 | CH16: 0.3105466286 | CI16: 4.84017632 | CJ16: 0.3179187806 | CK16: 4.704665628 | CL16: 0.3092805235 | CM16: 4.711428965 | CN16: 0.3089652825 | CO16: 4.871700247 | CP16: 0.321124195 | CQ16: 4.939182899 | CR16: 0.3239891514 | CS16: 4.738765016 | CT16: 0.3101587107 | CU16: 4.755235523 | CV16: 0.3108865632 | CW16: 4.903671751 | CX16: 0.3205437541 | CY16: 4.704861991 | CZ16: 0.3076845766 | DA16: 4.71737297 | DB16: 0.3083055723 | DC16: 4.681653797 | DD16: 0.3058461388 | DE16: 4.786907201 | DF16: 0.3135445888 | DG16: 4.752218164 | DH16: 0.3102274185 | DI16: 4.674202586 | DJ16: 0.304894617 | DK16: 4.877676557 | DL16: 0.3187922251 | DM16: 4.689189539 | DN16: 0.3068591828 | DO16: 4.657223027 | DP16: 0.3035562418 | DQ16: 4.776816882 | DR16: 0.3107807263 | DS16: 4.792445408 | DT16: 0.3121020639 | DU16: 4.796076722 | DV16: 0.3128588561 | DW16: 4.747578184 | DX16: 0.3094343579 | DY16: 4.75365606 | DZ16: 0.3091710666 | EA16: 4.767725879 | EB16: 0.3091721048 | EC16: 4.646823383 | ED16: 0.3018210111 | EE16: 4.86793498 | EF16: 0.3158751689 | EG16: 4.780756478 | EH16: 0.3101272295 | EI16: 4.764073514 | EJ16: 0.30949719 | EK16: 4.836904286 | EL16: 0.3130034232 | EM16: 4.801244678 | EN16: 0.3107397504 | EO16: 4.819063398 | EP16: 0.3121734955 | EQ16: 4.826667538 | ER16: 0.3113598827 | ES16: 4.774831511 | ET16: 0.3079244052 | EU16: 4.764810045 | EV16: 0.3072392944 | EW16: 4.953604318 | EX16: 0.3187824251 | EY16: 5.047052177 | EZ16: 0.3251090006 | FA16: 4.97121411 | FB16: 0.3184966048 | FC16: 4.983160103 | FD16: 0.319109834 | FE16: 5.010675413 | FF16: 0.3199166771 | FG16: 5.161068824 | FH16: 0.3264430278 | FI16: 5.080279807 | FJ16: 0.321300857 | FK16: 5.335557386 | FL16: 0.3314131267 | FM16: 5.263091333 | FN16: 0.3251090093 | FO16: 5.406452187 | FP16: 0.3320116753 | FQ16: 5.460868533 | FR16: 0.3317644513 | FS16: 5.725484064 | FT16: 0.3366623044 | FU16: 6.468937202 | FV16: 0.3685973555 | FW16: 8.337487803 | FX16: 0.4199513829 | FY16: 9.741751735 | FZ16: 0.4405412055 | GA16: 10.10287477 | GB16: 0.4556760546 | GC16: 9.901862888 | GD16: 0.446368764 | GE16: 10.36718675 | GF16: 0.4591331335 | GG16: 10.56232499 | GH16: 0.46365454 | GI16: 10.37982894 | GJ16: 0.4521484487 | GK16: 10.74127189 | GL16: 0.4627488033 | GM16: 11.02091801 | GN16: 0.4710178811 | GO16: 11.23961201 | GP16: 0.472994998 | GQ16: 11.06954098 | GR16: 0.4650524505 | GS16: 11.43527729 | GT16: 0.4729624817 | GU16: 12.00689198 | GV16: 0.4955211639 | GW16: 11.62493977 | GX16: 0.4788964778 | GY16: 11.9991028 | GZ16: 0.4874671162 | HA16: 12.81641679 | HB16: 0.5005597031 | HC16: 14.12291321 | HD16: 0.5130208759 | HE16: 14.92800595 | HF16: 0.5431288462 | HG16: 14.70214145 | HH16: 0.5253413966 | HI16: 15.65684243 | HJ16: 0.551657616 | HK16: 16.0226571 | HL16: 0.5524165115 | HM16: 17.01074248 | HN16: 0.5809545922 | HO16: 17.12261255 | HP16: 0.5592167019
C17: 4.744285344 | D17: 0.3186 | E17: 5.368381349 | F17: 0.3385779282 | I17: 1.683771349 | J17: 0.1717670598 | K17: 1.894278001 | L17: 0.1775012873 | M17: 1.898787814 | N17: 0.1798243122 | O17: 1.958384377 | P17: 0.1801050812 | Q17: 2.81676328 | R17: 0.2232858419 | S17: 2.735786551 | T17: 0.2248957362 | U17: 2.999721116 | V17: 0.2392773317 | W17: 3.058737624 | X17: 0.2396019079 | Y17: 3.077667238 | Z17: 0.2426575454 | AA17: 3.176177615 | AB17: 0.2463806224 | AC17: 4.260989708 | AD17: 0.2937240295 | AE17: 4.443293059 | AF17: 0.301350393 | AG17: 4.447075749 | AH17: 0.3012057093 | AI17: 4.721850626 | AJ17: 0.313916139 | AK17: 4.736551934 | AL17: 0.3135698032 | AM17: 4.376128761 | AN17: 0.2893789035 | AO17: 4.716056492 | AP17: 0.3113701746 | AQ17: 4.708198328 | AR17: 0.3102242012 | AS17: 4.698074106 | AT17: 0.3093451351 | AU17: 4.682812714 | AV17: 0.308046782 | AW17: 4.740918221 | AX17: 0.3120167349 | AY17: 4.800444309 | AZ17: 0.3153390994 | BA17: 4.725844173 | BB17: 0.3104098759 | BC17: 4.587105677 | BD17: 0.3009477348 | BE17: 4.8742853 | BF17: 0.3198672845 | BG17: 4.778025517 | BH17: 0.3122414311 | BI17: 4.505070049 | BJ17: 0.2943930945 | BK17: 4.847676132 | BL17: 0.3165373656 | BM17: 4.75967512 | BN17: 0.3108156775 | BO17: 4.67766809 | BP17: 0.3053029733 | BQ17: 4.96382675 | BR17: 0.3236247616 | BS17: 4.809202043 | BT17: 0.3131957345 | BU17: 4.746488657 | BV17: 0.3090192991 | BW17: 4.578880865 | BX17: 0.2984751135 | BY17: 4.765545088 | BZ17: 0.3104006898 | CA17: 4.745201912 | CB17: 0.3089972701 | CC17: 4.772369968 | CD17: 0.3106432586 | CE17: 4.818652892 | CF17: 0.3132569157 | CG17: 4.775125254 | CH17: 0.3105464379 | CI17: 4.890970584 | CJ17: 0.3181439307 | CK17: 4.756105642 | CL17: 0.3092445579 | CM17: 4.758322632 | CN17: 0.3090491953 | CO17: 4.929497989 | CP17: 0.3204135933 | CQ17: 4.992485675 | CR17: 0.3240929257 | CS17: 4.783501486 | CT17: 0.3100562146 | CU17: 4.804757608 | CV17: 0.3110424325 | CW17: 4.953402178 | CX17: 0.3205207576 | CY17: 4.753550009 | CZ17: 0.307612461 | DA17: 4.767687456 | DB17: 0.308316238 | DC17: 4.728461845 | DD17: 0.3056193204 | DE17: 4.844429819 | DF17: 0.3133311956 | DG17: 4.7996178 | DH17: 0.3103782124 | DI17: 4.719754053 | DJ17: 0.3047405237 | DK17: 4.931426569 | DL17: 0.3185782407 | DM17: 4.746706762 | DN17: 0.3065178528 | DO17: 4.704783228 | DP17: 0.3037711293 | DQ17: 4.82270882 | DR17: 0.3111787252 | DS17: 4.843945828 | DT17: 0.312134635 | DU17: 4.852188747 | DV17: 0.3126896925 | DW17: 4.8023452 | DX17: 0.3091892695 | DY17: 4.80023356 | DZ17: 0.3085590935 | EA17: 4.812013523 | EB17: 0.3093049269 | EC17: 4.701005186 | ED17: 0.302026198 | EE17: 4.920630738 | EF17: 0.3159371678 | EG17: 4.828352235 | EH17: 0.3098075036 | EI17: 4.819464486 | EJ17: 0.3091649197 | EK17: 4.88376552 | EL17: 0.3135506271 | EM17: 4.853099518 | EN17: 0.3107444434 | EO17: 4.875342938 | EP17: 0.3121620257 | EQ17: 4.873645184 | ER17: 0.3113903165 | ES17: 4.827237196 | ET17: 0.3080283316 | EU17: 4.814669449 | EV17: 0.307045035 | EW17: 5.003850055 | EX17: 0.3191334122 | EY17: 5.101714447 | EZ17: 0.3251907645 | FA17: 5.024552822 | FB17: 0.3186105031 | FC17: 5.037713694 | FD17: 0.3191696982 | FE17: 5.066127773 | FF17: 0.3197542649 | FG17: 5.21451818 | FH17: 0.3265197925 | FI17: 5.135138498 | FJ17: 0.3212630277 | FK17: 5.40067646 | FL17: 0.3313320849 | FM17: 5.321401924 | FN17: 0.3249236968 | FO17: 5.455959204 | FP17: 0.3322073315 | FQ17: 5.521707522 | FR17: 0.3317715376 | FS17: 5.791057003 | FT17: 0.3367082088 | FU17: 6.539119785 | FV17: 0.3687293317 | FW17: 8.419734472 | FX17: 0.4206593821 | FY17: 9.836032007 | FZ17: 0.4409120542 | GA17: 10.19575037 | GB17: 0.4568044317 | GC17: 10.00074292 | GD17: 0.4464265124 | GE17: 10.47171534 | GF17: 0.4591020845 | GG17: 10.65793001 | GH17: 0.4635989671 | GI17: 10.49339178 | GJ17: 0.4520888899 | GK17: 10.86065118 | GL17: 0.4629819388 | GM17: 11.1318596 | GN17: 0.4715143378 | GO17: 11.34108933 | GP17: 0.4735425434 | GQ17: 11.18766157 | GR17: 0.4651024735 | GS17: 11.54693227 | GT17: 0.4730041891 | GU17: 12.12227873 | GV17: 0.4959834553 | GW17: 11.73629339 | GX17: 0.4787712924 | GY17: 12.11515775 | GZ17: 0.487639959 | HA17: 12.96176714 | HB17: 0.5008678731 | HC17: 14.25374697 | HD17: 0.5133254938 | HE17: 15.09806169 | HF17: 0.5431969679 | HG17: 14.85899818 | HH17: 0.5251363474 | HI17: 15.81251019 | HJ17: 0.5515936645 | HK17: 16.18512343 | HL17: 0.552516371 | HM17: 17.02442816 | HN17: 0.5783212797 | HO17: 17.29223242 | HP17: 0.5590678467
C18: 4.731230038 | D18: 0.3174 | E18: 6.020149822 | F18: 0.3592805901 | I18: 1.717494735 | J18: 0.1719307702 | K18: 1.925861853 | L18: 0.1774736482 | M18: 1.924031401 | N18: 0.1799222284 | O18: 1.987579757 | P18: 0.1800812195 | Q18: 2.861715383 | R18: 0.2234042699 | S18: 2.781494883 | T18: 0.225064708 | U18: 3.04035908 | V18: 0.2396780809 | W18: 3.108655991 | X18: 0.2396334216 | Y18: 3.114712869 | Z18: 0.2429556946 | AA18: 3.215198706 | AB18: 0.2465065865 | AC18: 4.310347223 | AD18: 0.2942993161 | AE18: 4.487915693 | AF18: 0.3020006593 | AG18: 4.496749114 | AH18: 0.3014069324 | AI18: 4.776388007 | AJ18: 0.3144434203 | AK18: 4.788218118 | AL18: 0.3140362744 | AM18: 4.432026285 | AN18: 0.2896519382 | AO18: 4.772685072 | AP18: 0.3120735962 | AQ18: 4.754456787 | AR18: 0.3108831082 | AS18: 4.748524321 | AT18: 0.309815061 | AU18: 4.73075536 | AV18: 0.308679996 | AW18: 4.795075437 | AX18: 0.3126399948 | AY18: 4.860785048 | AZ18: 0.3156415181 | BA18: 4.779857148 | BB18: 0.3109086336 | BC18: 4.632617275 | BD18: 0.3013755682 | BE18: 4.927819363 | BF18: 0.3208465644 | BG18: 4.837409475 | BH18: 0.3128125105 | BI18: 4.559841513 | BJ18: 0.2951290332 | BK18: 4.897180018 | BL18: 0.3172061798 | BM18: 4.810613399 | BN18: 0.311239501 | BO18: 4.723840145 | BP18: 0.306129499 | BQ18: 5.01590762 | BR18: 0.324327723 | BS18: 4.86279422 | BT18: 0.3135262781 | BU18: 4.795805745 | BV18: 0.309403529 | BW18: 4.643581693 | BX18: 0.2987533212 | BY18: 4.818985778 | BZ18: 0.3108210185 | CA18: 4.789528465 | CB18: 0.3098826194 | CC18: 4.827005311 | CD18: 0.3112559709 | CE18: 4.871061055 | CF18: 0.3137183712 | CG18: 4.829987264 | CH18: 0.3111338877 | CI18: 4.943900352 | CJ18: 0.3189569244 | CK18: 4.809711239 | CL18: 0.3097963851 | CM18: 4.807188201 | CN18: 0.3097124237 | CO18: 4.989736885 | CP18: 0.3203094957 | CQ18: 5.048031001 | CR18: 0.3248048786 | CS18: 4.830120458 | CT18: 0.3105405669 | CU18: 4.856362199 | CV18: 0.3117781653 | CW18: 5.005225253 | CX18: 0.321103685 | CY18: 4.80428761 | CZ18: 0.3081226371 | DA18: 4.820119501 | DB18: 0.3089088893 | DC18: 4.77724169 | DD18: 0.305974238 | DE18: 4.904376864 | DF18: 0.3137228805 | DG18: 4.849010105 | DH18: 0.3111059713 | DI18: 4.767223308 | DJ18: 0.3051664486 | DK18: 4.987441387 | DL18: 0.3189736246 | DM18: 4.80664969 | DN18: 0.3067664792 | DO18: 4.754342634 | DP18: 0.3045473528 | DQ18: 4.870527278 | DR18: 0.3121374447 | DS18: 4.897613652 | DT18: 0.3127558028 | DU18: 4.910665179 | DV18: 0.3131208679 | DW18: 4.859420656 | DX18: 0.309536453 | DY18: 4.848777748 | DZ18: 0.3085337355 | EA18: 4.858162137 | EB18: 0.3100125496 | EC18: 4.7574668 | ED18: 0.3027963609 | EE18: 4.975544037 | EF18: 0.3165956596 | EG18: 4.877954045 | EH18: 0.3100785723 | EI18: 4.877191145 | EJ18: 0.3094268939 | EK18: 4.932593097 | EL18: 0.3146527265 | EM18: 4.907137077 | EN18: 0.3113369385 | EO18: 4.93399236 | EP18: 0.3127531363 | EQ18: 4.922598774 | ER18: 0.3120048361 | ES18: 4.881848066 | ET18: 0.3087132639 | EU18: 4.866629261 | EV18: 0.3074385297 | EW18: 5.056206956 | EX18: 0.3200649936 | EY18: 5.158676886 | EZ18: 0.3258889834 | FA18: 5.080135728 | FB18: 0.3193230545 | FC18: 5.094563403 | FD18: 0.3198315211 | FE18: 5.123916369 | FF18: 0.3202031633 | FG18: 5.270216437 | FH18: 0.3272106605 | FI18: 5.192307032 | FJ18: 0.321835799 | FK18: 5.468539419 | FL18: 0.3318884548 | FM18: 5.382169697 | FN18: 0.3253602728 | FO18: 5.507546728 | FP18: 0.3330181004 | FQ18: 5.585108546 | FR18: 0.3324128395 | FS18: 5.85939185 | FT18: 0.3373934592 | FU18: 6.612257492 | FV18: 0.3695556524 | FW18: 8.505441349 | FX18: 0.4221078998 | FY18: 9.934282991 | FZ18: 0.4420920669 | GA18: 10.29253319 | GB18: 0.4586858804 | GC18: 10.10379009 | GD18: 0.447324659 | GE18: 10.58065017 | GF18: 0.459937717 | GG18: 10.75756398 | GH18: 0.4644184298 | GI18: 10.61174275 | GJ18: 0.4529132844 | GK18: 10.9850626 | GL18: 0.4640914892 | GM18: 11.24747488 | GN18: 0.4728764832 | GO18: 11.44683968 | GP18: 0.4749453912 | GQ18: 11.31076219 | GR18: 0.4660353492 | GS18: 11.66329387 | GT18: 0.4739367116 | GU18: 12.24252663 | GV18: 0.4973544443 | GW18: 11.85234162 | GX18: 0.4795719929 | GY18: 12.23610408 | GZ18: 0.4887250234 | HA18: 13.11324609 | HB18: 0.5021184087 | HC18: 14.39009507 | HD18: 0.5146083165 | HE18: 15.27529025 | HF18: 0.5443023152 | HG18: 15.02247203 | HH18: 0.5259329279 | HI18: 15.97474345 | HJ18: 0.5525753076 | HK18: 16.3544416 | HL18: 0.5536599856 | HM18: 17.06485544 | HN18: 0.5759623775 | HO18: 17.4690076 | HP18: 0.5599828804
C19: 4.723233826 | D19: 0.3166 | E19: 6.73862318 | F19: 0.3803034427 | I19: 1.749850376 | J19: 0.1724403481 | K19: 1.956166642 | L19: 0.1777965043 | M19: 1.948251117 | N19: 0.1803586027 | O19: 2.015592805 | P19: 0.1804072396 | Q19: 2.904845445 | R19: 0.2239598279 | S19: 2.825350054 | T19: 0.2256740149 | U19: 3.079346509 | V19: 0.2405099804 | W19: 3.156552012 | X19: 0.2401402107 | Y19: 3.150254244 | Z19: 0.2436949091 | AA19: 3.252637664 | AB19: 0.2470937971 | AC19: 4.357699191 | AD19: 0.2953850467 | AE19: 4.530722976 | AF19: 0.3031612607 | AG19: 4.544408063 | AH19: 0.3021665909 | AI19: 4.828710664 | AJ19: 0.315526181 | AK19: 4.837786195 | AL19: 0.3150669052 | AM19: 4.485656883 | AN19: 0.2904635592 | AO19: 4.827012875 | AP19: 0.3133057483 | AQ19: 4.798833553 | AR19: 0.3120699751 | AS19: 4.796925649 | AT19: 0.3108346622 | AU19: 4.776748676 | AV19: 0.309841422 | AW19: 4.847032405 | AX19: 0.3138028087 | AY19: 4.918678554 | AZ19: 0.3165319759 | BA19: 4.831676952 | BB19: 0.3119575875 | BC19: 4.676280125 | BD19: 0.3023400737 | BE19: 4.979175076 | BF19: 0.322324359 | BG19: 4.894382455 | BH19: 0.3139334719 | BI19: 4.61238723 | BJ19: 0.2963649069 | BK19: 4.944670956 | BL19: 0.3184172875 | BM19: 4.859483552 | BN19: 0.3122191213 | BO19: 4.768132504 | BP19: 0.3074478206 | BQ19: 5.06587106 | BR19: 0.3255793339 | BS19: 4.914211919 | BT19: 0.3144298925 | BU19: 4.84312067 | BV19: 0.3103464699 | BW19: 4.705659214 | BX19: 0.2995943075 | BY19: 4.870257227 | BZ19: 0.3117986414 | CA19: 4.832049028 | CB19: 0.3112554611 | CC19: 4.879421224 | CD19: 0.312406943 | CE19: 4.921341246 | CF19: 0.3147373352 | CG19: 4.882620939 | CH19: 0.3122613862 | CI19: 4.994677568 | CJ19: 0.3202918978 | CK19: 4.861139612 | CL19: 0.3108912993 | CM19: 4.854066872 | CN19: 0.310901237 | CO19: 5.047536738 | CP19: 0.3208203357 | CQ19: 5.101318925 | CR19: 0.3260673318 | CS19: 4.874845141 | CT19: 0.3115725283 | CU19: 4.905868599 | CV19: 0.313034157 | CW19: 5.054942579 | CX19: 0.3222453107 | CY19: 4.852964334 | CZ19: 0.3091737734 | DA19: 4.870421372 | DB19: 0.3100355133 | DC19: 4.824041482 | DD19: 0.3068821382 | DE19: 4.961891782 | DF19: 0.3146879115 | DG19: 4.896393608 | DH19: 0.3123517363 | DI19: 4.812764675 | DJ19: 0.3061378858 | DK19: 5.041183023 | DL19: 0.319946345 | DM19: 4.864162103 | DN19: 0.3075849195 | DO19: 4.801886236 | DP19: 0.3058220271 | DQ19: 4.916398289 | DR19: 0.3135792149 | DS19: 4.94910103 | DT19: 0.313915244 | DU19: 4.966768608 | DV19: 0.3141174511 | DW19: 4.914180638 | DX19: 0.3104477817 | DY19: 4.895355862 | DZ19: 0.309097047 | EA19: 4.902433033 | EB19: 0.3112376456 | EC19: 4.811634042 | ED19: 0.3040691057 | EE19: 5.028226128 | EF19: 0.3177972971 | EG19: 4.925543465 | EH19: 0.3109184754 | EI19: 4.932576819 | EJ19: 0.3102618892 | EK19: 4.979431296 | EL19: 0.3162204358 | EM19: 4.958979553 | EN19: 0.3124692351 | EO19: 4.990260235 | EP19: 0.3138989392 | EQ19: 4.969562381 | ER19: 0.3131536565 | ES19: 4.934239873 | ET19: 0.309923713 | EU19: 4.916480004 | EV19: 0.3083878999 | EW19: 5.106433376 | EX19: 0.3215016982 | EY19: 5.213324737 | EZ19: 0.3271470918 | FA19: 5.133459832 | FB19: 0.3205765324 | FC19: 5.149103603 | FD19: 0.321041686 | FE19: 5.179359514 | FF19: 0.3212270052 | FG19: 5.323651253 | FH19: 0.3284596618 | FI19: 5.247153954 | FJ19: 0.3229727685 | FK19: 5.53364841 | FL19: 0.3330371627 | FM19: 5.440471606 | FN19: 0.3263833684 | FO19: 5.557035443 | FP19: 0.3343782986 | FQ19: 5.645935231 | FR19: 0.3336364023 | FS19: 5.924952523 | FT19: 0.3386625407 | FU19: 6.682425142 | FV19: 0.3710093741 | FW19: 8.587664971 | FX19: 0.4241795857 | FY19: 10.02854497 | FZ19: 0.4439856459 | GA19: 10.38538247 | GB19: 0.461167977 | GC19: 10.20265611 | GD19: 0.4489904414 | GE19: 10.68516599 | GF19: 0.461572333 | GG19: 10.85315515 | GH19: 0.4660465399 | GI19: 10.72529374 | GJ19: 0.4545548446 | GK19: 11.10442706 | GL19: 0.4659875654 | GM19: 11.35839737 | GN19: 0.4749939645 | GO19: 11.54829581 | GP19: 0.477089891 | GQ19: 11.42886997 | GR19: 0.4677755017 | GS19: 11.77493518 | GT19: 0.4756845019 | GU19: 12.35789392 | GV19: 0.4995230618 | GW19: 11.96368291 | GX19: 0.4812337114 | GY19: 12.35214346 | GZ19: 0.4906344038 | HA19: 13.25858172 | HB19: 0.5042099992 | HC19: 14.5209114 | HD19: 0.5167654172 | HE19: 15.44533362 | HF19: 0.5463553393 | HG19: 15.17931932 | HH19: 0.5276666037 | HI19: 16.13039903 | HJ19: 0.5545230183 | HK19: 16.51689446 | HL19: 0.5557547062 | HM19: 17.13025745 | HN19: 0.5739809809 | HO19: 17.63861683 | HP19: 0.5618876725
C20: 4.706693741 | D20: 0.3152 | E20: 7.530628296 | F20: 0.4016514382 | I20: 1.77821701 | J20: 0.1732545108 | K20: 1.982737255 | L20: 0.1784436999 | M20: 1.969484826 | N20: 0.1810980829 | O20: 2.04015407 | P20: 0.1810567295 | Q20: 2.942659326 | R20: 0.2249075078 | S20: 2.863799177 | T20: 0.2266742943 | U20: 3.113524873 | V20: 0.2417056346 | W20: 3.198545437 | X20: 0.241081218 | Y20: 3.181412013 | Z20: 0.2448153021 | AA20: 3.285461406 | AB20: 0.2480946819 | AC20: 4.399209437 | AD20: 0.2968932617 | AE20: 4.568246917 | AF20: 0.3047381722 | AG20: 4.586191552 | AH20: 0.3034231417 | AI20: 4.874579727 | AJ20: 0.3170767021 | AK20: 4.881240453 | AL20: 0.3165782 | AM20: 4.532675721 | AN20: 0.291748014 | AO20: 4.874638585 | AP20: 0.3149668092 | AQ20: 4.837733485 | AR20: 0.3136886488 | AS20: 4.839356905 | AT20: 0.3123213369 | AU20: 4.817066558 | AV20: 0.311436968 | AW20: 4.892579881 | AX20: 0.3154109724 | AY20: 4.969434641 | AZ20: 0.3179383331 | BA20: 4.877105451 | BB20: 0.3134717574 | BC20: 4.714556924 | BD20: 0.3037631127 | BE20: 5.024191904 | BF20: 0.3241809462 | BG20: 4.944328845 | BH20: 0.3155135018 | BI20: 4.658450258 | BJ20: 0.2980005924 | BK20: 4.986301512 | BL20: 0.3200725719 | BM20: 4.902326411 | BN20: 0.3136751754 | BO20: 4.806956864 | BP20: 0.3091511354 | BQ20: 5.109669328 | BR20: 0.3272781964 | BS20: 4.959289586 | BT20: 0.3158333723 | BU20: 4.884600258 | BV20: 0.3117717304 | BW20: 4.760084278 | BX20: 0.3009299407 | BY20: 4.915205728 | BZ20: 0.3132543573 | CA20: 4.869318837 | CB20: 0.3130045757 | CC20: 4.925371281 | CD20: 0.3140029298 | CE20: 4.965420063 | CF20: 0.3162312575 | CG20: 4.928762213 | CH20: 0.3138375903 | CI20: 5.039188566 | CJ20: 0.3220406992 | CK20: 4.90622434 | CL20: 0.3124405971 | CM20: 4.895160816 | CN20: 0.3125193245 | CO20: 5.098214948 | CP20: 0.321904728 | CQ20: 5.148032377 | CR20: 0.3277780089 | CS20: 4.914052206 | CT20: 0.3130684954 | CU20: 4.949266094 | CV20: 0.3147086546 | CW20: 5.098526354 | CX20: 0.3238531471 | CY20: 4.895636683 | CZ20: 0.3106807131 | DA20: 4.914517912 | DB20: 0.3116048375 | DC20: 4.865069778 | DD20: 0.3082694684 | DE20: 5.012315057 | DF20: 0.3161481076 | DG20: 4.937929579 | DH20: 0.314014583 | DI20: 4.852688664 | DJ20: 0.3075761352 | DK20: 5.088297649 | DL20: 0.3214175979 | DM20: 4.914584687 | DN20: 0.3089068687 | DO20: 4.843562334 | DP20: 0.3074918858 | DQ20: 4.956605656 | DR20: 0.3153872323 | DS20: 4.994236761 | DT20: 0.3155190274 | DU20: 5.015953866 | DV20: 0.3155987049 | DW20: 4.962188818 | DX20: 0.311849425 | DY20: 4.936194421 | DZ20: 0.310203392 | EA20: 4.941239647 | EB20: 0.3128809648 | EC20: 4.859118602 | ED20: 0.3057413223 | EE20: 5.074409022 | EF20: 0.3194447309 | EG20: 4.967265082 | EH20: 0.3122591689 | EI20: 4.981134492 | EJ20: 0.311602259 | EK20: 5.020485566 | EL20: 0.3181267485 | EM20: 5.004426978 | EN20: 0.3140496015 | EO20: 5.039588077 | EP20: 0.315506608 | EQ20: 5.010731291 | ER20: 0.3147437074 | ES20: 4.980168145 | ET20: 0.3115616155 | EU20: 4.960183069 | EV20: 0.3098162333 | EW20: 5.150460268 | EX20: 0.3233271327 | EY20: 5.261230755 | EZ20: 0.3288631653 | FA20: 5.180205131 | FB20: 0.3222693873 | FC20: 5.196915772 | FD20: 0.3227021525 | FE20: 5.227965533 | FF20: 0.322742845 | FG20: 5.370493657 | FH20: 0.3301656097 | FI20: 5.295235891 | FJ20: 0.3245818256 | FK20: 5.590728691 | FL20: 0.3346851469 | FM20: 5.491584379 | FN20: 0.3279100986 | FO20: 5.600416068 | FP20: 0.3361777307 | FQ20: 5.699259761 | FR20: 0.3353431004 | FS20: 5.982427686 | FT20: 0.3404126399 | FU20: 6.743938168 | FV20: 0.372972725 | FW20: 8.65974407 | FX20: 0.4267066041 | FY20: 10.11118141 | FZ20: 0.4464393848 | GA20: 10.46677611 | GB20: 0.4640496368 | GC20: 10.28933145 | GD20: 0.4512889078 | GE20: 10.77679554 | GF20: 0.4638735057 | GG20: 10.93695929 | GH20: 0.4683513976 | GI20: 10.82484554 | GJ20: 0.456880581 | GK20: 11.20907437 | GL20: 0.4685165587 | GM20: 11.4556408 | GN20: 0.477695236 | GO20: 11.63723834 | GP20: 0.479802308 | GQ20: 11.53241651 | GR20: 0.4701819541 | GS20: 11.87281167 | GT20: 0.4781059644 | GU20: 12.45903423 | GV20: 0.5023136191 | GW20: 12.06129706 | GX20: 0.4836218252 | GY20: 12.45387504 | GZ20: 0.4932134137 | HA20: 13.3859998 | HB20: 0.5069731962 | HC20: 14.635598 | HD20: 0.5196220404 | HE20: 15.59441589 | HF20: 0.5491897165 | HG20: 15.31683321 | HH20: 0.5301969228 | HI20: 16.26686666 | HJ20: 0.5572790048 | HK20: 16.65932105 | HL20: 0.5586308313 | HM20: 17.21777583 | HN20: 0.5724636863 | HO20: 17.78731938 | HP20: 0.564627908
C21: 4.767916597 | D21: 0.3193 | E21: 8.403690739 | F21: 0.4233296051 | I21: 1.80029654 | J21: 0.1743072994 | K21: 2.003421099 | L21: 0.1793628029 | M21: 1.986012297 | N21: 0.1820807605 | O21: 2.059273743 | P21: 0.1819770712 | Q21: 2.97209357 | R21: 0.2261705343 | S21: 2.893727335 | T21: 0.2279845097 | U21: 3.140125245 | V21: 0.2431681786 | W21: 3.231234208 | X21: 0.2423802088 | Y21: 3.205661959 | Z21: 0.246226106 | AA21: 3.311010748 | AB21: 0.2494281551 | AC21: 4.431515048 | AD21: 0.2987017747 | AE21: 4.597447549 | AF21: 0.3066036418 | AG21: 4.618714531 | AH21: 0.3050747866 | AI21: 4.910279156 | AJ21: 0.3189693698 | AK21: 4.915060488 | AL21: 0.3184477228 | AM21: 4.569273613 | AN21: 0.2934012436 | AO21: 4.911703851 | AP21: 0.3169222096 | AQ21: 4.86800514 | AR21: 0.3156079942 | AS21: 4.872380559 | AT21: 0.3141546434 | AU21: 4.848442691 | AV21: 0.3133373726 | AW21: 4.928027879 | AX21: 0.317334202 | AY21: 5.008941351 | AZ21: 0.3197466551 | BA21: 4.912462299 | BB21: 0.3153284745 | BC21: 4.744346712 | BD21: 0.3055293992 | BE21: 5.059222852 | BF21: 0.3262659164 | BG21: 4.983202285 | BH21: 0.3174245954 | BI21: 4.694298845 | BJ21: 0.2999035764 | BK21: 5.018699028 | BL21: 0.3220379318 | BM21: 4.935671101 | BN21: 0.3154897024 | BO21: 4.837167906 | BP21: 0.3111014512 | BQ21: 5.143754148 | BR21: 0.3292866787 | BS21: 4.994375295 | BT21: 0.317623016 | BU21: 4.91688408 | BV21: 0.3135638444 | BW21: 4.802447688 | BX21: 0.3026520157 | BY21: 4.95018982 | BZ21: 0.3150702327 | CA21: 4.898318516 | CB21: 0.3149882604 | CC21: 4.961132882 | CD21: 0.3159146341 | CE21: 4.999726502 | CF21: 0.3180791094 | CG21: 4.964672993 | CH21: 0.3157348052 | CI21: 5.073827329 | CJ21: 0.3240616513 | CK21: 4.941312926 | CL21: 0.3143187636 | CM21: 4.927140844 | CN21: 0.3144355985 | CO21: 5.137665867 | CP21: 0.3234748216 | CQ21: 5.18438691 | CR21: 0.3297983209 | CS21: 4.944565332 | CT21: 0.3149072738 | CU21: 4.983038877 | CV21: 0.3166660002 | CW21: 5.13244568 | CX21: 0.3257969369 | CY21: 4.928847596 | CZ21: 0.312521373 | DA21: 4.948836681 | DB21: 0.3134897246 | DC21: 4.89700271 | DD21: 0.3100238353 | DE21: 5.051561695 | DF21: 0.3179851724 | DG21: 4.970253021 | DH21: 0.3159597975 | DI21: 4.88376087 | DJ21: 0.3093646785 | DK21: 5.124968319 | DL21: 0.3232681912 | DM21: 4.953832504 | DN21: 0.3106252303 | DO21: 4.875994579 | DP21: 0.3094216468 | DQ21: 4.987892019 | DR21: 0.3174150219 | DS21: 5.029364217 | DT21: 0.3174372242 | DU21: 5.054236257 | DV21: 0.3174446267 | DW21: 4.999555858 | DX21: 0.3136278304 | DY21: 4.967984927 | DZ21: 0.3117631408 | EA21: 4.971438098 | EB21: 0.3148093753 | EC21: 4.896073565 | ED21: 0.3076775376 | EE21: 5.110351256 | EF21: 0.3214044957 | EG21: 4.99973886 | EH21: 0.3139920377 | EI21: 5.018930309 | EJ21: 0.3133394147 | EK21: 5.052429935 | EL21: 0.3202172266 | EM21: 5.03979747 | EN21: 0.3159500056 | EO21: 5.077979636 | EP21: 0.3174458991 | EQ21: 5.042770245 | ER21: 0.3166461721 | ES21: 5.015912045 | ET21: 0.3134942782 | EU21: 4.994197893 | EV21: 0.3116078148 | EW21: 5.184720836 | EX21: 0.3253934112 | EY21: 5.298513881 | EZ21: 0.3308981776 | FA21: 5.216584599 | FB21: 0.3242644743 | FC21: 5.234126453 | FD21: 0.3246783993 | FE21: 5.265796656 | FF21: 0.3246278784 | FG21: 5.406948757 | FH21: 0.3321902986 | FI21: 5.332657532 | FJ21: 0.3265326142 | FK21: 5.635155955 | FL21: 0.3366988977 | FM21: 5.531367163 | FN21: 0.3298167767 | FO21: 5.634174163 | FP21: 0.3382706176 | FQ21: 5.740762098 | FR21: 0.3373946671 | FS21: 6.027161043 | FT21: 0.342501974 | FU21: 6.791813152 | FV21: 0.3752866459 | FW21: 8.715839225 | FX21: 0.4294842311 | FY21: 10.1754976 | FZ21: 0.4492544962 | GA21: 10.53012008 | GB21: 0.4670974048 | GC21: 10.3567942 | GD21: 0.4540338502 | GE21: 10.84811555 | GF21: 0.4666548077 | GG21: 11.00218709 | GH21: 0.4711462772 | GI21: 10.90233304 | GJ21: 0.4597020764 | GK21: 11.29052663 | GL21: 0.4714735849 | GM21: 11.53132709 | GN21: 0.4807614566 | GO21: 11.70646168 | GP21: 0.4828628986 | GQ21: 11.6130131 | GR21: 0.47305975 | GS21: 11.94899397 | GT21: 0.4810049267 | GU21: 12.53775377 | GV21: 0.5055000419 | GW21: 12.13727595 | GX21: 0.4865428636 | GY21: 12.53305715 | GZ21: 0.496253117 | HA21: 13.48517767 | HB21: 0.5101841419 | HC21: 14.72486364 | HD21: 0.5229467596 | HE21: 15.71045931 | HF21: 0.5525758224 | HG21: 15.42387314 | HH21: 0.5333188938 | HI21: 16.37309052 | HJ21: 0.5606199933 | HK21: 16.7701828 | HL21: 0.5620553541 | HM21: 17.32358558 | HN21: 0.5714768069 | HO21: 17.90306825 | HP21: 0.5679815894
C22: 4.830577542 | D22: 0.3229 | E22: 9.366106275 | F22: 0.4453430501 | I22: 1.814300216 | J22: 0.1755134234 | K22: 2.016542493 | L22: 0.1804793532 | M22: 1.996494574 | N22: 0.1832270248 | O22: 2.071402863 | P22: 0.1830937042 | Q22: 2.990763589 | R22: 0.2276465845 | S22: 2.912709925 | T22: 0.2294985151 | U22: 3.156992621 | V22: 0.244779126 | W22: 3.251970075 | X22: 0.2439319465 | Y22: 3.221039495 | Z22: 0.2478130258 | AA22: 3.327215834 | AB22: 0.2509861868 | AC22: 4.451998815 | AD22: 0.3006640706 | AE22: 4.61595921 | AF22: 0.3086065403 | AG22: 4.639342182 | AH22: 0.306987719 | AI22: 4.932916796 | AJ22: 0.3210508512 | AK22: 4.9365064 | AL22: 0.3205240159 | AM22: 4.592485615 | AN22: 0.2952893132 | AO22: 4.935205865 | AP22: 0.3190135345 | AQ22: 4.88719609 | AR22: 0.3176725172 | AS22: 4.893321232 | AT22: 0.3161860581 | AU22: 4.868335166 | AV22: 0.3153886761 | AW22: 4.950504614 | AX22: 0.3194166888 | AY22: 5.033998086 | AZ22: 0.3218104423 | BA22: 4.934883094 | BB22: 0.3173773184 | BC22: 4.763236098 | BD22: 0.307495839 | BE22: 5.081429919 | BF22: 0.3284103576 | BG22: 5.007853481 | BH22: 0.3195119274 | BI22: 4.717028751 | BJ22: 0.3019196903 | BK22: 5.039238848 | BL22: 0.3241541454 | BM22: 4.956816235 | BN22: 0.3175157003 | BO22: 4.856318112 | BP22: 0.3131407649 | BQ22: 5.165364173 | BR22: 0.3314420655 | BS22: 5.016626611 | BT22: 0.3196538372 | BU22: 4.937356693 | BV22: 0.3155776254 | BW22: 4.829317414 | BX22: 0.3046210203 | BY22: 4.9723753 | BZ22: 0.3170991562 | CA22: 4.916698681 | CB22: 0.3170458088 | CC22: 4.983808836 | CD22: 0.317987181 | CE22: 5.021481259 | CF22: 0.3201311888 | CG22: 4.987444002 | CH22: 0.31779933 | CI22: 5.09578763 | CJ22: 0.3261910283 | CK22: 4.963562702 | CL22: 0.3163736408 | CM22: 4.947416126 | CN22: 0.3164948138 | CO22: 5.162693416 | CP22: 0.3254034168 | CQ22: 5.207437297 | CR22: 0.3319645943 | CS22: 4.963912525 | CT22: 0.3169398967 | CU22: 5.004450878 | CV22: 0.3187476214 | CW22: 5.153952616 | CX22: 0.3279192058 | CY22: 4.949906524 | CZ22: 0.3145466337 | DA22: 4.970597376 | DB22: 0.3155374722 | DC22: 4.917253262 | DD22: 0.3120031106 | DE22: 5.076452168 | DF22: 0.3200502777 | DG22: 4.990745281 | DH22: 0.31802979 | DI22: 4.903464008 | DJ22: 0.3113586184 | DK22: 5.148224192 | DL22: 0.3253482008 | DM22: 4.978725931 | DN22: 0.3126007929 | DO22: 4.896555504 | DP22: 0.3114549724 | DQ22: 5.007722741 | DR22: 0.3194983044 | DS22: 5.051637581 | DT22: 0.3195144334 | DU22: 5.078514369 | DV22: 0.3195056712 | DW22: 5.023254504 | DX22: 0.3156389218 | DY22: 4.988151902 | DZ22: 0.313649932 | EA22: 4.990581887 | EB22: 0.3168666488 | EC22: 4.919505059 | ED22: 0.3097208909 | EE22: 5.133141003 | EF22: 0.323517823 | EG22: 5.020333966 | EH22: 0.3159766951 | EI22: 5.042902278 | EJ22: 0.3153326223 | EK22: 5.072676458 | EL22: 0.3223225118 | EM22: 5.062225524 | EN22: 0.3180164881 | EO22: 5.102324657 | EP22: 0.3195597027 | EQ22: 5.063083638 | ER22: 0.3187069244 | ES22: 5.038575816 | ET22: 0.3155651284 | EU22: 5.015768798 | EV22: 0.3136175012 | EW22: 5.206439493 | EX22: 0.3275331361 | EY22: 5.322153656 | EZ22: 0.3330872643 | FA22: 5.239650989 | FB22: 0.3264001633 | FC22: 5.257721057 | FD22: 0.3268103228 | FE22: 5.289788031 | FF22: 0.3267293912 | FG22: 5.430063176 | FH22: 0.3343697001 | FI22: 5.356387198 | FJ22: 0.3286670928 | FK22: 5.663330971 | FL22: 0.3389152729 | FM22: 5.556596992 | FN22: 0.3319489349 | FO22: 5.655574848 | FP22: 0.3404874059 | FQ22: 5.767079971 | FR22: 0.3396248968 | FS22: 6.055528563 | FT22: 0.3447612777 | FU22: 6.822171546 | FV22: 0.3777636767 | FW22: 8.751405942 | FX22: 0.4322874398 | FY22: 10.21628301 | FZ22: 0.4522029165 | GA22: 10.57028264 | GB22: 0.470064369 | GC22: 10.39957891 | GD22: 0.4570028895 | GE22: 10.89334808 | GF22: 0.4696909144 | GG22: 11.04355418 | GH22: 0.474204754 | GI22: 10.95147868 | GJ22: 0.46279075 | GK22: 11.34218506 | GL22: 0.4746190834 | GM22: 11.57932458 | GN22: 0.4839442195 | GO22: 11.75035776 | GP22: 0.4860237117 | GQ22: 11.66413027 | GR22: 0.4761757474 | GS22: 11.99731026 | GT22: 0.4841465319 | GU22: 12.58767514 | GV22: 0.5088241853 | GW22: 12.18546422 | GX22: 0.4897601814 | GY22: 12.58327493 | GZ22: 0.4995072551 | HA22: 13.54808053 | HB22: 0.5135827048 | HC22: 14.78147655 | HD22: 0.5264702257 | HE22: 15.78406273 | HF22: 0.5562393347 | HG22: 15.49176738 | HH22: 0.5367795932 | HI22: 16.44046501 | HJ22: 0.564275317 | HK22: 16.84049835 | HL22: 0.5657508402 | HM22: 17.44306233 | HN22: 0.5710634739 | HO22: 17.97648616 | HP22: 0.5716770213
C23: 4.752785646 | D23: 0.3177 | E23: 10.4270197 | F23: 0.4676969586 | I23: 1.819093542 | J23: 0.1767751698 | K23: 2.021038418 | L23: 0.1817028944 | M23: 2.000082444 | N23: 0.1844440125 | O23: 2.075558801 | P23: 0.1843161655 | Q23: 2.99715685 | R23: 0.2292160775 | S23: 2.919209091 | T23: 0.2310936549 | U23: 3.162760505 | V23: 0.2464079672 | W23: 3.259073143 | X23: 0.2456107185 | Y23: 3.226298825 | Z23: 0.2494474988 | AA23: 3.332763825 | AB23: 0.2526425543 | AC23: 4.459001265 | AD23: 0.3026211759 | AE23: 4.622282196 | AF23: 0.3105846047 | AG23: 4.646403375 | AH23: 0.3090069647 | AI23: 4.940658681 | AJ23: 0.3231525172 | AK23: 4.94384077 | AL23: 0.3226388704 | AM23: 4.60043123 | AN23: 0.2972592627 | AO23: 4.943240635 | AP23: 0.3210713574 | AQ23: 4.893751598 | AR23: 0.3197149625 | AS23: 4.900482435 | AT23: 0.318251008 | AU23: 4.875132415 | AV23: 0.3174246942 | AW23: 4.958189153 | AX23: 0.3214897222 | AY23: 5.042574898 | AZ23: 0.323962499 | BA23: 4.942551437 | BB23: 0.3194523041 | BC23: 4.769694776 | BD23: 0.309503123 | BE23: 5.089014023 | BF23: 0.3304405401 | BG23: 5.016285339 | BH23: 0.3216063944 | BI23: 4.724798536 | BJ23: 0.3038856006 | BK23: 5.046256959 | BL23: 0.3262497696 | BM23: 4.964048759 | BN23: 0.3195890347 | BO23: 4.862856045 | BP23: 0.3151038633 | BQ23: 5.172748686 | BR23: 0.3335697402 | BS23: 5.024240864 | BT23: 0.3217613108 | BU23: 4.944359527 | BV23: 0.317649929 | BW23: 4.83851663 | BX23: 0.3066774374 | BY23: 4.979964833 | BZ23: 0.3191767565 | CA23: 4.922970282 | CB23: 0.3190105305 | CC23: 4.99156207 | CD23: 0.320052665 | CE23: 5.028921894 | CF23: 0.3222212485 | CG23: 4.995230469 | CH23: 0.319863909 | CI23: 5.103290376 | CJ23: 0.328256321 | CK23: 4.971171124 | CL23: 0.318438755 | CM23: 4.954344078 | CN23: 0.3185301451 | CO23: 5.171270012 | CP23: 0.3275342703 | CQ23: 5.215316132 | CR23: 0.3341013304 | CS23: 4.970526391 | CT23: 0.319001693 | CU23: 5.011767425 | CV23: 0.3207848775 | CW23: 5.161304795 | CX23: 0.3300480201 | CY23: 4.957107397 | CZ23: 0.3165924206 | DA23: 4.978037075 | DB23: 0.317582184 | DC23: 4.924180854 | DD23: 0.3140469451 | DE23: 5.084969996 | DF23: 0.3221761211 | DG23: 4.997746197 | DH23: 0.3200568621 | DI23: 4.910201847 | DJ23: 0.3133964178 | DK23: 5.156181218 | DL23: 0.3274891167 | DM23: 4.987248248 | DN23: 0.3146735081 | DO23: 4.903579384 | DP23: 0.3134271346 | DQ23: 5.014491255 | DR23: 0.3214683046 | DS23: 5.059252397 | DT23: 0.3215823718 | DU23: 5.086821333 | DV23: 0.3216148646 | DW23: 5.031364831 | DX23: 0.3177197726 | DY23: 4.995061539 | DZ23: 0.3157109089 | EA23: 4.997120098 | EB23: 0.3188861171 | EC23: 4.927514804 | ED23: 0.3117058419 | EE23: 5.140931973 | EF23: 0.3256135035 | EG23: 5.027381908 | EH23: 0.318052356 | EI23: 5.051108332 | EJ23: 0.3174204038 | EK23: 5.079584883 | EL23: 0.3242720466 | EM23: 5.069894152 | EN23: 0.3200816348 | EO23: 5.11065085 | EP23: 0.3216767709 | EQ23: 5.070025798 | ER23: 0.3207590143 | ES23: 5.046323374 | ET23: 0.317606398 | EU23: 5.023148236 | EV23: 0.3156824795 | EW23: 5.213856721 | EX23: 0.3295729597 | EY23: 5.330234927 | EZ23: 0.3352530785 | FA23: 5.247535598 | FB23: 0.3285034334 | FC23: 5.26578809 | FD23: 0.3289252073 | FE23: 5.297996019 | FF23: 0.3288771314 | FG23: 5.437964322 | FH23: 0.3365272521 | FI23: 5.364502452 | FJ23: 0.3308123388 | FK23: 5.672971167 | FL23: 0.3411547151 | FM23: 5.565229897 | FN23: 0.3341338386 | FO23: 5.662884367 | FP23: 0.3426485047 | FQ23: 5.776081262 | FR23: 0.3418531095 | FS23: 6.065232079 | FT23: 0.3470075156 | FU23: 6.832553894 | FV23: 0.3802031433 | FW23: 8.763562815 | FX23: 0.4348891309 | FY23: 10.23023345 | FZ23: 0.4550457823 | GA23: 10.58401004 | GB23: 0.4727101636 | GC23: 10.41421943 | GD23: 0.4599554919 | GE23: 10.90882868 | GF23: 0.4727358586 | GG23: 11.05770924 | GH23: 0.4772790485 | GI23: 10.96830097 | GJ23: 0.4658963757 | GK23: 11.35986459 | GL23: 0.4776982247 | GM23: 11.5957448 | GN23: 0.4869856761 | GO23: 11.76537039 | GP23: 0.4890286771 | GQ23: 11.68162681 | GR23: 0.4792775069 | GS23: 12.01384622 | GT23: 0.487276266 | GU23: 12.60475403 | GV23: 0.5120167467 | GW23: 12.20195795 | GX23: 0.4930131308 | GY23: 12.60046002 | GZ23: 0.5027121969 | HA23: 13.56961237 | HB23: 0.5168935533 | HC23: 14.80085029 | HD23: 0.5299069885 | HE23: 15.80926324 | HF23: 0.5598834576 | HG23: 15.51501554 | HH23: 0.5402986556 | HI23: 16.46353182 | HJ23: 0.5679488431 | HK23: 16.86457117 | HL23: 0.5694179034 | HM23: 17.57098436 | HN23: 0.5712417522 | HO23: 18.00162522 | HP23: 0.5754148219
C24: 4.609797192 | D24: 0.308 | E24: 11.59651172 | F24: 0.4903965962 | I24: Black | J24: Black | K24: Black | L24: Black | M24: Black | N24: Black | O24: Black | P24: Black | Q24: Black | R24: Black | S24: Black | T24: Black | U24: Black | V24: Black | W24: Black | X24: Black | Y24: Black | Z24: Black | AA24: Black | AB24: Black | AC24: Black | AD24: Black | AE24: Black | AF24: Black | AG24: Black | AH24: Black | AI24: Black | AJ24: Black | AK24: Black | AL24: Black | AM24: Black | AN24: Black | AO24: Black | AP24: Black | AQ24: Black | AR24: Black | AS24: Black | AT24: Black | AU24: Black | AV24: Black | AW24: Black | AX24: Black | AY24: Black | AZ24: Black | BA24: Black | BB24: Black | BC24: Black | BD24: Black | BE24: Black | BF24: Black | BG24: Black | BH24: Black | BI24: Black | BJ24: Black | BK24: Black | BL24: Black | BM24: Black | BN24: Black | BO24: Black | BP24: Black | BQ24: Black | BR24: Black | BS24: Black | BT24: Black | BU24: Black | BV24: Black | BW24: Black | BX24: Black | BY24: Black | BZ24: Black | CA24: Black | CB24: Black | CC24: Black | CD24: Black | CE24: Black | CF24: Black | CG24: Black | CH24: Black | CI24: Black | CJ24: Black | CK24: Black | CL24: Black | CM24: Black | CN24: Black | CO24: Black | CP24: Black | CQ24: Black | CR24: Black | CS24: Black | CT24: Black | CU24: Black | CV24: Black | CW24: Black | CX24: Black | CY24: Black | CZ24: Black | DA24: Black | DB24: Black | DC24: Black | DD24: Black | DE24: Black | DF24: Black | DG24: Black | DH24: Black | DI24: Black | DJ24: Black | DK24: Black | DL24: Black | DM24: Black | DN24: Black | DO24: Black | DP24: Black | DQ24: Black | DR24: Black | DS24: Black | DT24: Black | DU24: Black | DV24: Black | DW24: Black | DX24: Black | DY24: Black | DZ24: Black | EA24: Black | EB24: Black | EC24: Black | ED24: Black | EE24: Black | EF24: Black | EG24: Black | EH24: Black | EI24: Black | EJ24: Black | EK24: Black | EL24: Black | EM24: Black | EN24: Black | EO24: Black | EP24: Black | EQ24: Black | ER24: Black | ES24: Black | ET24: Black | EU24: Black | EV24: Black | EW24: Black | EX24: Black | EY24: Black | EZ24: Black | FA24: Black | FB24: Black | FC24: Black | FD24: Black | FE24: Black | FF24: Black | FG24: Black | FH24: Black | FI24: Black | FJ24: Black | FK24: Black | FL24: Black | FM24: Black | FN24: Black | FO24: Black | FP24: Black | FQ24: Black | FR24: Black | FS24: Black | FT24: Black | FU24: Black | FV24: Black | FW24: Black | FX24: Black | FY24: Black | FZ24: Black | GA24: Black | GB24: Black | GC24: Black | GD24: Black | GE24: Black | GF24: Black | GG24: Black | GH24: Black | GI24: Black | GJ24: Black | GK24: Black | GL24: Black | GM24: Black | GN24: Black | GO24: Black | GP24: Black | GQ24: Black | GR24: Black | GS24: Black | GT24: Black | GU24: Black | GV24: Black | GW24: Black | GX24: Black | GY24: Black | GZ24: Black | HA24: Black | HB24: Black | HC24: Black | HD24: Black | HE24: Black | HF24: Black | HG24: Black | HH24: Black | HI24: Black | HJ24: Black | HK24: Black | HL24: Black | HM24: 17.70176086 | HN24: 0.5720038499 | HO24: Black | HP24: Black
C25: 4.900930812 | D25: 0.327 | E25: 12.88569476 | F25: 0.5134473101 | HM25: 17.82967627 | HN25: 0.5733164599
C26: 4.807649477 | D26: 0.3196 | E26: 14.30681852 | F26: 0.5368545301 | HM26: 17.94914009 | HN26: 0.5751222147
C27: 4.53236792 | D27: 0.3013 | E27: 15.87338641 | F27: 0.5606237699 | HM27: 18.05493116 | HN27: 0.5773421942
C28: 4.872333121 | D28: 0.3239 | E28: 17.60028383 | F28: 0.5847606285 | HM28: 18.1424259 | HN28: 0.5798793746
C29: 4.785085415 | D29: 0.3181 | E29: 19.5039196 | F29: 0.6092707917 | HM29: 18.20780039 | HN29: 0.5826228691
C30: 4.700638051 | D30: 0.3122 | E30: 21.60238193 | F30: 0.6341600331 | HM30: 18.24819743 | HN30: 0.5854527736
C31: 4.989771032 | D31: 0.3311 | E31: 22 | F31: 0.6385043823 | HM31: 18.26185149 | HN31: 0.5882454078
C32: 4.835953483 | D32: 0.3206 | E32: IsoLine | F32: IsoLine | HM32: Black | HN32: Black
C33: 4.771091974 | D33: 0.3163
C34: 4.61120081 | D34: 0.3057
C35: 4.792209674 | D35: 0.3177
C36: 4.767236159 | D36: 0.3159
C37: 4.799609694 | D37: 0.3179
C38: 4.844794349 | D38: 0.3206
C39: 4.802481734 | D39: 0.3178
C40: 4.917330259 | D40: 0.3254
C41: 4.782836592 | D41: 0.3165
C42: 4.782662863 | D42: 0.3162
C43: 4.959630464 | D43: 0.3279
C44: 5.020166678 | D44: 0.3316
C45: 4.806738228 | D45: 0.3173
C46: 4.830463102 | D46: 0.3182
C47: 4.979232864 | D47: 0.328
C48: 4.778849102 | D48: 0.3148
C49: 4.793825628 | D49: 0.3155
C50: 4.752800813 | D50: 0.3128
C51: 4.874355821 | D51: 0.3208
C52: 4.82421438 | D52: 0.3175
C53: 4.743426352 | D53: 0.3119
C54: 4.95938228 | D54: 0.3261
C55: 4.776648538 | D55: 0.3138
C56: 4.729460486 | D56: 0.3107
C57: 4.846488894 | D57: 0.3181
C58: 4.870699243 | D58: 0.3194
C59: 4.881373913 | D59: 0.3201
C60: 4.830839514 | D60: 0.3165
C61: 4.824509443 | D61: 0.3158
C62: 4.834984463 | D62: 0.3164
C63: 4.72914612 | D63: 0.309
C64: 4.948003044 | D64: 0.3233
C65: 4.853114028 | D65: 0.3171
C66: 4.848295122 | D66: 0.3165
C67: 4.908037147 | D67: 0.3204
C68: 4.880041992 | D68: 0.318
C69: 4.904595662 | D69: 0.3196
C70: 4.898035332 | D70: 0.3186
C71: 4.854456979 | D71: 0.3152
C72: 4.840595903 | D72: 0.3143
C73: 5.029909279 | D73: 0.3263
C74: 5.130106675 | D74: 0.3328
C75: 5.052254112 | D75: 0.326
C76: 5.0660559 | D76: 0.3266
C77: 5.0949652 | D77: 0.3273
C78: 5.24227757 | D78: 0.3341
C79: 5.163650122 | D79: 0.3288
C80: 5.434545715 | D80: 0.3392
C81: 5.35173223 | D81: 0.3326
C82: 5.481640008 | D82: 0.3398
C83: 5.553332093 | D83: 0.3396
C84: 5.825148725 | D84: 0.3446
C85: 6.575596474 | D85: 0.3773
C86: 8.462445667 | D86: 0.4298
C87: 9.885044628 | D87: 0.4509
C88: 10.24397936 | D88: 0.4661
C89: 10.05218001 | D89: 0.4568
C90: 10.5261039 | D90: 0.4698
C91: 10.70766153 | D91: 0.4744
C92: 10.55249413 | D92: 0.463
C93: 10.92276536 | D93: 0.4738
C94: 11.18954937 | D94: 0.4822
C95: 11.39383376 | D95: 0.4841
C96: 11.24913283 | D96: 0.476
C97: 11.60502869 | D97: 0.484
C98: 12.18228261 | D98: 0.5072
C99: 11.79424141 | D99: 0.4902
C100: 12.17553476 | D100: 0.4989
C101: 13.03741575 | D101: 0.5125
C102: 14.32181345 | D102: 0.5254
C103: 15.18659957 | D103: 0.556
C104: 14.9406768 | D104: 0.5375
C105: 15.89355169 | D105: 0.5645
C106: 16.26969936 | D106: 0.5654
C107: 17.63629698 | D107: 0.5846
C108: 17.3805544 | D108: 0.5722
C109: IsoLine | D109: IsoLine

Sheet Publication File
A1: Alonso-Torres, D., Beauchamp, B., Guest, B., Hadlari, T., and Matthews, W., 2018, Late Paleozoic to Triassic arc magmatism north of the Sverdrup Basin in the Canadian Arctic: Evidence from detrital zircon U-Pb geochronology: Lithosphere, https://doi.org/10.1130/L683.1. GSA Data Repository Item 2018093
A4: University of Calgary, Centre for Pure and Applied Tectonics and Thermochronology
A6: DA-19 | C6: f206c | D6: 207Pb CPS | E6: 206Pb CPS | F6: U (ppm)1 | G6: U/Th | H6: 206Pb/204Pb | I6: 1s % | J6: Data for Tera-Wasserburg plot2 | N6: 208Pb/206Pb | O6: 2sx (%) | P6: Data for Wetherill plot2 | U6: 208Pb/232Th | V6: 2sx (%) | W6: Dates | AF6: 208Pb/232Th | AG6: 2sx (ABS) | AH6: 2stotal (ABS) | AI6: Prob. Conc. (%) | AJ6: Concordance3 | AK6: Comments | AL6: Accepted Ages4
A7: Sample | B7: Spot | J7: 238U/206Pb | K7: 2sx (%) | L7: 207Pb/206Pb | M7: 2sx (%) | P7: 207Pb/235Pb | Q7: 2sx (%) | R7: 206Pb/238U | S7: 2sx (%) | T7: Rho | W7: 207Pb/206Pb | X7: 2sx (ABS) | Y7: 2stotal (ABS) | Z7: 206Pb/238U | AA7: 2sx (ABS) | AB7: 2stotal (ABS) | AC7: 207Pb/235Pb | AD7: 2sx (ABS) | AE7: 2stotal (ABS) | AL7: Date (Ma) | AM7: 2sx (ABS) | AN7: 2sx (%) | AO7: 2stotal (ABS) | AP7: 2stotal (%)
A8: UK019 | B8: UK019_261 | C8: NA | D8: 422 | E8: 8010 | F8: 456.6 | G8: 1.666423358 | H8: NA | I8: NA | J8: 15.92356688 | K8: 3.985120406 | L8: 0.0566 | M8: 4.996108647 | N8: NA | O8: NA | P8: 0.4900917024 | Q8: 6.390796998 | R8: 0.0628 | S8: 3.985120406 | T8: 0.010851 | U8: NA | V8: NA | W8: NA | X8: NA | Y8: NA | Z8: 392.631329 | AA8: 15.17988753 | AB8: 16.02865389 | AC8: 404.9730043 | AD8: 21.34584039 | AE8: 22.0507575 | AF8: NA | AG8: NA | AH8: NA | AI8: 0.3447280793 | AJ8: NA | AL8: 392.631329 | AM8: 15.17988753 | AN8: 3.866193656 | AO8: 16.02865389 | AP8: 4.040296513
A9: UK019 | B9: UK019_89 | C9: NA | D9: 279 | E9: 4820 | F9: 244 | G9: 1.025210084 | H9: NA | I9: NA | J9: 15.60062402 | K9: 4.29555426 | L9: 0.0594 | M9: 7.649899993 | N9: NA | O9: NA | P9: 0.5249836152 | Q9: 8.773411896 | R9: 0.0641 | S9: 4.29555426 | T9: 0.026566 | U9: NA | V9: NA | W9: NA | X9: NA | Y9: NA | Z9: 400.5116613 | AA9: 16.68068842 | AB9: 17.48641759 | AC9: 428.4750631 | AD9: 30.67687458 | AE9: 31.218676 | AF9: NA | AG9: NA | AH9: NA | AI9: 0.1080982569 | AJ9: NA | AK9: DO | AL9: 400.5116613 | AM9: 16.68068842 | AN9: 4.164844631 | AO9: 17.48641759 | AP9: 4.301132443
A10: UK019 | B10: UK019_38 | C10: NA | D10: 710 | E10: 13600 | F10: 642 | G10: 2.720338983 | H10: NA | I10: NA | J10: 15.57632399 | K10: 4.048916613 | L10: 0.0571 | M10: 3.866686245 | N10: NA | O10: NA | P10: 0.5054432616 | Q10: 5.598659505 | R10: 0.0642 | S10: 4.048916613 | T10: 0.33837 | U10: NA | V10: NA | W10: NA | X10: NA | Y10: NA | Z10: 401.1174419 | AA10: 15.74597927 | AB10: 16.59957959 | AC10: 415.3803938 | AD10: 19.08855895 | AE10: 19.90594416 | AF10: NA | AG10: NA | AH10: NA | AI10: 0.1594667845 | AJ10: NA | AL10: 401.1174419 | AM10: 15.74597927 | AN10: 3.925528442 | AO10: 16.59957959 | AP10: 4.087197937
A11: UK019 | B11: UK019_177 | C11: NA | D11: 357 | E11: 6790 | F11: 332 | G11: 1.456140351 | H11: NA | I11: NA | J11: 15.31393568 | K11: 4.017546639 | L11: 0.0566 | M11: 5.766528054 | N11: NA | O11: NA | P11: 0.5096017224 | Q11: 7.028052845 | R11: 0.0653 | S11: 4.017546639 | T11: 0.38135 | U11: NA | V11: NA | W11: NA | X11: NA | Y11: NA | Z11: 407.777274 | AA11: 15.87527528 | AB11: 16.749025 | AC11: 418.1813028 | AD11: 24.0943346 | AE11: 24.75414862 | AF11: NA | AG11: NA | AH11: NA | AI11: 0.3724228579 | AJ11: NA | AL11: 407.777274 | AM11: 15.87527528 | AN11: 3.893124088 | AO11: 16.749025 | AP11: 4.087365881
A12: UK019 | B12: UK019_67 | C12: NA | D12: 246 | E12: 4420 | F12: 227 | G12: 1.474025974 | H12: NA | I12: NA | J12: 15.24390244 | K12: 4.241860245 | L12: 0.0602 | M12: 7.445952734 | N12: NA | O12: NA | P12: 0.5445046656 | Q12: 8.569456836 | R12: 0.0656 | S12: 4.241860245 | T12: 0.12233 | U12: NA | V12: NA | W12: NA | X12: NA | Y12: NA | Z12: 409.5923984 | AA12: 16.83391679 | AB12: 17.6672743 | AC12: 441.3903175 | AD12: 30.68511585 | AE12: 31.25293028 | AF12: NA | AG12: NA | AH12: NA | AI12: 0.0574204388 | AJ12: NA | AL12: 409.5923984 | AM12: 16.83391679 | AN12: 4.10991924 | AO12: 17.6672743 | AP12: 4.249759743
A13: UK019 | B13: UK019_146 | C13: NA | D13: 787 | E13: 14900 | F13: 712 | G13: 1.202702703 | H13: NA | I13: NA | J13: 15.03759398 | K13: 3.948795836 | L13: 0.0559 | M13: 3.682169186 | N13: NA | O13: NA | P13: 0.512548218 | Q13: 5.399199799 | R13: 0.0665 | S13: 3.948795836 | T13: 0.26349 | U13: NA | V13: NA | W13: NA | X13: NA | Y13: NA | Z13: 415.034707 | AA13: 15.87247124 | AB13: 16.77592407 | AC13: 420.1612328 | AD13: 18.57946804 | AE13: 19.43359352 | AF13: NA | AG13: NA | AH13: NA | AI13: 0.6259390006 | AJ13: NA | AL13: 415.034707 | AM13: 15.87247124 | AN13: 3.824372026 | AO13: 16.77592407 | AP13: 4.022541228
A14: UK019 | B14: UK019_201 | C14: NA | D14: 1240 | E14: 24800 | F14: 1360 | G14: 1.319107662 | H14: NA | I14: NA | J14: 14.85884101 | K14: 4.006550644 | L14: 0.0531 | M14: 2.770140146 | N14: NA | O14: NA | P14: 0.4927321044 | Q14: 4.870946981 | R14: 0.0673 | S14: 4.006550644 | T14: 0.61322 | U14: NA | V14: NA | W14: NA | X14: NA | Y14: NA | Z14: 419.8684605 | AA14: 16.28614589 | AB14: 17.1873072 | AC14: 406.7706433 | AD14: 16.32712538 | AE14: 17.2447011 | AF14: NA | AG14: NA | AH14: NA | AI14: 0.0673949239 | AJ14: NA | AL14: 419.8684605 | AM14: 16.28614589 | AN14: 3.878868604 | AO14: 17.1873072 | AP14: 4.159084085
A15: UK019 | B15: UK019_77 | C15: NA | D15: 265 | E15: 5320 | F15: 268 | G15: 1.083265966 | H15: NA | I15: NA | J15: 14.59854015 | K15: 4.06999371 | L15: 0.0535 | M15: 7.204673564 | N15: NA | O15: NA | P15: 0.50529573 | Q15: 8.274791234 | R15: 0.0685 | S15: 4.06999371 | T15: -0.10678 | U15: NA | V15: NA | W15: NA | X15: NA | Y15: NA | Z15: 427.1123015 | AA15: 16.82011552 | AB15: 17.72276621 | AC15: 415.2808826 | AD15: 28.2112601 | AE15: 28.77071685 | AF15: NA | AG15: NA | AH15: NA | AI15: 0.4895957878 | AJ15: NA | AL15: 427.1123015 | AM15: 16.82011552 | AN15: 3.938101398 | AO15: 17.72276621 | AP15: 4.182468429
A16: UK019 | B16: UK019_219 | C16: NA | D16: 677 | E16: 12470 | F16: 622 | G16: 1.180265655 | H16: NA | I16: NA | J16: 14.59854015 | K16: 4.000397226 | L16: 0.057 | M16: 4.377801894 | N16: NA | O16: NA | P16: 0.53835246 | Q16: 5.93028898 | R16: 0.0685 | S16: 4.000397226 | T16: 0.29962 | U16: NA | V16: NA | W16: NA | X16: NA | Y16: NA | Z16: 427.1123015 | AA16: 16.53249196 | AB16: 17.45002685 | AC16: 437.3376784 | AD16: 21.07555309 | AE16: 21.88175599 | AF16: NA | AG16: NA | AH16: NA | AI16: 0.3655484257 | AJ16: NA | AK16: CX | AL16: 427.1123015 | AM16: 16.53249196 | AN16: 3.870759961 | AO16: 17.45002685 | AP16: 4.053726461
A17: UK019 | B17: UK019_225 | C17: NA | D17: 377 | E17: 6980 | F17: 325 | G17: 1.96969697 | H17: NA | I17: NA | J17: 14.43001443 | K17: 4.017986633 | L17: 0.0571 | M17: 5.522860325 | N17: NA | O17: NA | P17: 0.5455952964 | Q17: 6.829802542 | R17: 0.0693 | S17: 4.017986633 | T17: 0.34534 | U17: NA | V17: NA | W17: NA | X17: NA | Y17: NA | Z17: 431.9370107 | AA17: 16.78654591 | AB17: 17.71025393 | AC17: 442.1070633 | AD17: 24.48482786 | AE17: 25.19427982 | AF17: NA | AG17: NA | AH17: NA | AI17: 0.4066055015 | AJ17: NA | AL17: 431.9370107 | AM17: 16.78654591 | AN17: 3.886341178 | AO17: 17.71025393 | AP17: 4.078096861
A18: UK019 | B18: UK019_290 | C18: NA | D18: 179 | E18: 3600 | F18: 198.7 | G18: 2.252834467 | H18: NA | I18: NA | J18: 14.4092219 | K18: 4.063875979 | L18: 0.0526 | M18: 8.58762224 | N18: NA | O18: NA | P18: 0.5033226672 | Q18: 9.500649647 | R18: 0.0694 | S18: 4.063875979 | T18: -0.0033866 | U18: NA | V18: NA | W18: NA | X18: NA | Y18: NA | Z18: 432.5398455 | AA18: 17.00117543 | AB18: 17.9162216 | AC18: 413.9490987 | AD18: 32.30903857 | AE18: 32.79630619 | AF18: NA | AG18: NA | AH18: NA | AI18: 0.3063620421 | AJ18: NA | AL18: 432.5398455 | AM18: 17.00117543 | AN18: 3.9305455 | AO18: 17.9162216 | AP18: 4.181920624
A19: UK019 | B19: UK019_223 | C19: NA | D19: 143 | E19: 2750 | F19: 131.9 | G19: 1.753989362 | H19: NA | I19: NA | J19: 13.9275766 | K19: 4.327638974 | L19: 0.0557 | M19: 10.10696978 | N19: NA | O19: NA | P19: 0.5514179688 | Q19: 10.99451214 | R19: 0.0718 | S19: 4.327638974 | T19: 0.085688 | U19: NA | V19: NA | W19: NA | X19: NA | Y19: NA | Z19: 446.9909949 | AA19: 18.68878798 | AB19: 19.57848274 | AC19: 445.9250965 | AD19: 39.69896478 | AE19: 40.14703546 | AF19: NA | AG19: NA | AH19: NA | AI19: 0.9598728275 | AJ19: NA | AL19: 446.9909949 | AM19: 18.68878798 | AN19: 4.181021137 | AO19: 19.57848274 | AP19: 4.381725998
A20: UK019 | B20: UK019_294 | C20: NA | D20: 755 | E20: 14500 | F20: 803 | G20: 0.5440379404 | H20: NA | I20: NA | J20: 13.77410468 | K20: 3.89999842 | L20: 0.0554 | M20: 3.863776728 | N20: NA | O20: NA | P20: 0.5545588752 | Q20: 5.489877802 | R20: 0.0726 | S20: 3.89999842 | T20: -0.10723 | U20: NA | V20: NA | W20: NA | X20: NA | Y20: NA | Z20: 451.8008546 | AA20: 17.01697941 | AB20: 18.00929547 | AC20: 447.9787012 | AD20: 19.88788526 | AE20: 20.77287505 | AF20: NA | AG20: NA | AH20: NA | AI20: 0.781099778 | AJ20: NA | AL20: 451.8008546 | AM20: 17.01697941 | AN20: 3.766477916 | AO20: 18.00929547 | AP20: 4.000697705
A21: UK019 | B21: UK019_101 | C21: NA | D21: 313 | E21: 6270 | F21: 263 | G21: 1.730263158 | H21: NA | I21: NA | J21: 13.35113485 | K21: 4.030997076 | L21: 0.053 | M21: 6.716834598 | N21: NA | O21: NA | P21: 0.547342236 | Q21: 7.833569074 | R21: 0.0749 | S21: 4.030997076 | T21: 0.41639 | U21: NA | V21: NA | W21: NA | X21: NA | Y21: NA | Z21: 465.6092441 | AA21: 18.10696181 | AB21: 19.0970738 | AC21: 443.2540719 | AD21: 28.14319252 | AE21: 28.76524038 | AF21: NA | AG21: NA | AH21: NA | AI21: 0.08754937117 | AJ21: NA | AL21: 465.6092441 | AM21: 18.10696181 | AN21: 3.888875067 | AO21: 19.0970738 | AP21: 4.136516599
A22: UK019 | B22: UK019_279 | C22: NA | D22: 289 | E22: 5660 | F22: 277.6 | G22: 1.935843794 | H22: NA | I22: NA | J22: 13.35113485 | K22: 4.030997076 | L22: 0.0552 | M22: 6.623419533 | N22: NA | O22: NA | P22: 0.5700621024 | Q22: 7.753620041 | R22: 0.0749 | S22: 4.030997076 | T22: -0.0097359 | U22: NA | V22: NA | W22: NA | X22: NA | Y22: NA | Z22: 465.6092441 | AA22: 18.10696181 | AB22: 19.0970738 | AC22: 458.054703 | AD22: 28.59265842 | AE22: 29.23760776 | AF22: NA | AG22: NA | AH22: NA | AI22: 0.6560430273 | AJ22: NA | AL22: 465.6092441 | AM22: 18.10696181 | AN22: 3.888875067 | AO22: 19.0970738 | AP22: 4.120908534
A23: UK019 | B23: UK019_18 | C23: NA | D23: 677 | E23: 13380 | F23: 500.4 | G23: 2.67022412 | H23: NA | I23: NA | J23: 13.05483029 | K23: 3.949210864 | L23: 0.0542 | M23: 3.719759779 | N23: NA | O23: NA | P23: 0.5724391536 | Q23: 5.425207762 | R23: 0.0766 | S23: 3.949210864 | T23: 0.23308 | U23: NA | V23: NA | W23: NA | X23: NA | Y23: NA | Z23: 475.7964683 | AA23: 18.11357049 | AB23: 19.14437605 | AC23: 459.5908156 | AD23: 20.05664303 | AE23: 20.97008521 | AF23: NA | AG23: NA | AH23: NA | AI23: 0.1701786203 | AJ23: NA | AL23: 475.7964683 | AM23: 18.11357049 | AN23: 3.806999779 | AO23: 19.14437605 | AP23: 4.084754059
A24: UK019 | B24: UK019_211 | C24: NA | D24: 458 | E24: 8590 | F24: 369 | G24: 2.089467724 | H24: NA | I24: NA | J24: 12.85347044 | K24: 4.057402595 | L24: 0.0564 | M24: 4.811944068 | N24: NA | O24: NA | P24: 0.6050064096 | Q24: 6.294229225 | R24: 0.0778 | S24: 4.057402595 | T24: 0.17846 | U24: NA | V24: NA | W24: NA | X24: NA | Y24: NA | Z24: 482.9777697 | AA24: 18.88030334 | AB24: 19.89965213 | AC24: 480.4058995 | AD24: 24.09556878 | AE24: 24.91556071 | AF24: NA | AG24: NA | AH24: NA | AI24: 0.8532911346 | AJ24: NA | AL24: 482.9777697 | AM24: 18.88030334 | AN24: 3.909145415 | AO24: 19.89965213 | AP24: 4.12803127
A25: UK019 | B25: UK019_280 | C25: NA | D25: 429 | E25: 7900 | F25: 386 | G25: 2.662068966 | H25: NA | I25: NA | J25: 12.64222503 | K25: 4.010233036 | L25: 0.0567 | M25: 4.955271291 | N25: NA | O25: NA | P25: 0.6183876636 | Q25: 6.374690783 | R25: 0.0791 | S25: 4.010233036 | T25: 0.45876 | U25: NA | V25: NA | W25: NA | X25: NA | Y25: NA | Z25: 490.7484956 | AA25: 18.94976627 | AB25: 19.996441 | AC25: 488.8362535 | AD25: 24.73735166 | AE25: 25.55842285 | AF25: NA | AG25: NA | AH25: NA | AI25: 0.8693029119 | AJ25: NA | AL25: 490.7484956 | AM25: 18.94976627 | AN25: 3.861400787 | AO25: 19.996441 | AP25: 4.078932894
A26: UK019 | B26: UK019_37 | C26: NA | D26: 1025 | E26: 19000 | F26: 725 | G26: 1.58643326 | H26: NA | I26: NA | J26: 12.51564456 | K26: 3.911294919 | L26: 0.0568 | M26: 3.092219805 | N26: NA | O26: NA | P26: 0.6257435616 | Q26: 4.985985486 | R26: 0.0799 | S26: 3.911294919 | T26: 0.34855 | U26: NA | V26: NA | W26: NA | X26: NA | Y26: NA | Z26: 495.5258292 | AA26: 18.6553422 | AB26: 19.73709486 | AC26: 493.4409174 | AD26: 19.488508 | AE26: 20.53514851 | AF26: NA | AG26: NA | AH26: NA | AI26: 0.8481253023 | AJ26: NA | AL26: 495.5258292 | AM26: 18.6553422 | AN26: 3.764756769 | AO26: 19.73709486 | AP26: 3.990909053
A27: UK019 | B27: UK019_24 | C27: NA | D27: 961 | E27: 16930 | F27: 596 | G27: 1.941368078 | H27: NA | I27: NA | J27: 11.99040767 | K27: 3.959376626 | L27: 0.0588 | M27: 3.4482846 | N27: NA | O27: NA | P27: 0.6761524896 | Q27: 5.250459975 | R27: 0.0834 | S27: 3.959376626 | T27: 0.19323 | U27: NA | V27: NA | W27: 559.6988732 | X27: 75.21973265 | Y27: 78.06629635 | Z27: 516.3851361 | AA27: 19.64823685 | AB27: 20.7607975 | AC27: 524.4463443 | AD27: 21.50915463 | AE27: 22.5535487 | AF27: NA | AG27: NA | AH27: NA | AI27: 0.538417505 | AJ27: =(Z27/W27) -> 0.9226124276 | AK27: CX | AL27: 516.3851361 | AM27: 19.64823685 | AN27: 3.804957864 | AO27: 20.7607975 | AP27: 3.992872738
A28: UK019 | B28: UK019_145 | C28: NA | D28: 418 | E28: 7560 | F28: 304.4 | G28: 6.704845815 | H28: NA | I28: NA | J28: 11.96172249 | K28: 4.027104274 | L28: 0.058 | M28: 5.34946103 | N28: NA | O28: NA | P28: 0.668552544 | Q28: 6.695842154 | R28: 0.0836 | S28: 4.027104274 | T28: 0.15889 | U28: NA | V28: NA | W28: 529.7619025 | X28: 117.4037589 | Y28: 119.273694 | Z28: 517.5750603 | AA28: 20.02856153 | AB28: 21.12581381 | AC28: 519.8319647 | AD28: 27.24802368 | AE28: 28.06905983 | AF28: NA | AG28: NA | AH28: NA | AI28: 0.8848139618 | AJ28: =(Z28/W28) -> 0.9769956236 | AL28: 517.5750603 | AM28: 20.02856153 | AN28: 3.86969216 | AO28: 21.12581381 | AP28: 4.075940344
A29: UK019 | B29: UK019_27 | C29: NA | D29: 1565 | E29: 27210 | F29: 744 | G29: 1.414448669 | H29: NA | I29: NA | J29: 10.30927835 | K29: 3.990603681 | L29: 0.0609 | M29: 2.779803178 | N29: NA | O29: NA | P29: 0.814498524 | Q29: 4.863355164 | R29: 0.097 | S29: 3.990603681 | T29: 0.34467 | U29: NA | V29: NA | W29: 635.7039636 | X29: 59.85436253 | Y29: 63.30454773 | Z29: 596.8037473 | AA29: 22.74697831 | AB29: 24.0154558 | AC29: 604.9744979 | AD29: 22.17014771 | AE29: 23.42008474 | AF29: NA | AG29: NA | AH29: NA | AI29: 0.5254092306 | AJ29: 0.9388076548 | AK29: DO | AL29: 596.8037473 | AM29: 22.74697831 | AN29: 3.811467071 | AO29: 24.0154558 | AP29: 3.995739993
A30: UK019 | B30: UK019_97 | C30: NA | D30: 125 | E30: 2130 | F30: 71.9 | G30: 3.243121335 | H30: NA | I30: NA | J30: 9.98003992 | K30: 4.38819468 | L30: 0.0623 | M30: 10.42605802 | N30: NA | O30: NA | P30: 0.8607103848 | Q30: 11.31189367 | R30: 0.1002 | S30: 4.38819468 | T30: 0.23682 | U30: NA | V30: NA | W30: 684.4228961 | X30: 224.0056067 | Y30: 224.9591167 | Z30: 615.5808636 | AA30: 25.763359 | AB30: 26.95697796 | AC30: 630.5105774 | AD30: 53.17901853 | AE30: 53.74666716 | AF30: NA | AG30: NA | AH30: NA | AI30: 0.5773311643 | AJ30: 0.8994159416 | AL30: 615.5808636 | AM30: 25.763359 | AN30: 4.185211159 | AO30: 26.95697796 | AP30: 4.366820122
A31: UK019 | B31: UK019_127 | C31: NA | D31: 393 | E31: 7100 | F31: 230 | G31: 6.133333333 | H31: NA | I31: NA | J31: 9.699321048 | K31: 4.166949315 | L31: 0.0598 | M31: 5.728266358 | N31: NA | O31: NA | P31: 0.8500825944 | Q31: 7.083537398 | R31: 0.1031 | S31: 4.166949315 | T31: -0.094553 | U31: NA | V31: NA | W31: 596.3455425 | X31: 124.3382795 | Y31: 126.0679095 | Z31: 632.5505108 | AA31: 25.10628184 | AB31: 26.3931568 | AC31: 624.6944039 | AD31: 33.06005228 | AE31: 33.95175429 | AF31: NA | AG31: NA | AH31: NA | AI31: 0.7166478307 | AJ31: 1.060711393 | AL31: 632.5505108 | AM31: 25.10628184 | AN31: 3.969055659 | AO31: 26.3931568 | AP31: 4.192218543
A32: UK019 | B32: UK019_190 | C32: NA | D32: 425 | E32: 6700 | F32: 193 | G32: 1.820754717 | H32: NA | I32: NA | J32: 9.496676163 | K32: 4.360765423 | L32: 0.0656 | M32: 5.852590099 | N32: NA | O32: NA | P32: 0.9524309184 | Q32: 7.298567389 | R32: 0.1053 | S32: 4.360765423 | T32: 0.047677 | U32: NA | V32: NA | W32: 793.6383626 | X32: 122.992775 | Y32: 124.6322715 | Z32: 645.3943035 | AA32: 26.78129853 | AB32: 28.03738719 | AC32: 679.3676408 | AD32: 36.16670555 | AE32: 37.08639988 | AF32: NA | AG32: NA | AH32: NA | AI32: 0.1247207034 | AJ32: 0.8132095598 | AK32: CX | AL32: 645.3943035 | AM32: 26.78129853 | AN32: 4.149602559 | AO32: 28.03738719 | AP32: 4.268123571
A33: UK019 | B33: UK019_238 | C33: NA | D33: 205 | E33: 3530 | F33: 105.5 | G33: 1.28501827 | H33: NA | I33: NA | J33: 7.722007722 | K33: 4.642682696 | L33: 0.0658 | M33: 8.064421874 | N33: NA | O33: NA | P33: 1.174889268 | Q33: 9.3053427 | R33: 0.1295 | S33: 4.642682696 | T33: 0.32109 | U33: NA | V33: NA | W33: 800.0199561 | X33: 169.5983991 | Y33: 170.79701 | Z33: 785.012454 | AA33: 34.31427625 | AB33: 35.73793004 | AC33: 788.9300421 | AD33: 51.08439727 | AE33: 51.88808467 | AF33: NA | AG33: NA | AH33: NA | AI33: 0.8793402107 | AJ33: 0.9812410903 | AK33: CX | AL33: 785.012454 | AM33: 34.31427625 | AN33: 4.371176034 | AO33: 35.73793004 | AP33: 4.547312526
A34: UK019 | B34: UK019_109 | C34: NA | D34: 44 | E34: 605 | F34: 14.3 | G34: 87.19512195 | H34: NA | I34: NA | J34: 7.142857143 | K34: 5.751050973 | L34: 0.08 | M34: 19.19600205 | N34: NA | O34: NA | P34: 1.544256 | Q34: 20.03898904 | R34: 0.14 | S34: 5.751050973 | T34: 0.36433 | U34: NA | V34: NA | W34: 1196.987799 | X34: 386.1935104 | Y34: 386.6925632 | Z34: 844.662449 | AA34: 45.52980895 | AB34: 46.76951739 | AC34: 948.2035532 | AD34: 124.1136734 | AE34: 124.540822 | AF34: NA | AG34: NA | AH34: NA | AI34: 0.0871187 | AJ34: 0.7056566906 | AL34: 844.662449 | AM34: 45.52980895 | AN34: 5.390296325 | AO34: 46.76951739 | AP34: 5.545787162
A35: UK019 | B35: UK019_23 | C35: NA | D35: 631 | E35: 8980 | F35: 176 | G35: 0.7333333333 | H35: NA | I35: NA | J35: 6.497725796 | K35: 4.120038991 | L35: 0.0734 | M35: 4.295735098 | N35: NA | O35: NA | P35: 1.557528329 | Q35: 5.952147623 | R35: 0.1539 | S35: 4.120038991 | T35: 0.48512 | U35: NA | V35: NA | W35: 1025.017389 | X35: 86.99565475 | Y35: 89.13220843 | Z35: 922.7881336 | AA35: 35.42373492 | AB35: 37.28001934 | AC35: 953.4866178 | AD35: 36.82217419 | AE35: 38.22146655 | AF35: NA | AG35: NA | AH35: NA | AI35: 0.09536819879 | AJ35: 0.9002658328 | AL35: 922.7881336 | AM35: 35.42373492 | AN35: 3.838772264 | AO35: 37.28001934 | AP35: 3.980738984
A36: UK019 | B36: UK019_194 | C36: NA | D36: 934 | E36: 13800 | F36: 297 | G36: 4.583333333 | H36: NA | I36: NA | J36: 6.485084306 | K36: 4.156056417 | L36: 0.0714 | M36: 3.503477943 | N36: NA | O36: NA | P36: 1.518042254 | Q36: 5.435730185 | R36: 0.1542 | S36: 4.156056417 | T36: 0.31527 | U36: NA | V36: NA | W36: 968.8872213 | X36: 71.53761069 | Y36: 74.16151888 | Z36: 924.4639052 | AA36: 35.793767 | AB36: 37.63786609 | AC36: 937.6876848 | AD36: 33.2861972 | AE36: 34.79715505 | AF36: NA | AG36: NA | AH36: NA | AI36: 0.5137916029 | AJ36: 0.9541501682 | AL36: 924.4639052 | AM36: 35.793767 | AN36: 3.871840404 | AO36: 37.63786609 | AP36: 4.039599114
A37: UK019 | B37: UK019_168 | C37: NA | D37: 715 | E37: 9970 | F37: 223 | G37: 5.091324201 | H37: NA | I37: NA | J37: 6.464124111 | K37: 4.093603913 | L37: 0.0738 | M37: 3.882155273 | N37: NA | O37: NA | P37: 1.574156657 | Q37: 5.641695007 | R37: 0.1547 | S37: 4.093603913 | T37: 0.2359 | U37: NA | V37: NA | W37: 1036.003551 | X37: 78.47486346 | Y37: 80.82749167 | Z37: 927.2558903 | AA37: 35.35489296 | AB37: 37.23096995 | AC37: 960.0669833 | AD37: 35.04490523 | AE37: 36.52408499 | AF37: NA | AG37: NA | AH37: NA | AI37: 0.1327773729 | AJ37: 0.8950315749 | AL37: 927.2558903 | AM37: 35.35489296 | AN37: 3.812851807 | AO37: 37.23096995 | AP37: 3.945914026
A38: UK019 | B38: UK019_56 | C38: NA | D38: 1003 | E38: 15110 | F38: 318 | G38: 2.15010142 | H38: NA | I38: NA | J38: 6.435006435 | K38: 4.00707792 | L38: 0.0713 | M38: 3.326892533 | N38: NA | O38: NA | P38: 1.527713158 | Q38: 5.208155852 | R38: 0.1554 | S38: 4.00707792 | T38: 0.21076 | U38: NA | V38: NA | W38: 966.0267105 | X38: 67.95728583 | Y38: 70.71583284 | Z38: 931.1626389 | AA38: 34.74312264 | AB38: 36.66510269 | AC38: 941.5799398 | AD38: 31.97211825 | AE38: 33.54989095 | AF38: NA | AG38: NA | AH38: NA | AI38: 0.6197820496 | AJ38: 0.9639098266 | AL38: 931.1626389 | AM38: 34.74312264 | AN38: 3.731155137 | AO38: 36.66510269 | AP38: 3.913485432
A39: UK019 | B39: UK019_63 | C39: NA | D39: 2360 | E39: 36200 | F39: 778 | G39: 2.373398414 | H39: NA | I39: NA | J39: 6.414368185 | K39: 3.915595474 | L39: 0.0689 | M39: 2.005344469 | N39: NA | O39: NA | P39: 1.481039399 | Q39: 4.399237929 | R39: 0.1559 | S39: 3.915595474 | T39: 0.42384 | U39: NA | V39: NA | W39: 895.7476807 | X39: 41.39532948 | Y39: 45.86869085 | Z39: 933.9517249 | AA39: 34.04441786 | AB39: 36.01433717 | AC39: 922.6558205 | AD39: 26.67105395 | AE39: 28.49829711 | AF39: NA | AG39: NA | AH39: NA | AI39: 0.495843741 | AJ39: 1.042650453 | AL39: 933.9517249 | AM39: 34.04441786 | AN39: 3.645201026 | AO39: 36.01433717 | AP39: 3.889358974
A40: UK019 | B40: UK019_19 | C40: NA | D40: 1220 | E40: 18800 | F40: 344 | G40: 3.307692308 | H40: NA | I40: NA | J40: 6.41025641 | K40: 3.922455488 | L40: 0.0675 | M40: 2.84929117 | N40: NA | O40: NA | P40: 1.4518764 | Q40: 4.848104498 | R40: 0.156 | S40: 3.922455488 | T40: 0.42269 | U40: NA | V40: NA | W40: 853.2395791 | X40: 59.22454036 | Y40: 62.47822452 | Z40: 934.5093973 | AA40: 34.12298772 | AB40: 36.09074132 | AC40: 910.6499558 | AD40: 29.15763573 | AE40: 30.81202006 | AF40: NA | AG40: NA | AH40: NA | AI40: 0.1632357502 | AJ40: 1.095248533 | AL40: 934.5093973 | AM40: 34.12298772 | AN40: 3.651433343 | AO40: 36.09074132 | AP40: 3.926326881
A41: UK019 | B41: UK019_269 | C41: NA | D41: 448 | E41: 6460 | F41: 143.7 | G41: 1.415763547 | H41: NA | I41: NA | J41: 6.389776358 | K41: 4.054817235 | L41: 0.0743 | M41: 5.284504056 | N41: NA | O41: NA | P41: 1.603261746 | Q41: 6.660895279 | R41: 0.1565 | S41: 4.054817235 | T41: 0.18996 | U41: NA | V41: NA | W41: 1049.627478 | X41: 106.6772715 | Y41: 108.4173565 | Z41: 937.2970359 | AA41: 35.37223916 | AB41: 37.28439195 | AC41: 971.4831461 | AD41: 41.6766595 | AE41: 42.94632925 | AF41: NA | AG41: NA | AH41: NA | AI41: 0.1675671011 | AJ41: 0.8929806579 | AL41: 937.2970359 | AM41: 35.37223916 | AN41: 3.773855864 | AO41: 37.28439195 | AP41: 3.922131047
A42: UK019 | B42: UK019_118 | C42: NA | D42: 637 | E42: 9830 | F42: 212 | G42: 2.97752809 | H42: NA | I42: NA | J42: 6.329113924 | K42: 4.020330476 | L42: 0.0706 | M42: 4.172686256 | N42: NA | O42: NA | P42: 1.538023824 | Q42: 5.794339283 | R42: 0.158 | S42: 4.020330476 | T42: 0.21915 | U42: NA | V42: NA | W42: 945.8543667 | X42: 85.52952427 | Y42: 87.75400195 | Z42: 945.6527262 | AA42: 35.3616762 | AB42: 37.30533576 | AC42: 945.7133129 | AD42: 35.66808414 | AE42: 37.0968359 | AF42: NA | AG42: NA | AH42: NA | AI42: 0.9978211834 | AJ42: 0.9997868165 | AL42: 945.6527262 | AM42: 35.3616762 | AN42: 3.739393461 | AO42: 37.30533576 | AP42: 3.94480472
A43: UK019 | B43: UK019_233 | C43: NA | D43: 515 | E43: 7690 | F43: 162.6 | G43: 2.203252033 | H43: NA | I43: NA | J43: 6.242197253 | K43: 4.086962915 | L43: 0.0697 | M43: 4.511247923 | N43: NA | O43: NA | P43: 1.539559807 | Q43: 6.087250914 | R43: 0.1602 | S43: 4.086962915 | T43: 0.14502 | U43: NA | V43: NA | W43: 919.5281548 | X43: 92.86280277 | Y43: 94.93358148 | Z43: 957.8881808 | AA43: 36.37920158 | AB43: 38.31575512 | AC43: 946.3276253 | AD43: 37.48750127 | AE43: 38.85068146 | AF43: NA | AG43: NA | AH43: NA | AI43: 0.631651112 | AJ43: 1.041717076 | AL43: 957.8881808 | AM43: 36.37920158 | AN43: 3.79785473 | AO43: 38.31575512 | AP43: 4.023614598
A44: UK019 | B44: UK019_246 | C44: NA | D44: 1670 | E44: 25800 | F44: 542 | G44: 1.480874317 | H44: NA | I44: NA | J44: 6.199628022 | K44: 3.891543678 | L44: 0.0702 | M44: 2.543312247 | N44: NA | O44: NA | P44: 1.561251089 | Q44: 4.648929918 | R44: 0.1613 | S44: 3.891543678 | T44: 0.027632 | U44: NA | V44: NA | W44: 934.2087538 | X44: 52.19396254 | Y44: 55.76857102 | Z44: 963.9972104 | AA44: 34.8445039 | AB44: 36.88502861 | AC44: 954.9635434 | AD44: 28.78192276 | AE44: 30.55374687 | AF44: NA | AG44: NA | AH44: NA | AI44: 0.6850795969 | AJ44: 1.031886296 | AL44: 963.9972104 | AM44: 34.8445039 | AN44: 3.614585553 | AO44: 36.88502861 | AP44: 3.847852053
A45: UK019 | B45: UK019_205 | C45: NA | D45: 4860 | E45: 71600 | F45: 1454 | G45: 36.35 | H45: NA | I45: NA | J45: 6.142506143 | K45: 3.950130672 | L45: 0.0711 | M45: 1.386021547 | N45: NA | O45: NA | P45: 1.59597203 | Q45: 4.186237936 | R45: 0.1628 | S45: 3.950130672 | T45: 0.41305 | U45: NA | V45: NA | W45: 960.2898432 | X45: 28.3225313 | Y45: 34.41813043 | Z45: 972.3183865 | AA45: 35.65196515 | AB45: 37.67995821 | AC45: 968.6358579 | AD45: 26.13815937 | AE45: 28.10915879 | AF45: NA | AG45: NA | AH45: NA | AI45: 0.8305420709 | AJ45: 1.012525951 | AL45: 972.3183865 | AM45: 35.65196515 | AN45: 3.666696592 | AO45: 37.67995821 | AP45: 3.886295689
A46: UK019 | B46: UK019_50 | C46: NA | D46: 1690 | E46: 24900 | F46: 516 | G46: 5.108910891 | H46: NA | I46: NA | J46: 6.105006105 | K46: 3.964241955 | L46: 0.0709 | M46: 2.521770074 | N46: NA | O46: NA | P46: 1.60125835 | Q46: 4.698354881 | R46: 0.1638 | S46: 3.964241955 | T46: 0.25826 | U46: NA | V46: NA | W46: 954.5317238 | X46: 51.58922361 | Y46: 55.18101142 | Z46: 977.8598758 | AA46: 35.96817564 | AB46: 38.00000515 | AC46: 970.7014353 | AD46: 29.37479082 | AE46: 31.14638278 | AF46: NA | AG46: NA | AH46: NA | AI46: 0.7212110381 | AJ46: 1.024439368 | AL46: 977.8598758 | AM46: 35.96817564 | AN46: 3.678254577 | AO46: 38.00000515 | AP46: 3.904203578
A47: UK019 | B47: UK019_159 | C47: NA | D47: 511 | E47: 7530 | F47: 150 | G47: 1.19047619 | H47: NA | I47: NA | J47: 6.105006105 | K47: 3.998079489 | L47: 0.0739 | M47: 4.600281322 | N47: NA | O47: NA | P47: 1.669012582 | Q47: 6.094852569 | R47: 0.1638 | S47: 3.998079489 | T47: 0.04861 | U47: NA | V47: NA | W47: 1038.737951 | X47: 92.98360688 | Y47: 94.97850725 | Z47: 977.8598758 | AA47: 36.27519523 | AB47: 38.29073816 | AC47: 996.8102598 | AD47: 38.71796493 | AE47: 40.1225304 | AF47: NA | AG47: NA | AH47: NA | AI47: 0.464905928 | AJ47: 0.941392268 | AL47: 977.8598758 | AM47: 36.27519523 | AN47: 3.709651672 | AO47: 38.29073816 | AP47: 3.881058346
A48: UK019 | B48: UK019_195 | C48: NA | D48: 314 | E48: 4850 | F48: 100.2 | G48: 0.9364485981 | H48: NA | I48: NA | J48: 5.977286312 | K48: 4.13021081 | L48: 0.0676 | M48: 6.07787924 | N48: NA | O48: NA | P48: 1.559351102 | Q48: 7.3484187 | R48: 0.1673 | S48: 4.13021081 | T48: 0.14443 | U48: NA | V48: NA | W48: 856.3145165 | X48: 126.4763862 | Y48: 128.0407983 | Z48: 997.2176611 | AA48: 38.16005154 | AB48: 40.15013848 | AC48: 954.2100327 | AD48: 45.49129372 | AE48: 46.63323753 | AF48: NA | AG48: NA | AH48: NA | AI48: 0.1151060948 | AJ48: 1.164546019 | AL48: 997.2176611 | AM48: 38.16005154 | AN48: 3.826652198 | AO48: 40.15013848 | AP48: 4.098921947
A49: UK019 | B49: UK019_270 | C49: NA | D49: 2230 | E49: 31900 | F49: 687 | G49: 3.879164314 | H49: NA | I49: NA | J49: 5.959475566 | K49: 3.915693579 | L49: 0.0727 | M49: 2.137648796 | N49: NA | O49: NA | P49: 1.682006393 | Q49: 4.461188024 | R49: 0.1678 | S49: 3.915693579 | T49: 0.51441 | U49: NA | V49: NA | W49: 1005.602075 | X49: 43.38591287 | Y49: 47.53659234 | Z49: 999.9783199 | AA49: 36.27061946 | AB49: 38.36925739 | AC49: 1001.741553 | AD49: 28.41591392 | AE49: 30.31080883 | AF49: NA | AG49: NA | AH49: NA | AI49: 0.9138457532 | AJ49: 0.9944075738 | AL49: 999.9783199 | AM49: 36.27061946 | AN49: 3.627140583 | AO49: 38.36925739 | AP49: 3.832017123
A50: UK019 | B50: UK019_99 | C50: NA | D50: 1063 | E50: 15160 | F50: 294.5 | G50: 2.831730769 | H50: NA | I50: NA | J50: 5.94530321 | K50: 3.935272616 | L50: 0.0717 | M50: 3.205162198 | N50: NA | O50: NA | P50: 1.662824527 | Q50: 5.075375383 | R50: 0.1682 | S50: 3.935272616 | T50: 0.0289 | U50: NA | V50: NA | W50: 977.4372846 | X50: 65.3532429 | Y50: 68.20686573 | Z50: 1002.185996 | AA50: 36.52636598 | AB50: 38.61939297 | AC50: 994.4533805 | AD50: 32.19196083 | AE50: 33.8627341 | AF50: NA | AG50: NA | AH50: NA | AI50: 0.7470636627 | AJ50: 1.025319999 | AL50: 1002.185996 | AM50: 36.52636598 | AN50: 3.644669365 | AO50: 38.61939297 | AP50: 3.87042918
A51: UK019 | B51: UK019_91 | C51: NA | D51: 1111 | E51: 16220 | F51: 323 | G51: 1.448430493 | H51: NA | I51: NA | J51: 5.93824228 | K51: 3.956885136 | L51: 0.0738 | M51: 2.95307514 | N51: NA | O51: NA | P51: 1.71356161 | Q51: 4.937366987 | R51: 0.1684 | S51: 3.956885136 | T51: 0.25705 | U51: NA | V51: NA | W51: 1036.003551 | X51: 59.67360506 | Y51: 62.73118243 | Z51: 1003.289551 | AA51: 36.76435036 | AB51: 38.84867999 | AC51: 1013.618337 | AD51: 31.66840148 | AE51: 33.40271344 | AF51: NA | AG51: NA | AH51: NA | AI51: 0.6221709492 | AJ51: 0.9684228873 | AL51: 1003.289551 | AM51: 36.76435036 | AN51: 3.664380869 | AO51: 38.84867999 | AP51: 3.848484621
A52: UK019 | B52: UK019_72 | C52: NA | D52: 693 | E52: 9740 | F52: 177.4 | G52: 2.05800464 | H52: NA | I52: NA | J52: 5.927682276 | K52: 4.325725827 | L52: 0.0756 | M52: 4.353087597 | N52: NA | O52: NA | P52: 1.758482914 | Q52: 6.136878323 | R52: 0.1687 | S52: 4.325725827 | T52: 0.35085 | U52: NA | V52: NA | W52: 1084.497767 | X52: 87.37376517 | Y52: 89.46415563 | Z52: 1004.944528 | AA52: 40.25268715 | AB52: 42.17064745 | AC52: 1030.289749 | AD52: 39.74358014 | AE52: 41.16608917 | AF52: NA | AG52: NA | AH52: NA | AI52: 0.267152435 | AJ52: 0.9266450872 | AL52: 1004.944528 | AM52: 40.25268715 | AN52: 4.005463587 | AO52: 42.17064745 | AP52: 4.143967562
A53: UK019 | B53: UK019_167 | C53: NA | D53: 178 | E53: 2620 | F53: 51.1 | G53: 1.013888889 | H53: NA | I53: NA | J53: 5.906674542 | K53: 4.514343541 | L53: 0.0753 | M53: 8.907869342 | N53: NA | O53: NA | P53: 1.757734225 | Q53: 9.986462527 | R53: 0.1693 | S53: 4.514343541 | T53: 0.048044 | U53: NA | V53: NA | W53: 1076.520365 | X53: 179.596382 | Y53: 180.6385667 | Z53: 1008.25321 | AA53: 42.13567974 | AB53: 43.98254342 | AC53: 1030.014124 | AD53: 64.71872411 | AE53: 65.60458014 | AF53: NA | AG53: NA | AH53: NA | AI53: 0.5660618663 | AJ53: 0.9365853562 | AL53: 1008.25321 | AM53: 42.13567974 | AN53: 4.179077174 | AO53: 43.98254342 | AP53: 4.335712984
A54: UK019 | B54: UK019_216 | C54: NA | D54: 1350 | E54: 19600 | F54: 370 | G54: 2.466666667 | H54: NA | I54: NA | J54: 5.875440658 | K54: 3.977432757 | L54: 0.0735 | M54: 3.009794511 | N54: NA | O54: NA | P54: 1.724837436 | Q54: 4.987868717 | R54: 0.1702 | S54: 3.977432757 | T54: 0.34949 | U54: NA | V54: NA | W54: 1027.771247 | X54: 60.89666483 | Y54: 63.9032667 | Z54: 1013.21305 | AA54: 37.29283146 | AB54: 39.3859145 | AC54: 1017.828877 | AD54: 32.06984592 | AE54: 33.79168761 | AF54: NA | AG54: NA | AH54: NA | AI54: 0.8165444337 | AJ54: 0.9858351776 | AL54: 1013.21305 | AM54: 37.29283146 | AN54: 3.680650527 | AO54: 39.3859145 | AP54: 3.876399019
A55: UK019 | B55: UK019_156 | C55: NA | D55: 642 | E55: 9050 | F55: 167 | G55: 2.601246106 | H55: NA | I55: NA | J55: 5.854800937 | K55: 3.968481217 | L55: 0.0753 | M55: 4.037274304 | N55: NA | O55: NA | P55: 1.773307771 | Q55: 5.661133011 | R55: 0.1708 | S55: 3.968481217 | T55: 0.28244 | U55: NA | V55: NA | W55: 1076.520365 | X55: 81.11998166 | Y55: 83.37136064 | Z55: 1016.517491 | AA55: 37.32093703 | AB55: 39.4248055 | AC55: 1035.73209 | AD55: 36.7713111 | AE55: 38.31306409 | AF55: NA | AG55: NA | AH55: NA | AI55: 0.3873648641 | AJ55: 0.9442622026 | AK55: CX | AL55: 1016.517491 | AM55: 37.32093703 | AN55: 3.671450551 | AO55: 39.4248055 | AP55: 3.841788827
A56: UK019 | B56: UK019_17 | C56: NA | D56: 699 | E56: 10240 | F56: 179.4 | G56: 1.331848552 | H56: NA | I56: NA | J56: 5.810575247 | K56: 3.930415559 | L56: 0.0708 | M56: 3.814169111 | N56: NA | O56: NA | P56: 1.680023678 | Q56: 5.476865205 | R56: 0.1721 | S56: 3.930415559 | T56: -0.0035014 | U56: NA | V56: NA | W56: 951.6446475 | X56: 78.09855921 | Y56: 80.5227735 | Z56: 1023.671309 | AA56: 37.20297768 | AB56: 39.33990647 | AC56: 1000.990638 | AD56: 34.87461821 | AE56: 36.43461075 | AF56: NA | AG56: NA | AH56: NA | AI56: 0.3735317502 | AJ56: 1.075686509 | AL56: 1023.671309 | AM56: 37.20297768 | AN56: 3.634269845 | AO56: 39.33990647 | AP56: 3.889286292
A57: UK019 | B57: UK019_224 | C57: NA | D57: 821 | E57: 11990 | F57: 243 | G57: 2.148541114 | H57: NA | I57: NA | J57: 5.787037037 | K57: 4.014545882 | L57: 0.0732 | M57: 3.485782772 | N57: NA | O57: NA | P57: 1.744038605 | Q57: 5.316696359 | R57: 0.1728 | S57: 4.014545882 | T57: 0.61547 | U57: NA | V57: NA | W57: 1019.494939 | X57: 70.62770262 | Y57: 73.2440654 | Z57: 1027.520078 | AA57: 38.13111258 | AB57: 40.23288847 | AC57: 1024.958906 | AD57: 34.32440596 | AE57: 35.95152513 | AF57: NA | AG57: NA | AH57: NA | AI57: 0.8726124403 | AJ57: 1.007871681 | AL57: 1027.520078 | AM57: 38.13111258 | AN57: 3.710984669 | AO57: 40.23288847 | AP57: 3.921758503
A58: UK019 | B58: UK019_92 | C58: NA | D58: 1441 | E58: 20300 | F58: 392 | G58: 2.334723049 | H58: NA | I58: NA | J58: 5.77700751 | K58: 3.964770843 | L58: 0.0738 | M58: 2.543540488 | N58: NA | O58: NA | P58: 1.761386666 | Q58: 4.710520784 | R58: 0.1731 | S58: 3.964770843 | T58: 0.523 | U58: NA | V58: NA | W58: 1036.003551 | X58: 51.39174093 | Y58: 54.91074683 | Z58: 1029.168848 | AA58: 37.71405971 | AB58: 39.84396521 | AC58: 1031.358043 | AD58: 30.51806975 | AE58: 32.3494745 | AF58: NA | AG58: NA | AH58: NA | AI58: 0.8972508851 | AJ58: 0.9934028184 | AL58: 1029.168848 | AM58: 37.71405971 | AN58: 3.664516254 | AO58: 39.84396521 | AP58: 3.865606819
A59: UK019 | B59: UK019_196 | C59: NA | D59: 910 | E59: 13000 | F59: 242 | G59: 2.867298578 | H59: NA | I59: NA | J59: 5.763688761 | K59: 4.004426339 | L59: 0.0736 | M59: 3.45272066 | N59: NA | O59: NA | P59: 1.760672448 | Q59: 5.287410544 | R59: 0.1735 | S59: 4.004426339 | T59: 0.42068 | U59: NA | V59: NA | W59: 1030.520216 | X59: 69.84011964 | Y59: 72.47611475 | Z59: 1031.366552 | AA59: 38.1662925 | AB59: 40.2803742 | AC59: 1031.095386 | AD59: 34.25321414 | AE59: 35.89457873 | AF59: NA | AG59: NA | AH59: NA | AI59: 0.9889358378 | AJ59: 1.00082127 | AL59: 1031.366552 | AM59: 38.1662925 | AN59: 3.700555583 | AO59: 40.2803742 | AP59: 3.906143302
A60: UK019 | B60: UK019_87 | C60: NA | D60: 318 | E60: 4450 | F60: 87.7 | G60: 1.702912621 | H60: NA | I60: NA | J60: 5.714285714 | K60: 4.170237152 | L60: 0.0744 | M60: 6.28808099 | N60: NA | O60: NA | P60: 1.7951976 | Q60: 7.545252841 | R60: 0.175 | S60: 4.170237152 | T60: 0.18278 | U60: NA | V60: NA | W60: 1052.337922 | X60: 126.9645303 | Y60: 128.4325274 | Z60: 1039.601274 | AA60: 40.03913857 | AB60: 42.08830673 | AC60: 1043.715085 | AD60: 49.24291403 | AE60: 50.41639568 | AF60: NA | AG60: NA | AH60: NA | AI60: 0.8862651536 | AJ60: 0.9878968076 | AL60: 1039.601274 | AM60: 40.03913857 | AN60: 3.851393758 | AO60: 42.08830673 | AP60: 4.042507011
A61: UK019 | B61: UK019_126 | C61: NA | D61: 1340 | E61: 18800 | F61: 355 | G61: 2.028571429 | H61: NA | I61: NA | J61: 5.711022273 | K61: 3.947168258 | L61: 0.0756 | M61: 3.068983962 | N61: NA | O61: NA | P61: 1.825194773 | Q61: 4.99987998 | R61: 0.1751 | S61: 3.947168258 | T61: 0.17879 | U61: NA | V61: NA | W61: 1084.497767 | X61: 61.56801383 | Y61: 64.49435354 | Z61: 1040.149881 | AA61: 37.91579556 | AB61: 40.07571983 | AC61: 1054.553798 | AD61: 32.80963696 | AE61: 34.56301746 | AF61: NA | AG61: NA | AH61: NA | AI61: 0.5268256559 | AJ61: 0.9591074437 | AK61: Z | AL61: 1040.149881 | AM61: 37.91579556 | AN61: 3.645224236 | AO61: 40.07571983 | AP61: 3.821966965
A62: UK019 | B62: UK019_49 | C62: NA | D62: 777 | E62: 11390 | F62: 220 | G62: 2.824133504 | H62: NA | I62: NA | J62: 5.698005698 | K62: 4.08302487 | L62: 0.0707 | M62: 3.813388263 | N62: NA | O62: NA | P62: 1.710794358 | Q62: 5.586861564 | R62: 0.1755 | S62: 4.08302487 | T62: 0.357 | U62: NA | V62: NA | W62: 948.7522015 | X62: 78.11743571 | Y62: 80.54321464 | Z62: 1042.343845 | AA62: 39.2970634 | AB62: 41.39288481 | AC62: 1012.582335 | AD62: 35.81616851 | AE62: 37.35716671 | AF62: NA | AG62: NA | AH62: NA | AI62: 0.1623323491 | AJ62: 1.09864709 | AL62: 1042.343845 | AM62: 39.2970634 | AN62: 3.770067198 | AO62: 41.39288481 | AP62: 4.038199669
A63: UK019 | B63: UK019_228 | C63: NA | D63: 308 | E63: 4460 | F63: 81.6 | G63: 0.8326530612 | H63: NA | I63: NA | J63: 5.678591709 | K63: 4.286766378 | L63: 0.0742 | M63: 6.235213318 | N63: NA | O63: NA | P63: 1.801625566 | Q63: 7.566653891 | R63: 0.1761 | S63: 4.286766378 | T63: 0.35502 | U63: NA | V63: NA | W63: 1046.912275 | X63: 125.9956465 | Y63: 127.4770055 | Z63: 1045.633392 | AA63: 41.37796154 | AB63: 43.38470872 | AC63: 1046.047426 | AD63: 49.44601862 | AE63: 50.61777664 | AF63: NA | AG63: NA | AH63: NA | AI63: 0.9872899952 | AJ63: 0.9987784235 | AL63: 1045.633392 | AM63: 41.37796154 | AN63: 3.957215011 | AO63: 43.38470872 | AP63: 4.148532478
A64: UK019 | B64: UK019_7 | C64: NA | D64: 723 | E64: 10080 | F64: 165.1 | G64: 1.561967833 | H64: NA | I64: NA | J64: 5.66893424 | K64: 4.00707792 | L64: 0.0752 | M64: 3.840459915 | N64: NA | O64: NA | P64: 1.829016806 | Q64: 5.550297813 | R64: 0.1764 | S64: 4.00707792 | T64: 0.33261 | U64: NA | V64: NA | W64: 1073.852045 | X64: 77.18980611 | Y64: 79.5535712 | Z64: 1047.277536 | AA64: 38.7342173 | AB64: 40.87699455 | AC64: 1055.92652 | AD64: 36.45145567 | AE64: 38.04013748 | AF64: NA | AG64: NA | AH64: NA | AI64: 0.6908379144 | AJ64: 0.9752530997 | AL64: 1047.277536 | AM64: 38.7342173 | AN64: 3.698562796 | AO64: 40.87699455 | AP64: 3.885746887
A65: UK019 | B65: UK019_229 | C65: NA | D65: 383 | E65: 5630 | F65: 99 | G65: 0.9519230769 | H65: NA | I65: NA | J65: 5.640157924 | K65: 4.161707521 | L65: 0.0716 | M65: 5.867447514 | N65: NA | O65: NA | P65: 1.750342478 | Q65: 7.193521378 | R65: 0.1773 | S65: 4.161707521 | T65: -0.095348 | U65: NA | V65: NA | W65: 974.59249 | X65: 119.8486007 | Y65: 121.4379826 | Z65: 1052.207453 | AA65: 40.40331868 | AB65: 42.47940382 | AC65: 1027.288868 | AD65: 46.5169663 | AE65: 47.734918 | AF65: NA | AG65: NA | AH65: NA | AI65: 0.4376300948 | AJ65: 1.079638376 | AL65: 1052.207453 | AM65: 40.40331868 | AN65: 3.839862432 | AO65: 42.47940382 | AP65: 4.079816341
A66: UK019 | B66: UK019_215 | C66: NA | D66: 97 | E66: 1397 | F66: 25.48 | G66: 1.392349727 | H66: NA | I66: NA | J66: 5.633802817 | K66: 4.655440202 | L66: 0.0704 | M66: 12.78717066 | N66: NA | O66: NA | P66: 1.72294848 | Q66: 13.60826428 | R66: 0.1775 | S66: 4.655440202 | T66: 0.0067164 | U66: NA | V66: NA | W66: 940.0424538 | X66: 264.4889649 | Y66: 265.2421294 | Z66: 1053.302478 | AA66: 45.2400972 | AB66: 47.1070071 | AC66: 1017.124733 | AD66: 87.64806033 | AE66: 88.29763403 | AF66: NA | AG66: NA | AH66: NA | AI66: 0.4562033914 | AJ66: 1.120483946 | AL66: 1053.302478 | AM66: 45.2400972 | AN66: 4.295071752 | AO66: 47.1070071 | AP66: 4.505900954
A67: UK019 | B67: UK019_3 | C67: NA | D67: 791 | E67: 10790 | F67: 174.1 | G67: 2.001149425 | H67: NA | I67: NA | J67: 5.602240896 | K67: 3.942642332 | L67: 0.0764 | M67: 3.432632185 | N67: NA | O67: NA | P67: 1.880324712 | Q67: 5.227560834 | R67: 0.1785 | S67: 3.942642332 | T67: 0.0074201 | U67: NA | V67: NA | W67: 1105.571377 | X67: 68.65626293 | Y67: 71.27734976 | Z67: 1058.774816 | AA67: 38.49633476 | AB67: 40.69423364 | AC67: 1074.176814 | AD67: 34.66483117 | AE67: 36.3633153 | AF67: NA | AG67: NA | AH67: NA | AI67: 0.5510092128 | AJ67: 0.9576720589 | AL67: 1058.774816 | AM67: 38.49633476 | AN67: 3.635932227 | AO67: 40.69423364 | AP67: 3.813027425
A68: UK019 | B68: UK019_134 | C68: NA | D68: 1470 | E68: 19800 | F68: 384 | G68: 10.90909091 | H68: NA | I68: NA | J68: 5.580357143 | K68: 4.102359308 | L68: 0.0792 | M68: 2.537940586 | N68: NA | O68: NA | P68: 1.956881203 | Q68: 4.823950073 | R68: 0.1792 | S68: 4.102359308 | T68: 0.43486 | U68: NA | V68: NA | W68: 1177.137783 | X68: 50.21542424 | Y68: 53.66851023 | Z68: 1062.602691 | AA68: 40.18907981 | AB68: 42.31282715 | AC68: 1100.812373 | AD68: 32.42730917 | AE68: 34.28544776 | AF68: NA | AG68: NA | AH68: NA | AI68: 0.05109174424 | AJ68: 0.9027003523 | AL68: 1062.602691 | AM68: 40.18907981 | AN68: 3.782136084 | AO68: 42.31282715 | AP68: 3.887952449
A69: UK019 | B69: UK019_297 | C69: NA | D69: 1229 | E69: 17460 | F69: 372.9 | G69: 1.231099373 | H69: NA | I69: NA | J69: 5.543237251 | K69: 3.953899793 | L69: 0.0743 | M69: 2.676269913 | N69: NA | O69: NA | P69: 1.848104914 | Q69: 4.774488896 | R69: 0.1804 | S69: 3.953899793 | T69: 0.37132 | U69: NA | V69: NA | W69: 1049.627478 | X69: 53.96452129 | Y69: 57.31290798 | Z69: 1069.159478 | AA69: 38.95439667 | AB69: 41.16614251 | AC69: 1062.754562 | AD69: 31.4678046 | AE69: 33.30740091 | AF69: NA | AG69: NA | AH69: NA | AI69: 0.7485195705 | AJ69: 1.018608507 | AL69: 1069.159478 | AM69: 38.95439667 | AN69: 3.643459882 | AO69: 41.16614251 | AP69: 3.865773431
A70: UK019 | B70: UK019_178 | C70: NA | D70: 3430 | E70: 47800 | F70: 795 | G70: 1.200906344 | H70: NA | I70: NA | J70: 5.500550055 | K70: 3.988780207 | L70: 0.0759 | M70: 2.044345745 | N70: NA | O70: NA | P70: 1.902553726 | Q70: 4.482155404 | R70: 0.1818 | S70: 3.988780207 | T70: 0.53615 | U70: NA | V70: NA | W70: 1092.434148 | X70: 40.95231123 | Y70: 45.21842111 | Z70: 1076.800644 | AA70: 39.55611725 | AB70: 41.76395484 | AC70: 1081.982987 | AD70: 29.839977 | AE70: 31.81195178 | AF70: NA | AG70: NA | AH70: NA | AI70: 0.7637268519 | AJ70: 0.9856892944 | AK70: SL | AL70: 1076.800644 | AM70: 39.55611725 | AN70: 3.67348566 | AO70: 41.76395484 | AP70: 3.863974393
A71: UK019 | B71: UK019_155 | C71: NA | D71: 419 | E71: 5580 | F71: 106.8 | G71: 1.791946309 | H71: NA | I71: NA | J71: 5.497526113 | K71: 4.135025603 | L71: 0.0774 | M71: 5.282388853 | N71: NA | O71: NA | P71: 1.941220793 | Q71: 6.708358125 | R71: 0.1819 | S71: 4.135025603 | T71: 0.34317 | U71: NA | V71: NA | W71: 1131.514579 | X71: 105.3391931 | Y71: 107.058738 | Z71: 1077.346095 | AA71: 41.02553356 | AB71: 43.16021032 | AC71: 1095.420349 | AD71: 44.98601087 | AE71: 46.33771731 | AF71: NA | AG71: NA | AH71: NA | AI71: 0.4653224791 | AJ71: 0.9521274541 | AL71: 1077.346095 | AM71: 41.02553356 | AN71: 3.80801803 | AO71: 43.16021032 | AP71: 3.977897057
A72: UK019 | B72: UK019_95 | C72: NA | D72: 983 | E72: 14100 | F72: 240.6 | G72: 20.05 | H72: NA | I72: NA | J72: 5.491488193 | K72: 4.617572453 | L72: 0.0754 | M72: 3.818260613 | N72: NA | O72: NA | P72: 1.893139279 | Q72: 5.991751786 | R72: 0.1821 | S72: 4.617572453 | T72: 0.61332 | U72: NA | V72: NA | W72: 1079.184082 | X72: 76.68170349 | Y72: 79.05683528 | Z72: 1078.436859 | AA72: 45.85587423 | AB72: 47.77873417 | AC72: 1078.684235 | AD72: 39.83085531 | AE72: 41.32513282 | AF72: NA | AG72: NA | AH72: NA | AI72: 0.9896275573 | AJ72: 0.9993076036 | AK72: DO | AL72: 1078.436859 | AM72: 45.85587423 | AN72: 4.252068523 | AO72: 47.77873417 | AP72: 4.429679601
A73: UK019 | B73: UK019_286 | C73: NA | D73: 170 | E73: 2510 | F73: 53.2 | G73: 56 | H73: NA | I73: NA | J73: 5.473453749 | K73: 4.493917144 | L73: 0.0715 | M73: 8.62598416 | N73: NA | O73: NA | P73: 1.801133334 | Q73: 9.726401906 | R73: 0.1827 | S73: 4.493917144 | T73: 0.3795 | U73: NA | V73: NA | W73: 971.742475 | X73: 176.6616196 | Y73: 177.7542399 | Z73: 1081.708044 | AA73: 44.75217977 | AB73: 46.73122977 | AC73: 1045.869013 | AD73: 63.58598371 | AE73: 64.50307972 | AF73: NA | AG73: NA | AH73: NA | AI73: 0.2450814553 | AJ73: 1.113163283 | AL73: 1081.708044 | AM73: 44.75217977 | AN73: 4.137177313 | AO73: 46.73122977 | AP73: 4.356764368
A74: UK019 | B74: UK019_96 | C74: NA | D74: 336 | E74: 4350 | F74: 72.6 | G74: 1.446215139 | H74: NA | I74: NA | J74: 5.449591281 | K74: 4.561425403 | L74: 0.0826 | M74: 6.635862419 | N74: NA | O74: NA | P74: 2.089860948 | Q74: 8.052407823 | R74: 0.1835 | S74: 4.561425403 | T74: 0.20038 | U74: NA | V74: NA | W74: 1259.780177 | X74: 129.9967401 | Y74: 131.3475951 | Z74: 1086.067043 | AA74: 45.59254441 | AB74: 47.5507412 | AC74: 1145.480113 | AD74: 55.35592221 | AE74: 56.51627964 | AF74: NA | AG74: NA | AH74: NA | AI74: 0.06729301948 | AJ74: 0.862108376 | AK74: SL | AL74: 1086.067043 | AM74: 45.59254441 | AN74: 4.197949356 | AO74: 47.5507412 | AP74: 4.293207489
A75: UK019 | B75: UK019_82 | C75: NA | D75: 542 | E75: 8150 | F75: 143.8 | G75: 2.633699634 | H75: NA | I75: NA | J75: 5.431830527 | K75: 4.159305608 | L75: 0.0686 | M75: 4.673707847 | N75: NA | O75: NA | P75: 1.741322369 | Q75: 6.25646611 | R75: 0.1841 | S75: 4.159305608 | T75: 0.18004 | U75: NA | V75: NA | W75: 886.7356926 | X75: 96.70944718 | Y75: 98.7205431 | Z75: 1089.334358 | AA75: 41.68794609 | AB75: 43.83245868 | AC75: 1023.953313 | AD75: 40.37447393 | AE75: 41.76580303 | AF75: NA | AG75: NA | AH75: NA | AI75: 0.01231177239 | AJ75: 1.228476949 | AL75: 1089.334358 | AM75: 41.68794609 | AN75: 3.826919235 | AO75: 43.83245868 | AP75: 4.157760527
A76: UK019 | B76: UK019_128 | C76: NA | D76: 170 | E76: 2470 | F76: 43.1 | G76: 1.122395833 | H76: NA | I76: NA | J76: 5.399568035 | K76: 4.395143225 | L76: 0.0699 | M76: 8.874549027 | N76: NA | O76: NA | P76: 1.784922782 | Q76: 9.903277458 | R76: 0.1852 | S76: 4.395143225 | T76: 0.13647 | U76: NA | V76: NA | W76: 925.4170105 | X76: 183.1074759 | Y76: 184.1781874 | Z76: 1095.32014 | AA76: 44.27386184 | AB76: 46.31878214 | AC76: 1039.97578 | AD76: 64.53560333 | AE76: 65.43373982 | AF76: NA | AG76: NA | AH76: NA | AI76: 0.1247666985 | AJ76: 1.18359629 | AL76: 1095.32014 | AM76: 44.27386184 | AN76: 4.042093286 | AO76: 46.31878214 | AP76: 4.296107916
A77: UK019 | B77: UK019_120 | C77: NA | D77: 750 | E77: 10100 | F77: 190 | G77: 3.518518519 | H77: NA | I77: NA | J77: 5.361930295 | K77: 4.020042936 | L77: 0.08 | M77: 3.853138165 | N77: NA | O77: NA | P77: 2.0571696 | Q77: 5.568430562 | R77: 0.1865 | S77: 4.020042936 | T77: 0.080369 | U77: NA | V77: NA | W77: 1196.987799 | X77: 76.05185101 | Y77: 78.36563725 | Z77: 1102.387087 | AA77: 40.73481714 | AB77: 42.97414003 | AC77: 1134.679921 | AD77: 38.06419575 | AE77: 39.71273917 | AF77: NA | AG77: NA | AH77: NA | AI77: 0.2282626015 | AJ77: 0.920967689 | AL77: 1102.387087 | AM77: 40.73481714 | AN77: 3.695146434 | AO77: 42.97414003 | AP77: 3.838714766
A78: UK019 | B78: UK019_298 | C78: NA | D78: 157 | E78: 2100 | F78: 43.21 | G78: 1.293712575 | H78: NA | I78: NA | J78: 5.361930295 | K78: 4.2508191 | L78: 0.0815 | M78: 9.143515277 | N78: NA | O78: NA | P78: 2.09574153 | Q78: 10.08331962 | R78: 0.1865 | S78: 4.2508191 | T78: 0.26948 | U78: NA | V78: NA | W78: 1233.527805 | X78: 180.1742712 | Y78: 181.1669783 | Z78: 1102.387087 | AA78: 43.07332376 | AB78: 45.1969444 | AC78: 1147.41074 | AD78: 69.41964523 | AE78: 70.35218592 | AF78: NA | AG78: NA | AH78: NA | AI78: 0.2114932424 | AJ78: 0.8936864518 | AL78: 1102.387087 | AM78: 43.07332376 | AN78: 3.907277603 | AO78: 45.1969444 | AP78: 4.067809639
A79: UK019 | B79: UK019_250 | C79: NA | D79: 1480 | E79: 20000 | F79: 362 | G79: 1.828282828 | H79: NA | I79: NA | J79: 5.344735436 | K79: 3.965393488 | L79: 0.0776 | M79: 2.714728311 | N79: NA | O79: NA | P79: 2.001874205 | Q79: 4.805631625 | R79: 0.1871 | S79: 3.965393488 | T79: 0.31989 | U79: NA | V79: NA | W79: 1136.65118 | X79: 54.03561827 | Y79: 57.29680488 | Z79: 1105.646144 | AA79: 40.28994104 | AB79: 42.56463226 | AC79: 1116.146447 | AD79: 32.55168157 | AE79: 34.43081725 | AF79: NA | AG79: NA | AH79: NA | AI79: 0.6248439382 | AJ79: 0.9727224709 | AL79: 1105.646144 | AM79: 40.28994104 | AN79: 3.644017687 | AO79: 42.56463226 | AP79: 3.826117683
A80: UK019 | B80: UK019_34 | C80: NA | D80: 143 | E80: 1930 | F80: 31.5 | G80: 2.144315861 | H80: NA | I80: NA | J80: 5.341880342 | K80: 4.520548772 | L80: 0.0787 | M80: 9.980700025 | N80: NA | O80: NA | P80: 2.031336403 | Q80: 10.95672096 | R80: 0.1872 | S80: 4.520548772 | T80: 0.17145 | U80: NA | V80: NA | W80: 1164.59991 | X80: 198.826075 | Y80: 199.7475597 | Z80: 1106.18916 | AA80: 45.95139251 | AB80: 47.96010564 | AC80: 1126.063441 | AD80: 74.686217 | AE80: 75.53720597 | AF80: NA | AG80: NA | AH80: NA | AI80: 0.6238362888 | AJ80: 0.9498447928 | AL80: 1106.18916 | AM80: 45.95139251 | AN80: 4.15402665 | AO80: 47.96010564 | AP80: 4.317848237
A81: UK019 | B81: UK019_100 | C81: NA | D81: 2220 | E81: 30800 | F81: 536 | G81: 0.9745454545 | H81: NA | I81: NA | J81: 5.260389269 | K81: 4.090820652 | L81: 0.0754 | M81: 2.339552761 | N81: NA | O81: NA | P81: 1.976308495 | Q81: 4.712570501 | R81: 0.1901 | S81: 4.090820652 | T81: 0.60739 | U81: NA | V81: NA | W81: 1079.184082 | X81: 46.96191212 | Y81: 50.74046533 | Z81: 1121.916759 | AA81: 42.12437675 | AB81: 44.36265685 | AC81: 1107.461819 | AD81: 31.78384088 | AE81: 33.68969922 | AF81: NA | AG81: NA | AH81: NA | AI81: 0.3958608468 | AJ81: 1.039597208 | AK81: DO | AL81: 1121.916759 | AM81: 42.12437675 | AN81: 3.75467934 | AO81: 44.36265685 | AP81: 3.997139358
A82: UK019 | B82: UK019_51 | C82: NA | D82: 1048 | E82: 14390 | F82: 250 | G82: 2.604166667 | H82: NA | I82: NA | J82: 5.24383849 | K82: 3.922421985 | L82: 0.0785 | M82: 3.114712231 | N82: NA | O82: NA | P82: 2.064056706 | Q82: 5.008675125 | R82: 0.1907 | S82: 3.922421985 | T82: 0.24643 | U82: NA | V82: NA | W82: 1159.555968 | X82: 61.79658908 | Y82: 64.65011411 | Z82: 1125.16596 | AA82: 40.49734692 | AB82: 42.83274577 | AC82: 1136.964775 | AD82: 34.27223933 | AE82: 36.0976433 | AF82: NA | AG82: NA | AH82: NA | AI82: 0.6093287829 | AJ82: 0.9703420881 | AL82: 1125.16596 | AM82: 40.49734692 | AN82: 3.599233214 | AO82: 42.83274577 | AP82: 3.782734841
A83: UK019 | B83: UK019_133 | C83: NA | D83: 423 | E83: 6000 | F83: 104.7 | G83: 1.982954545 | H83: NA | I83: NA | J83: 5.200208008 | K83: 4.075908508 | L83: 0.0754 | M83: 4.841087337 | N83: NA | O83: NA | P83: 1.99918003 | Q83: 6.328440311 | R83: 0.1923 | S83: 4.075908508 | T83: 0.33794 | U83: NA | V83: NA | W83: 1079.184082 | X83: 97.26951781 | Y83: 99.15627533 | Z83: 1133.822497 | AA83: 42.37821195 | AB83: 44.64606798 | AC83: 1115.234734 | AD83: 42.85818474 | AE83: 44.30244533 | AF83: NA | AG83: NA | AH83: NA | AI83: 0.447397634 | AJ83: 1.050629374 | AL83: 1133.822497 | AM83: 42.37821195 | AN83: 3.737640774 | AO83: 44.64606798 | AP83: 3.970112573
A84: UK019 | B84: UK019_105 | C84: NA | D84: 480 | E84: 6410 | F84: 109.1 | G84: 1.411384217 | H84: NA | I84: NA | J84: 5.197505198 | K84: 4.066745824 | L84: 0.0783 | M84: 4.862806467 | N84: NA | O84: NA | P84: 2.07715117 | Q84: 6.339188302 | R84: 0.1924 | S84: 4.066745824 | T84: 0.23749 | U84: NA | V84: NA | W84: 1154.495419 | X84: 96.6225151 | Y84: 98.48015497 | Z84: 1134.363145 | AA84: 42.30138322 | AB84: 44.57507934 | AC84: 1141.294841 | AD84: 43.47585396 | AE84: 44.93609845 | AF84: NA | AG84: NA | AH84: NA | AI84: 0.7936384331 | AJ84: 0.9825618417 | AL84: 1134.363145 | AM84: 42.30138322 | AN84: 3.729086529 | AO84: 44.57507934 | AP84: 3.918025813
A85: UK019 | B85: UK019_249 | C85: NA | D85: 507 | E85: 6930 | F85: 124.1 | G85: 3.300531915 | H85: NA | I85: NA | J85: 5.128205128 | K85: 4.019281408 | L85: 0.0769 | M85: 4.53359709 | N85: NA | O85: NA | P85: 2.06757954 | Q85: 6.0587231 | R85: 0.195 | S85: 4.019281408 | T85: 0.21739 | U85: NA | V85: NA | W85: 1118.597593 | X85: 90.54430652 | Y85: 92.54362308 | Z85: 1148.404096 | AA85: 42.28044533 | AB85: 44.60559942 | AC85: 1138.13152 | AD85: 41.48766521 | AE85: 43.01062333 | AF85: NA | AG85: NA | AH85: NA | AI85: 0.6946544071 | AJ85: 1.026646314 | AL85: 1148.404096 | AM85: 42.28044533 | AN85: 3.681669674 | AO85: 44.60559942 | AP85: 3.90212714
A86: UK019 | B86: UK019_289 | C86: NA | D86: 419 | E86: 5430 | F86: 104.3 | G86: 2.766578249 | H86: NA | I86: NA | J86: 5.096839959 | K86: 4.083941155 | L86: 0.0823 | M86: 5.321351292 | N86: NA | O86: NA | P86: 2.226384209 | Q86: 6.7078577 | R86: 0.1962 | S86: 4.083941155 | T86: 0.21075 | U86: NA | V86: NA | W86: 1252.665013 | X86: 104.2655176 | Y86: 105.9428685 | Z86: 1154.874235 | AA86: 43.1816648 | AB86: 45.48366842 | AC86: 1189.381195 | AD86: 47.0336019 | AE86: 48.44722063 | AF86: NA | AG86: NA | AH86: NA | AI86: 0.2259945358 | AJ86: 0.9219338149 | AL86: 1154.874235 | AM86: 43.1816648 | AN86: 3.739079417 | AO86: 45.48366842 | AP86: 3.887797534
A87: UK019 | B87: UK019_277 | C87: NA | D87: 1900 | E87: 25800 | F87: 478.6 | G87: 2.681232493 | H87: NA | I87: NA | J87: 5.058168943 | K87: 3.900222784 | L87: 0.0784 | M87: 2.31674137 | N87: NA | O87: NA | P87: 2.137095878 | Q87: 4.536411394 | R87: 0.1977 | S87: 3.900222784 | T87: 0.20319 | U87: NA | V87: NA | W87: 1157.027776 | X87: 45.97109682 | Y87: 49.74027802 | Z87: 1162.952786 | AA87: 41.50230717 | AB87: 43.92223308 | AC87: 1160.884899 | AD87: 31.38895591 | AE87: 33.41560041 | AF87: NA | AG87: NA | AH87: NA | AI87: 0.9293787186 | AJ87: 1.005120889 | AL87: 1162.952786 | AM87: 41.50230717 | AN87: 3.568700953 | AO87: 43.92223308 | AP87: 3.781288951
A88: UK019 | B88: UK019_152 | C88: NA | D88: 681 | E88: 9120 | F88: 166 | G88: 1.044025157 | H88: NA | I88: NA | J88: 4.992511233 | K88: 4.364419534 | L88: 0.0811 | M88: 4.210764518 | N88: NA | O88: NA | P88: 2.23976822 | Q88: 6.064544145 | R88: 0.2003 | S88: 4.364419534 | T88: 0.31346 | U88: NA | V88: NA | W88: 1223.868705 | X88: 82.80071837 | Y88: 84.91580642 | Z88: 1176.931672 | AA88: 46.95085643 | AB88: 49.14938461 | AC88: 1193.584597 | AD88: 42.59629974 | AE88: 44.15710612 | AF88: NA | AG88: NA | AH88: NA | AI88: 0.5268309206 | AJ88: 0.9616486362 | AL88: 1176.931672 | AM88: 46.95085643 | AN88: 3.989259323 | AO88: 49.14938461 | AP88: 4.142893087
A89: UK019 | B89: UK019_193 | C89: NA | D89: 1460 | E89: 20600 | F89: 328 | G89: 2.376811594 | H89: NA | I89: NA | J89: 4.977600796 | K89: 3.953327155 | L89: 0.0759 | M89: 2.625709612 | N89: NA | O89: NA | P89: 2.102436983 | Q89: 4.745855725 | R89: 0.2009 | S89: 3.953327155 | T89: 0.24103 | U89: NA | V89: NA | W89: 1092.434148 | X89: 52.60586557 | Y89: 55.99290734 | Z89: 1180.153268 | AA89: 42.63442253 | AB89: 45.05580738 | AC89: 1149.604433 | AD89: 32.6673771 | AE89: 34.59967432 | AF89: NA | AG89: NA | AH89: NA | AI89: 0.1937742885 | AJ89: 1.080296941 | AL89: 1180.153268 | AM89: 42.63442253 | AN89: 3.612617419 | AO89: 45.05580738 | AP89: 3.885786064
A90: UK019 | B90: UK019_245 | C90: NA | D90: 1735 | E90: 23000 | F90: 342.6 | G90: 2.623277182 | H90: NA | I90: NA | J90: 4.952947003 | K90: 3.978172169 | L90: 0.0806 | M90: 2.289603237 | N90: NA | O90: NA | P90: 2.243740543 | Q90: 4.590004007 | R90: 0.2019 | S90: 3.978172169 | T90: 0.31571 | U90: NA | V90: NA | W90: 1211.708529 | X90: 45.07229295 | Y90: 48.85242116 | Z90: 1185.51902 | AA90: 43.08005301 | AB90: 45.49709213 | AC90: 1194.828809 | AD90: 32.24894376 | AE90: 34.284284 | AF90: NA | AG90: NA | AH90: NA | AI90: 0.6785513136 | AJ90: 0.9783862962 | AK90: LL | AL90: 1185.51902 | AM90: 43.08005301 | AN90: 3.633855914 | AO90: 45.49709213 | AP90: 3.816746515
A91: UK019 | B91: UK019_161 | C91: NA | D91: 277 | E91: 3600 | F91: 55.6 | G91: 0.757493188 | H91: NA | I91: NA | J91: 4.916420846 | K91: 4.360866491 | L91: 0.0808 | M91: 6.795328344 | N91: NA | O91: NA | P91: 2.266019194 | Q91: 8.0742581 | R91: 0.2034 | S91: 4.360866491 | T91: 0.11443 | U91: NA | V91: NA | W91: 1216.584188 | X91: 133.9653485 | Y91: 135.2935343 | Z91: 1193.559283 | AA91: 47.51599225 | AB91: 49.7445315 | AC91: 1201.77882 | AD91: 56.94194861 | AE91: 58.12930678 | AF91: NA | AG91: NA | AH91: NA | AI91: 0.8141069963 | AJ91: 0.9810741374 | AL91: 1193.559283 | AM91: 47.51599225 | AN91: 3.981033277 | AO91: 49.7445315 | AP91: 4.15637165
A92: UK019 | B92: UK019_119 | C92: NA | D92: 594 | E92: 8000 | F92: 125.9 | G92: 2.822869955 | H92: NA | I92: NA | J92: 4.777830865 | K92: 4.086132526 | L92: 0.0803 | M92: 4.342862381 | N92: NA | O92: NA | P92: 2.317320205 | Q92: 5.962963415 | R92: 0.2093 | S92: 4.086132526 | T92: 0.081654 | U92: NA | V92: NA | W92: 1204.365833 | X92: 85.64438287 | Y92: 87.70283805 | Z92: 1225.08738 | AA92: 45.59036503 | AB92: 48.0182446 | AC92: 1217.60399 | AD92: 42.31965112 | AE92: 43.9226089 | AF92: NA | AG92: NA | AH92: NA | AI92: 0.8016102523 | AJ92: =(Z92/W92) -> 1.01720536 | AL92: 1225.08738 | AM92: 45.59036503 | AN92: 3.721397002 | AO92: 48.0182446 | AP92: 3.932607196
A93: UK019 | B93: UK019_255 | C93: NA | D93: 724 | E93: 9040 | F93: 150.8 | G93: 3.474654378 | H93: NA | I93: NA | J93: 4.725897921 | K93: 4.056490539 | L93: 0.0866 | M93: 4.433753099 | N93: NA | O93: NA | P93: 2.526590333 | Q93: 6.009432755 | R93: 0.2116 | S93: 4.056490539 | T93: -0.20969 | U93: NA | V93: NA | W93: 1351.609207 | X93: 85.6299707 | Y93: 87.60556786 | Z93: 1237.336343 | AA93: 45.67013942 | AB93: 48.13702775 | AC93: 1279.719239 | AD93: 43.74332249 | AE93: 45.37527303 | AF93: NA | AG93: NA | AH93: NA | AI93: 0.2246586703 | AJ93: 0.9154542127 | AL93: 1237.336343 | AM93: 45.67013942 | AN93: 3.691004446 | AO93: 48.13702775 | AP93: 3.823423893
A94: UK019 | B94: UK019_295 | C94: NA | D94: 118 | E94: 1726 | F94: 32.1 | G94: 1.952554745 | H94: NA | I94: NA | J94: 4.677268475 | K94: 4.40261423 | L94: 0.0793 | M94: 10.98623325 | N94: NA | O94: NA | P94: 2.337664399 | Q94: 11.83555377 | R94: 0.2138 | S94: 4.40261423 | T94: 0.079173 | U94: NA | V94: NA | W94: 1179.63312 | X94: 218.6220406 | Y94: 219.4604933 | Z94: 1249.031004 | AA94: 49.99172379 | AB94: 52.29310423 | AC94: 1223.812033 | AD94: 84.36372103 | AE94: 85.18901043 | AF94: NA | AG94: NA | AH94: NA | AI94: 0.5906869017 | AJ94: 1.058830057 | AL94: 1249.031004 | AM94: 49.99172379 | AN94: 4.002440584 | AO94: 52.29310423 | AP94: 4.207856222
A95: UK019 | B95: UK019_268 | C95: NA | D95: 546 | E95: 7130 | F95: 118.1 | G95: 1.252386002 | H95: NA | I95: NA | J95: 4.642525534 | K95: 4.048631805 | L95: 0.0831 | M95: 4.420702992 | N95: NA | O95: NA | P95: 2.468016151 | Q95: 5.994500349 | R95: 0.2154 | S95: 4.048631805 | T95: 0.29284 | U95: NA | V95: NA | W95: 1271.565664 | X95: 86.34535099 | Y95: 88.34912923 | Z95: 1257.522906 | AA95: 46.25518349 | AB95: 48.76313483 | AC95: 1262.712815 | AD95: 43.34244906 | AE95: 44.96732626 | AF95: NA | AG95: NA | AH95: NA | AI95: 0.8456942199 | AJ95: 0.9889563246 | AL95: 1257.522906 | AM95: 46.25518349 | AN95: 3.678277611 | AO95: 48.76313483 | AP95: 3.869015843
A96: UK019 | B96: UK019_288 | C96: NA | D96: 735 | E96: 9510 | F96: 165.7 | G96: 3.917257683 | H96: NA | I96: NA | J96: 4.642525534 | K96: 3.998277683 | L96: 0.0823 | M96: 3.643859502 | N96: NA | O96: NA | P96: 2.44425667 | Q96: 5.40961519 | R96: 0.2154 | S96: 3.998277683 | T96: 0.20729 | U96: NA | V96: NA | W96: 1252.665013 | X96: 71.34079231 | Y96: 73.76307505 | Z96: 1257.522906 | AA96: 45.67987368 | AB96: 48.21775372 | AC96: 1255.732457 | AD96: 38.9996827 | AE96: 40.78726218 | AF96: NA | AG96: NA | AH96: NA | AI96: 0.9466825952 | AJ96: 1.003878046 | AL96: 1257.522906 | AM96: 45.67987368 | AN96: 3.632528161 | AO96: 48.21775372 | AP96: 3.837618516
A97: UK019 | B97: UK019_42 | C97: NA | D97: 3230 | E97: 41600 | F97: 539 | G97: 2.578947368 | H97: NA | I97: NA | J97: 4.638218924 | K97: 4.00477892 | L97: 0.0834 | M97: 1.955372126 | N97: NA | O97: NA | P97: 2.479225795 | Q97: 4.456650576 | R97: 0.2156 | S97: 4.00477892 | T97: 0.38707 | U97: NA | V97: NA | W97: 1278.593558 | X97: 38.12299055 | Y97: 42.44487794 | Z97: 1258.583607 | AA97: 45.7891014 | AB97: 48.325014 | AC97: 1265.989538 | AD97: 32.25655809 | AE97: 34.41216689 | AF97: NA | AG97: NA | AH97: NA | AI97: 0.740041167 | AJ97: 0.9843500301 | AK97: SL | AL97: 1258.583607 | AM97: 45.7891014 | AN97: 3.638145383 | AO97: 48.325014 | AP97: 3.822458785
A98: UK019 | B98: UK019_263 | C98: NA | D98: 587 | E98: 7540 | F98: 104.2 | G98: 1.221570926 | H98: NA | I98: NA | J98: 4.566210046 | K98: 4.578887172 | L98: 0.0824 | M98: 4.776411548 | N98: NA | O98: NA | P98: 2.488127328 | Q98: 6.61666948 | R98: 0.219 | S98: 4.578887172 | T98: 0.71094 | U98: NA | V98: NA | W98: 1255.040416 | X98: 93.52927825 | Y98: 95.39220368 | Z98: 1276.588883 | AA98: 53.03082135 | AB98: 55.29153548 | AC98: 1268.584058 | AD98: 47.95925353 | AE98: 49.44018989 | AF98: NA | AG98: NA | AH98: NA | AI98: 0.6788204743 | AJ98: 1.017169541 | AK98: CX | AL98: 1276.588883 | AM98: 53.03082135 | AN98: 4.154103333 | AO98: 55.29153548 | AP98: 4.349673808
A99: UK019 | B99: UK019_240 | C99: NA | D99: 564 | E99: 6800 | F99: 106 | G99: 2.579075426 | H99: NA | I99: NA | J99: 4.557885141 | K99: 4.019238293 | L99: 0.0869 | M99: 4.493981022 | N99: NA | O99: NA | P99: 2.628800777 | Q99: 6.029107885 | R99: 0.2194 | S99: 4.019238293 | T99: 0.43405 | U99: NA | V99: NA | W99: 1358.278275 | X99: 86.71501935 | Y99: 88.66307222 | Z99: 1278.703848 | AA99: 46.61867914 | AB99: 49.1824791 | AC99: 1308.729481 | AD99: 44.3765874 | AE99: 46.02163003 | AF99: NA | AG99: NA | AH99: NA | AI99: 0.2161130224 | AJ99: 0.9414152256 | AL99: 1278.703848 | AM99: 46.61867914 | AN99: 3.645776087 | AO99: 49.1824791 | AP99: 3.798849095
A100: UK019 | B100: UK019_254 | C100: NA | D100: 1140 | E100: 14000 | F100: 206 | G100: 4.204081633 | H100: NA | I100: NA | J100: 4.450378282 | K100: 3.97836317 | L100: 0.0891 | M100: 2.948931774 | N100: NA | O100: NA | P100: 2.760463768 | Q100: 4.952128039 | R100: 0.2247 | S100: 3.97836317 | T100: 0.25363 | U100: NA | V100: NA | W100: 1406.310259 | X100: 56.49233281 | Y100: 59.39466354 | Z100: 1306.661828 | AA100: 47.05477475 | AB100: 49.69458837 | AC100: 1344.917797 | AD100: 36.92783391 | AE100: 38.938957 | AF100: NA | AG100: NA | AH100: NA | AI100: 0.1409584977 | AJ100: 0.9291419298 | AL100: 1306.661828 | AM100: 47.05477475 | AN100: 3.601144057 | AO100: 49.69458837 | AP100: 3.732213055
A101: UK019 | B101: UK019_202 | C101: NA | D101: 819 | E101: 9910 | F101: 154.7 | G101: 1.909876543 | H101: NA | I101: NA | J101: 4.42282176 | K101: 4.064620069 | L101: 0.0892 | M101: 3.367905391 | N101: NA | O101: NA | P101: 2.780780386 | Q101: 5.278628897 | R101: 0.2261 | S101: 4.064620069 | T101: 0.417 | U101: NA | V101: NA | W101: 1408.457826 | X101: 64.50827282 | Y101: 67.06447057 | Z101: 1314.026754 | AA101: 48.31933691 | AB101: 50.91917011 | AC101: 1350.38883 | AD101: 39.44161006 | AE101: 41.33824793 | AF101: NA | AG101: NA | AH101: NA | AI101: 0.1297277474 | AJ101: 0.9329542781 | AL101: 1314.026754 | AM101: 48.31933691 | AN101: 3.677195822 | AO101: 50.91917011 | AP101: 3.805664468
A102: UK019 | B102: UK019_221 | C102: NA | D102: 419 | E102: 5130 | F102: 76.4 | G102: 1.752293578 | H102: NA | I102: NA | J102: 4.405286344 | K102: 4.159465636 | L102: 0.0885 | M102: 5.007235199 | N102: NA | O102: NA | P102: 2.76994026 | Q102: 6.509497578 | R102: 0.227 | S102: 4.159465636 | T102: 0.17645 | U102: NA | V102: NA | W102: 1393.36061 | X102: 96.1745635 | Y102: 97.91947793 | Z102: 1318.75691 | AA102: 49.60730264 | AB102: 52.15904337 | AC102: 1347.473377 | AD102: 48.60095437 | AE102: 50.15082872 | AF102: NA | AG102: NA | AH102: NA | AI102: 0.3633272456 | AJ102: 0.946457723 | AL102: 1318.75691 | AM102: 49.60730264 | AN102: 3.761671484 | AO102: 52.15904337 | AP102: 3.91214186
A103: UK019 | B103: UK019_68 | C103: NA | D103: 1740 | E103: 22000 | F103: 305 | G103: 2.118055556 | H103: NA | I103: NA | J103: 4.385964912 | K103: 4.646146742 | L103: 0.0836 | M103: 3.360605669 | N103: NA | O103: NA | P103: 2.628103104 | Q103: 5.734138995 | R103: 0.228 | S103: 4.646146742 | T103: 0.49325 | U103: NA | V103: NA | W103: 1283.260915 | X103: 65.50230073 | Y103: 68.10901182 | Z103: 1324.008572 | AA103: 55.61070245 | AB103: 57.91462123 | AC103: 1308.534245 | AD103: 42.19984479 | AE103: 43.92582217 | AF103: NA | AG103: NA | AH103: NA | AI103: 0.5406531965 | AJ103: 1.031753213 | AK103: CL | AL103: 1324.008572 | AM103: 55.61070245 | AN103: 4.200176919 | AO103: 57.91462123 | AP103: 4.41343099
A104: UK019 | B104: UK019_40 | C104: NA | D104: 2280 | E104: 26400 | F104: 357 | G104: 2.063583815 | H104: NA | I104: NA | J104: 4.329004329 | K104: 3.964533864 | L104: 0.0925 | M104: 1.95661415 | N104: NA | O104: NA | P104: 2.9461509 | Q104: 4.421070876 | R104: 0.231 | S104: 3.964533864 | T104: 0.46053 | U104: NA | V104: NA | W104: 1477.671497 | X104: 37.11173216 | Y104: 41.31384871 | Z104: 1339.737935 | AA104: 47.95923829 | AB104: 50.66809791 | AC104: 1393.857591 | AD104: 33.52713778 | AE104: 35.80285085 | AF104: NA | AG104: NA | AH104: NA | AI104: 0.01391207531 | AJ104: 0.9066547862 | AL104: 1339.737935 | AM104: 47.95923829 | AN104: 3.579747727 | AO104: 50.66809791 | AP104: 3.664728452
A105: UK019 | B105: UK019_162 | C105: NA | D105: 2350 | E105: 27000 | F105: 371.6 | G105: 2.42875817 | H105: NA | I105: NA | J105: 4.30292599 | K105: 3.941254854 | L105: 0.0919 | M105: 2.008051895 | N105: NA | O105: NA | P105: 2.944780373 | Q105: 4.423320273 | R105: 0.2324 | S105: 3.941254854 | T105: 0.24986 | U105: NA | V105: NA | W105: 1465.320411 | X105: 38.15121847 | Y105: 42.2632451 | Z105: 1347.065191 | AA105: 47.91209431 | AB105: 50.64948704 | AC105: 1393.504879 | AD105: 33.54024985 | AE105: 35.81461277 | AF105: NA | AG105: NA | AH105: NA | AI105: 0.0694094546 | AJ105: 0.9192973635 | AL105: 1347.065191 | AM105: 47.91209431 | AN105: 3.556776215 | AO105: 50.64948704 | AP105: 3.669471795
A106: UK019 | B106: UK019_44 | C106: NA | D106: 4570 | E106: 55500 | F106: 794 | G106: 2.406060606 | H106: NA | I106: NA | J106: 4.301075269 | K106: 3.912066605 | L106: 0.0877 | M106: 1.289248792 | N106: NA | O106: NA | P106: 2.81140767 | Q106: 4.119032358 | R106: 0.2325 | S106: 3.912066605 | T106: 0.56663 | U106: NA | V106: NA | W106: 1375.920723 | X106: 24.79267148 | Y106: 30.87652603 | Z106: 1347.588248 | AA106: 47.57385661 | AB106: 50.33151826 | AC106: 1358.581092 | AD106: 30.86009281 | AE106: 33.26142162 | AF106: NA | AG106: NA | AH106: NA | AI106: 0.576493067 | AJ106: 0.9794083522 | AL106: 1347.588248 | AM106: 47.57385661 | AN106: 3.530296193 | AO106: 50.33151826 | AP106: 3.707081407
A107: UK019 | B107: UK019_62 | C107: NA | D107: 1212 | E107: 15000 | F107: 206.9 | G107: 1.724166667 | H107: NA | I107: NA | J107: 4.291845494 | K107: 4.010445184 | L107: 0.0865 | M107: 2.62111229 | N107: NA | O107: NA | P107: 2.77890246 | Q107: 4.791022877 | R107: 0.233 | S107: 4.010445184 | T107: 0.56431 | U107: NA | V107: NA | W107: 1349.37967 | X107: 50.60442375 | Y107: 53.87357511 | Z107: 1350.202896 | AA107: 48.85532979 | AB107: 51.55363083 | AC107: 1349.884361 | AD107: 35.7886707 | AE107: 37.86726727 | AF107: NA | AG107: NA | AH107: NA | AI107: 0.9876506324 | AJ107: 1.000610077 | AL107: 1350.202896 | AM107: 48.85532979 | AN107: 3.618369502 | AO107: 51.55363083 | AP107: 3.818958534
A108: UK019 | B108: UK019_175 | C108: NA | D108: 160 | E108: 1910 | F108: 27.7 | G108: 1.601156069 | H108: NA | I108: NA | J108: 4.273504274 | K108: 4.730822819 | L108: 0.0876 | M108: 8.974601371 | N108: NA | O108: NA | P108: 2.826319392 | Q108: 10.14515423 | R108: 0.234 | S108: 4.730822819 | T108: 0.16671 | U108: NA | V108: NA | W108: 1373.726586 | X108: 173.3401223 | Y108: 174.3308483 | Z108: 1355.429012 | AA108: 57.83187018 | AB108: 60.14445188 | AC108: 1362.545918 | AD108: 76.23308805 | AE108: 77.24545299 | AF108: NA | AG108: NA | AH108: NA | AI108: 0.8710531122 | AJ108: 0.9866803376 | AL108: 1355.429012 | AM108: 57.83187018 | AN108: 4.266683808 | AO108: 60.14445188 | AP108: 4.429430631
A109: UK019 | B109: UK019_186 | C109: NA | D109: 769 | E109: 8930 | F109: 124.8 | G109: 2.718954248 | H109: NA | I109: NA | J109: 4.266211604 | K109: 4.107585424 | L109: 0.0914 | M109: 3.873857832 | N109: NA | O109: NA | P109: 2.953963181 | Q109: 5.64615201 | R109: 0.2344 | S109: 4.107585424 | T109: 0.22564 | U109: NA | V109: NA | W109: 1454.950197 | X109: 73.74416769 | Y109: 75.96404613 | Z109: 1357.518273 | AA109: 50.28232043 | AB109: 52.93288793 | AC109: 1395.865779 | AD109: 42.85610658 | AE109: 44.66294144 | AF109: NA | AG109: NA | AH109: NA | AI109: 0.188693059 | AJ109: 0.9330341861 | AL109: 1357.518273 | AM109: 50.28232043 | AN109: 3.703988479 | AO109: 52.93288793 | AP109: 3.835023324
A110: UK019 | B110: UK019_235 | C110: NA | D110: 1648 | E110: 19590 | F110: 315 | G110: 1.769662921 | H110: NA | I110: NA | J110: 4.230118443 | K110: 3.947675864 | L110: 0.0882 | M110: 2.36844007 | N110: NA | O110: NA | P110: 2.874864182 | Q110: 4.603656492 | R110: 0.2364 | S110: 3.947675864 | T110: 0.46824 | U110: NA | V110: NA | W110: 1386.844106 | X110: 45.48641083 | Y110: 49.06067286 | Z110: 1367.954432 | AA110: 48.65824216 | AB110: 51.4294757 | AC110: 1375.347121 | AD110: 34.69466026 | AE110: 36.87202408 | AF110: NA | AG110: NA | AH110: NA | AI110: 0.7402620036 | AJ110: 0.9863793817 | AL110: 1367.954432 | AM110: 48.65824216 | AN110: 3.55700753 | AO110: 51.4294757 | AP110: 3.743585369
A111: UK019 | B111: UK019_21 | C111: NA | D111: 2250 | E111: 26500 | F111: 329 | G111: 2.372025955 | H111: NA | I111: NA | J111: 4.217629692 | K111: 3.957585282 | L111: 0.0878 | M111: 2.042196044 | N111: NA | O111: NA | P111: 2.870300354 | Q111: 4.453430806 | R111: 0.2371 | S111: 3.957585282 | T111: 0.52209 | U111: NA | V111: NA | W111: 1378.111694 | X111: 39.26524616 | Y111: 43.36371626 | Z111: 1371.6031 | AA111: 48.89715191 | AB111: 51.66843814 | AC111: 1374.150495 | AD111: 33.54789556 | AE111: 35.79307804 | AF111: NA | AG111: NA | AH111: NA | AI111: 0.9044908585 | AJ111: 0.995277165 | AL111: 1371.6031 | AM111: 48.89715191 | AN111: 3.564963648 | AO111: 51.66843814 | AP111: 3.761069198
A112: UK019 | B112: UK019_251 | C112: NA | D112: 599 | E112: 7280 | F112: 105.2 | G112: 1.962686567 | H112: NA | I112: NA | J112: 4.191114837 | K112: 3.978183586 | L112: 0.0894 | M112: 4.247622949 | N112: NA | O112: NA | P112: 2.941096219 | Q112: 5.819643062 | R112: 0.2386 | S112: 3.978183586 | T112: 0.3709 | U112: NA | V112: NA | W112: 1412.743857 | X112: 81.33826001 | Y112: 83.38047291 | Z112: 1379.414727 | AA112: 49.40272358 | AB112: 52.17451368 | AC112: 1392.556138 | AD112: 44.12571204 | AE112: 45.87901549 | AF112: NA | AG112: NA | AH112: NA | AI112: 0.6177203074 | AJ112: 0.9764082289 | AL112: 1379.414727 | AM112: 49.40272358 | AN112: 3.581426428 | AO112: 52.17451368 | AP112: 3.761394473
A113: UK019 | B113: UK019_157 | C113: NA | D113: 1044 | E113: 12390 | F113: 177.3 | G113: 2.11827957 | H113: NA | I113: NA | J113: 4.145936982 | K113: 4.056673457 | L113: 0.0897 | M113: 3.018790516 | N113: NA | O113: NA | P113: 2.983122043 | Q113: 5.056648664 | R113: 0.2412 | S113: 4.056673457 | T113: 0.50121 | U113: NA | V113: NA | W113: 1419.150268 | X113: 57.73020528 | Y113: 60.56373258 | Z113: 1392.932497 | AA113: 50.81978101 | AB113: 53.56461148 | AC113: 1403.326339 | AD113: 38.47227376 | AE113: 40.48407002 | AF113: NA | AG113: NA | AH113: NA | AI113: 0.6502236492 | AJ113: 0.9815257262 | AL113: 1392.932497 | AM113: 50.81978101 | AN113: 3.648402282 | AO113: 53.56461148 | AP113: 3.823777309
A114: UK019 | B114: UK019_169 | C114: NA | D114: 2590 | E114: 30100 | F114: 402 | G114: 1.668049793 | H114: NA | I114: NA | J114: 4.118616145 | K114: 3.931674471 | L114: 0.0912 | M114: 1.875902553 | N114: NA | O114: NA | P114: 3.053126477 | Q114: 4.356268419 | R114: 0.2428 | S114: 3.931674471 | T114: 0.40474 | U114: NA | V114: NA | W114: 1450.782121 | X114: 35.70973128 | Y114: 40.08890561 | Z114: 1401.237057 | AA114: 49.51670495 | AB114: 52.3592121 | AC114: 1421.01696 | AD114: 33.33152151 | AE114: 35.65953749 | AF114: NA | AG114: NA | AH114: NA | AI114: 0.401536535 | AJ114: 0.9658494114 | AL114: 1401.237057 | AM114: 49.51670495 | AN114: 3.533785 | AO114: 52.3592121 | AP114: 3.695027721
A115: UK019 | B115: UK019_112 | C115: NA | D115: 2346 | E115: 26720 | F115: 410 | G115: 1.687242798 | H115: NA | I115: NA | J115: 4.111842105 | K115: 3.983872402 | L115: 0.0928 | M115: 2.147170294 | N115: NA | O115: NA | P115: 3.111808205 | Q115: 4.525657917 | R115: 0.2432 | S115: 3.983872402 | T115: 0.70426 | U115: NA | V115: NA | W115: 1483.809387 | X115: 40.69408438 | Y115: 44.55412735 | Z115: 1403.311527 | AA115: 50.24061969 | AB115: 53.05159343 | AC115: 1435.612412 | AD115: 34.79056747 | AE115: 37.04756271 | AF115: NA | AG115: NA | AH115: NA | AI115: 0.06942456811 | AJ115: 0.9457491905 | AK115: CX | AL115: 1403.311527 | AM115: 50.24061969 | AN115: 3.580147296 | AO115: 53.05159343 | AP115: 3.694392889
A116: UK019 | B116: UK019_291 | C116: NA | D116: 953 | E116: 11750 | F116: 183 | G116: 0.8983799705 | H116: NA | I116: NA | J116: 4.106776181 | K116: 3.989277455 | L116: 0.0881 | M116: 3.460362708 | N116: NA | O116: NA | P116: 2.957850018 | Q116: 5.280951115 | R116: 0.2435 | S116: 3.989277455 | T116: -0.0030489 | U116: NA | V116: NA | W116: 1384.665707 | X116: 66.49868851 | Y116: 68.99751034 | Z116: 1404.866941 | AA116: 50.35869396 | AB116: 53.16884627 | AC116: 1396.863434 | AD116: 40.09447334 | AE116: 42.02091841 | AF116: NA | AG116: NA | AH116: NA | AI116: 0.8037913194 | AJ116: 1.01458925 | AL116: 1404.866941 | AM116: 50.35869396 | AN116: 3.584588154 | AO116: 53.16884627 | AP116: 3.79788735
A117: UK019 | B117: UK019_187 | C117: NA | D117: 2589 | E117: 30180 | F117: 420 | G117: 3.271028037 | H117: NA | I117: NA | J117: 4.096681688 | K117: 3.977066437 | L117: 0.0906 | M117: 1.74646569 | N117: NA | O117: NA | P117: 3.049279625 | Q117: 4.34363901 | R117: 0.2441 | S117: 3.977066437 | T117: 0.64416 | U117: NA | V117: NA | W117: 1438.208564 | X117: 33.30177849 | Y117: 37.97430346 | Z117: 1407.976644 | AA117: 50.30398098 | AB117: 53.12788513 | AC117: 1420.052795 | AD117: 33.2244711 | AE117: 35.55807 | AF117: NA | AG117: NA | AH117: NA | AI117: 0.5299087551 | AJ117: 0.9789794608 | AL117: 1407.976644 | AM117: 50.30398098 | AN117: 3.572785187 | AO117: 53.12788513 | AP117: 3.741888622
A118: UK019 | B118: UK019_115 | C118: NA | D118: 2190 | E118: 24990 | F118: 353.8 | G118: 5.03988604 | H118: NA | I118: NA | J118: 4.091653028 | K118: 3.925652568 | L118: 0.0913 | M118: 2.100716155 | N118: NA | O118: NA | P118: 3.076615714 | Q118: 4.452387724 | R118: 0.2444 | S118: 3.925652568 | T118: 0.43642 | U118: NA | V118: NA | W118: 1452.867594 | X118: 39.97980145 | Y118: 43.93395614 | Z118: 1409.530933 | AA118: 49.70268732 | AB118: 52.56439348 | AC118: 1426.884462 | AD118: 34.13185573 | AE118: 36.41722088 | AF118: NA | AG118: NA | AH118: NA | AI118: 0.4543566451 | AJ118: 0.9701716377 | AL118: 1409.530933 | AM118: 49.70268732 | AN118: 3.526186346 | AO118: 52.56439348 | AP118: 3.692843918
A119: UK019 | B119: UK019_184 | C119: NA | D119: 1236 | E119: 13890 | F119: 190.4 | G119: 2.795888399 | H119: NA | I119: NA | J119: 4.091653028 | K119: 4.012049176 | L119: 0.0919 | M119: 2.925225933 | N119: NA | O119: NA | P119: 3.096834437 | Q119: 4.965227623 | R119: 0.2444 | S119: 4.012049176 | T119: 0.44778 | U119: NA | V119: NA | W119: 1465.320411 | X119: 55.58944177 | Y119: 58.4906437 | Z119: 1409.530933 | AA119: 50.79659958 | AB119: 53.59994306 | AC119: 1431.907993 | AD119: 38.12788387 | AE119: 40.19383096 | AF119: NA | AG119: NA | AH119: NA | AI119: 0.3505009194 | AJ119: 0.961926772 | AL119: 1409.530933 | AM119: 50.79659958 | AN119: 3.603794594 | AO119: 53.59994306 | AP119: 3.758537743
A120: UK019 | B120: UK019_243 | C120: NA | D120: 1056 | E120: 12180 | F120: 156.6 | G120: 2.497607656 | H120: NA | I120: NA | J120: 4.08997955 | K120: 4.071271912 | L120: 0.09 | M120: 3.380292585 | N120: NA | O120: NA | P120: 3.0340494 | Q120: 5.291656919 | R120: 0.2445 | S120: 4.071271912 | T120: 0.19753 | U120: NA | V120: NA | W120: 1425.529711 | X120: 64.5947215 | Y120: 67.1359868 | Z120: 1410.048946 | AA120: 51.56339914 | AB120: 54.32896749 | AC120: 1416.226517 | AD120: 40.432676 | AE120: 42.36773323 | AF120: NA | AG120: NA | AH120: NA | AI120: 0.8338651028 | AJ120: 0.9891403422 | AK120: CX | AL120: 1410.048946 | AM120: 51.56339914 | AN120: 3.656851719 | AO120: 54.32896749 | AP120: 3.842101122
A121: UK019 | B121: UK019_253 | C121: NA | D121: 367 | E121: 4480 | F121: 65.5 | G121: 2.298245614 | H121: NA | I121: NA | J121: 4.056795132 | K121: 4.103060224 | L121: 0.086 | M121: 5.293879968 | N121: NA | O121: NA | P121: 2.92291812 | Q121: 6.697780851 | R121: 0.2465 | S121: 4.103060224 | T121: 0.11567 | U121: NA | V121: NA | W121: 1338.182709 | X121: 102.4779272 | Y121: 104.1434177 | Z121: 1420.400477 | AA121: 52.30705498 | AB121: 55.07029636 | AC121: 1387.861903 | AD121: 50.71415207 | AE121: 52.24328644 | AF121: NA | AG121: NA | AH121: NA | AI121: 0.3405674941 | AJ121: 1.061439868 | AL121: 1420.400477 | AM121: 52.30705498 | AN121: 3.682556844 | AO121: 55.07029636 | AP121: 3.924364291
A122: UK019 | B122: UK019_256 | C122: NA | D122: 1246 | E122: 14080 | F122: 192.7 | G122: 1.382352941 | H122: NA | I122: NA | J122: 4.004805767 | K122: 3.949725423 | L122: 0.0941 | M122: 2.82372382 | N122: NA | O122: NA | P122: 3.239734648 | Q122: 4.855280334 | R122: 0.2497 | S122: 3.949725423 | T122: 0.49798 | U122: NA | V122: NA | W122: 1510.122313 | X122: 53.33727172 | Y122: 56.31906204 | Z122: 1436.928429 | AA122: 50.87529023 | AB122: 53.76987707 | AC122: 1466.721515 | AD122: 37.68897881 | AE122: 39.82213233 | AF122: NA | AG122: NA | AH122: NA | AI122: 0.1930680961 | AJ122: 0.951531155 | AL122: 1436.928429 | AM122: 50.87529023 | AN122: 3.540558403 | AO122: 53.76987707 | AP122: 3.683111359
A123: UK019 | B123: UK019_239 | C123: NA | D123: 1590 | E123: 18390 | F123: 236 | G123: 2.473794549 | H123: NA | I123: NA | J123: 4.00160064 | K123: 3.939748151 | L123: 0.0919 | M123: 2.571212799 | N123: NA | O123: NA | P123: 3.166525883 | Q123: 4.704545754 | R123: 0.2499 | S123: 3.939748151 | T123: 0.024443 | U123: NA | V123: NA | W123: 1465.320411 | X123: 48.85715331 | Y123: 52.13310328 | Z123: 1437.96002 | AA123: 50.77929142 | AB123: 53.68267138 | AC123: 1449.035454 | AD123: 36.31965628 | AE123: 38.50519841 | AF123: NA | AG123: NA | AH123: NA | AI123: 0.7196303041 | AJ123: 0.9813280487 | AK123: CX | AL123: 1437.96002 | AM123: 50.77929142 | AN123: 3.531342368 | AO123: 53.68267138 | AP123: 3.714258975
A124: UK019 | B124: UK019_5 | C124: NA | D124: 1545 | E124: 17240 | F124: 195.9 | G124: 2.034267913 | H124: NA | I124: NA | J124: 3.982477101 | K124: 3.943471601 | L124: 0.0947 | M124: 2.498818449 | N124: NA | O124: NA | P124: 3.27867196 | Q124: 4.668518171 | R124: 0.2511 | S124: 3.943471601 | T124: -0.051482 | U124: NA | V124: NA | W124: 1522.113675 | X124: 47.12073579 | Y124: 50.45968363 | Z124: 1444.146104 | AA124: 51.02237617 | AB124: 53.93429831 | AC124: 1476.004134 | AD124: 36.33986504 | AE124: 38.55953472 | AF124: NA | AG124: NA | AH124: NA | AI124: 0.3208918648 | AJ124: 0.9487767751 | AL124: 1444.146104 | AM124: 51.02237617 | AN124: 3.533048079 | AO124: 53.93429831 | AP124: 3.681764278
A125: UK019 | B125: UK019_57 | C125: NA | D125: 548 | E125: 6020 | F125: 89.8 | G125: 2.083526682 | H125: NA | I125: NA | J125: 3.95256917 | K125: 4.724358702 | L125: 0.095 | M125: 4.998964195 | N125: NA | O125: NA | P125: 3.3139458 | Q125: 6.878168955 | R125: 0.253 | S125: 4.724358702 | T125: 0.4289 | U125: NA | V125: NA | W125: 1528.073778 | X125: 94.28050992 | Y125: 95.99656669 | Z125: 1453.928612 | AA125: 61.49555052 | AB125: 63.961258 | AC125: 1484.340746 | AD125: 53.70047337 | AE125: 55.23731531 | AF125: NA | AG125: NA | AH125: NA | AI125: 0.3263416198 | AJ125: 0.9514780195 | AK125: SL | AL125: 1453.928612 | AM125: 61.49555052 | AN125: 4.22961279 | AO125: 63.961258 | AP125: 4.344020927
A126: UK019 | B126: UK019_65 | C126: NA | D126: 772 | E126: 8820 | F126: 113.2 | G126: 2.319672131 | H126: NA | I126: NA | J126: 3.912363067 | K126: 4.091164175 | L126: 0.0916 | M126: 3.550223004 | N126: NA | O126: NA | P126: 3.228178925 | Q126: 5.416798656 | R126: 0.2556 | S126: 4.091164175 | T126: 0.37362 | U126: NA | V126: NA | W126: 1459.10682 | X126: 67.53708596 | Y126: 69.95038317 | Z126: 1467.291191 | AA126: 53.68892359 | AB126: 56.5412741 | AC126: 1463.950232 | AD126: 42.01696044 | AE126: 43.93817027 | AF126: NA | AG126: NA | AH126: NA | AI126: 0.9022676933 | AJ126: 1.005609165 | AL126: 1467.291191 | AM126: 53.68892359 | AN126: 3.659050359 | AO126: 56.5412741 | AP126: 3.859507732
A127: UK019 | B127: UK019_281 | C127: NA | D127: 416 | E127: 4690 | F127: 59.8 | G127: 1.444444444 | H127: NA | I127: NA | J127: 3.581661891 | K127: 4.217771764 | L127: 0.0921 | M127: 5.342581666 | N127: NA | O127: NA | P127: 3.545490442 | Q127: 6.806818457 | R127: 0.2792 | S127: 4.217771764 | T127: 0.079322 | U127: NA | V127: NA | W127: 1469.448664 | X127: 101.5737692 | Y127: 103.1948269 | Z127: 1587.332039 | AA127: 59.34587159 | AB127: 62.31678679 | AC127: 1537.427659 | AD127: 53.96078082 | AE127: 55.53718863 | AF127: NA | AG127: NA | AH127: NA | AI127: 0.1929747995 | AJ127: 1.08022286 | AL127: 1469.448664 | AM127: 101.5737692 | AN127: 6.912372757 | AO127: 103.1948269 | AP127: 6.618221385
A128: UK019 | B128: UK019_74 | C128: NA | D128: 735 | E128: 8330 | F128: 109.7 | G128: 2.563084112 | H128: NA | I128: NA | J128: 3.895597974 | K128: 4.169633466 | L128: 0.0929 | M128: 3.950424365 | N128: NA | O128: NA | P128: 3.288083648 | Q128: 5.743839822 | R128: 0.2567 | S128: 4.169633466 | T128: 0.17846 | U128: NA | V128: NA | W128: 1485.849821 | X128: 74.89114531 | Y128: 77.0603386 | Z128: 1472.936262 | AA128: 54.90613083 | AB128: 57.71704123 | AC128: 1478.235194 | AD128: 44.74998514 | AE128: 46.5744844 | AF128: NA | AG128: NA | AH128: NA | AI128: 0.8691711712 | AJ128: 0.9913089743 | AL128: 1472.936262 | AM128: 54.90613083 | AN128: 3.727665089 | AO128: 57.71704123 | AP128: 3.909761336
A129: UK019 | B129: UK019_151 | C129: NA | D129: 1762 | E129: 19710 | F129: 262.1 | G129: 2.176910299 | H129: NA | I129: NA | J129: 3.894080997 | K129: 3.952688392 | L129: 0.0923 | M129: 2.237350894 | N129: NA | O129: NA | P129: 3.268120003 | Q129: 4.541969237 | R129: 0.2568 | S129: 3.952688392 | T129: 0.44416 | U129: NA | V129: NA | W129: 1473.565673 | X129: 42.46254607 | Y129: 46.18511007 | Z129: 1473.449205 | AA129: 52.06538382 | AB129: 55.02336806 | AC129: 1473.496928 | AD129: 35.32731735 | AE129: 37.60325851 | AF129: NA | AG129: NA | AH129: NA | AI129: 0.9984204343 | AJ129: 0.9999209616 | AL129: 1473.449205 | AM129: 52.06538382 | AN129: 3.533571679 | AO129: 55.02336806 | AP129: 3.734225501
A130: UK019 | B130: UK019_124 | C130: NA | D130: 969 | E130: 11270 | F130: 155 | G130: 2.33785822 | H130: NA | I130: NA | J130: 3.877471888 | K130: 4.034551841 | L130: 0.0913 | M130: 3.389999503 | N130: NA | O130: NA | P130: 3.246559708 | Q130: 5.269696878 | R130: 0.2579 | S130: 4.034551841 | T130: 0.344 | U130: NA | V130: NA | W130: 1452.867594 | X130: 64.53997113 | Y130: 67.06483886 | Z130: 1479.088889 | AA130: 53.32472644 | AB130: 56.2357154 | AC130: 1468.354749 | AD130: 40.92953751 | AE130: 42.90441425 | AF130: NA | AG130: NA | AH130: NA | AI130: 0.69583787 | AJ130: 1.018047959 | AL130: 1479.088889 | AM130: 53.32472644 | AN130: 3.6052415 | AO130: 56.2357154 | AP130: 3.821365083
A131: UK019 | B131: UK019_188 | C131: NA | D131: 7110 | E131: 80000 | F131: 1066 | G131: 1.462277092 | H131: NA | I131: NA | J131: 3.875968992 | K131: 3.888761699 | L131: 0.0935 | M131: 1.319697774 | N131: NA | O131: NA | P131: 3.32607924 | Q131: 4.10658858 | R131: 0.258 | S131: 3.888761699 | T131: 0.37063 | U131: NA | V131: NA | W131: 1498.034859 | X131: 24.9602121 | Y131: 30.83231237 | Z131: 1479.601343 | AA131: 51.41357572 | AB131: 54.42866515 | AC131: 1487.192613 | AD131: 32.06960432 | AE131: 34.57978566 | AF131: NA | AG131: NA | AH131: NA | AI131: 0.7589414035 | AJ131: 0.9876948682 | AL131: 1479.601343 | AM131: 51.41357572 | AN131: 3.474826241 | AO131: 54.42866515 | AP131: 3.663028276
A132: UK019 | B132: UK019_242 | C132: NA | D132: 822 | E132: 9590 | F132: 128.4 | G132: 2.292857143 | H132: NA | I132: NA | J132: 3.875968992 | K132: 3.987765095 | L132: 0.0932 | M132: 3.586160893 | N132: NA | O132: NA | P132: 3.315407328 | Q132: 5.363098023 | R132: 0.258 | S132: 3.987765095 | T132: 0.30671 | U132: NA | V132: NA | W132: 1491.954632 | X132: 67.92043735 | Y132: 70.2998965 | Z132: 1479.601343 | AA132: 52.7225638 | AB132: 55.66681194 | AC132: 1484.684691 | AD132: 41.86071986 | AE132: 43.81243656 | AF132: NA | AG132: NA | AH132: NA | AI132: 0.8568728755 | AJ132: 0.9917200633 | AL132: 1479.601343 | AM132: 52.7225638 | AN132: 3.563295212 | AO132: 55.66681194 | AP132: 3.753762912
A133: UK019 | B133: UK019_176 | C133: NA | D133: 1188 | E133: 13140 | F133: 196 | G133: 2.609853529 | H133: NA | I133: NA | J133: 3.865481252 | K133: 4.071608156 | L133: 0.0981 | M133: 3.264818543 | N133: NA | O133: NA | P133: 3.499183444 | Q133: 5.218911103 | R133: 0.2587 | S133: 4.071608156 | T133: 0.3352 | U133: NA | V133: NA | W133: 1588.318249 | X133: 61.04413718 | Y133: 63.61483651 | Z133: 1483.18738 | AA133: 53.94715121 | AB133: 56.84011742 | AC133: 1527.030434 | AD133: 41.23647093 | AE133: 43.26419694 | AF133: NA | AG133: NA | AH133: NA | AI133: 0.1165241354 | AJ133: 0.9338099472 | AK133: CX | AL133: 1483.18738 | AM133: 53.94715121 | AN133: 3.637244487 | AO133: 56.84011742 | AP133: 3.756343703
A134: UK019 | B134: UK019_83 | C134: NA | D134: 3150 | E134: 34600 | F134: 452 | G134: 4 | H134: NA | I134: NA | J134: 3.841721091 | K134: 3.969177665 | L134: 0.0949 | M134: 1.619697168 | N134: NA | O134: NA | P134: 3.405976564 | Q134: 4.2869325 | R134: 0.2603 | S134: 3.969177665 | T134: 0.60004 | U134: NA | V134: NA | W134: 1526.089694 | X134: 30.52129443 | Y134: 35.45116333 | Z134: 1491.376553 | AA134: 52.84801814 | AB134: 55.82623962 | AC134: 1505.774411 | AD134: 33.66162589 | AE134: 36.08683192 | AF134: NA | AG134: NA | AH134: NA | AI134: 0.4957950878 | AJ134: 0.9772535382 | AL134: 1491.376553 | AM134: 52.84801814 | AN134: 3.543573085 | AO134: 55.82623962 | AP134: 3.708830939
A135: UK019 | B135: UK019_191 | C135: NA | D135: 1510 | E135: 17200 | F135: 203 | G135: 1.796460177 | H135: NA | I135: NA | J135: 3.840245776 | K135: 4.088512183 | L135: 0.0948 | M135: 2.988040476 | N135: NA | O135: NA | P135: 3.40369465 | Q135: 5.064021895 | R135: 0.2604 | S135: 4.088512183 | T135: 0.55092 | U135: NA | V135: NA | W135: 1524.102996 | X135: 56.33878404 | Y135: 59.1597634 | Z135: 1491.888032 | AA135: 54.45357738 | AB135: 57.35021552 | AC135: 1505.248395 | AD135: 39.7631523 | AE135: 41.83669624 | AF135: NA | AG135: NA | AH135: NA | AI135: 0.5651521096 | AJ135: 0.9788630007 | AK135: Z | AL135: 1491.888032 | AM135: 54.45357738 | AN135: 3.649977493 | AO135: 57.35021552 | AP135: 3.816196684
A136: UK019 | B136: UK019_296 | C136: NA | D136: 1048 | E136: 12200 | F136: 174.7 | G136: 1.387609214 | H136: NA | I136: NA | J136: 3.834355828 | K136: 3.94887466 | L136: 0.0964 | M136: 3.035990309 | N136: NA | O136: NA | P136: 3.466457626 | Q136: 4.98104891 | R136: 0.2608 | S136: 3.94887466 | T136: 0.36396 | U136: NA | V136: NA | W136: 1555.579993 | X136: 57.0057737 | Y136: 59.77283364 | Z136: 1493.933538 | AA136: 52.65778669 | AB136: 55.65505593 | AC136: 1519.617827 | AD136: 39.27262054 | AE136: 41.38757262 | AF136: NA | AG136: NA | AH136: NA | AI136: 0.3324310012 | AJ136: 0.960370759 | AL136: 1493.933538 | AM136: 52.65778669 | AN136: 3.524774385 | AO136: 55.65505593 | AP136: 3.680258617
A137: UK019 | B137: UK019_150 | C137: NA | D137: 1543 | E137: 17150 | F137: 223.2 | G137: 1.631578947 | H137: NA | I137: NA | J137: 3.821169278 | K137: 3.972794303 | L137: 0.0927 | M137: 2.454756717 | N137: NA | O137: NA | P137: 3.344912269 | Q137: 4.670002689 | R137: 0.2617 | S137: 3.972794303 | T137: 0.34423 | U137: NA | V137: NA | W137: 1481.766194 | X137: 46.53969171 | Y137: 49.95277314 | Z137: 1498.533556 | AA137: 53.12167185 | AB137: 56.11001344 | AC137: 1491.603358 | AD137: 36.52060634 | AE137: 38.74995926 | AF137: NA | AG137: NA | AH137: NA | AI137: 0.7940899589 | AJ137: 1.011315795 | AL137: 1498.533556 | AM137: 53.12167185 | AN137: 3.544910398 | AO137: 56.11001344 | AP137: 3.757627773
A138: UK019 | B138: UK019_107 | C138: NA | D138: 5130 | E138: 58900 | F138: 690 | G138: 3.094170404 | H138: NA | I138: NA | J138: 3.657644477 | K138: 3.99056065 | L138: 0.0936 | M138: 1.347237438 | N138: NA | O138: NA | P138: 3.528382291 | Q138: 4.211843185 | R138: 0.2734 | S138: 3.99056065 | T138: 0.73861 | U138: NA | V138: NA | W138: 1500.056171 | X138: 25.47429185 | Y138: 31.24718475 | Z138: 1558.036993 | AA138: 55.2327177 | AB138: 58.31295188 | AC138: 1533.598787 | AD138: 33.33424604 | AE138: 35.81923133 | AF138: NA | AG138: NA | AH138: NA | AI138: 0.1990870105 | AJ138: 1.038652434 | AL138: 1500.056171 | AM138: 25.47429185 | AN138: 1.69822253 | AO138: 31.24718475 | AP138: 2.043134189
A139: UK019 | B139: UK019_293 | C139: NA | D139: 1240 | E139: 15000 | F139: 222.9 | G139: 2.69528416 | H139: NA | I139: NA | J139: 3.806623525 | K139: 3.937897322 | L139: 0.0882 | M139: 2.69854668 | N139: NA | O139: NA | P139: 3.194698903 | Q139: 4.773802416 | R139: 0.2627 | S139: 3.937897322 | T139: 0.70133 | U139: NA | V139: NA | W139: 1386.844106 | X139: 51.83062098 | Y139: 54.99513763 | Z139: 1503.640841 | AA139: 52.81438205 | AB139: 55.83689481 | AC139: 1455.878116 | AD139: 36.93303181 | AE139: 39.09329586 | AF139: NA | AG139: NA | AH139: NA | AI139: 0.01147552437 | AJ139: 1.084217638 | AL139: 1503.640841 | AM139: 52.81438205 | AN139: 3.512433329 | AO139: 55.83689481 | AP139: 3.836516812
A140: UK019 | B140: UK019_292 | C140: NA | D140: 1700 | E140: 19900 | F140: 269.8 | G140: 2.711557789 | H140: NA | I140: NA | J140: 3.799392097 | K140: 3.916023245 | L140: 0.0917 | M140: 2.340045891 | N140: NA | O140: NA | P140: 3.327794467 | Q140: 4.561913286 | R140: 0.2632 | S140: 3.916023245 | T140: 0.5416 | U140: NA | V140: NA | W140: 1461.180855 | X140: 44.48693068 | Y140: 48.06475131 | Z140: 1506.192967 | AA140: 52.60013668 | AB140: 55.64318815 | AC140: 1487.595117 | AD140: 35.63239627 | AE140: 37.90859781 | AF140: NA | AG140: NA | AH140: NA | AI140: 0.4067145584 | AJ140: 1.030805298 | AL140: 1506.192967 | AM140: 52.60013668 | AN140: 3.492257489 | AO140: 55.64318815 | AP140: 3.734717732
A141: UK019 | B141: UK019_25 | C141: NA | D141: 1937 | E141: 20290 | F141: 239 | G141: 1.327777778 | H141: NA | I141: NA | J141: 3.789314134 | K141: 3.896402467 | L141: 0.1011 | M141: 2.238206092 | N141: NA | O141: NA | P141: 3.678678385 | Q141: 4.493497379 | R141: 0.2639 | S141: 3.896402467 | T141: 0.30913 | U141: NA | V141: NA | W141: 1644.405986 | X141: 41.53446042 | Y141: 45.17294024 | Z141: 1509.764246 | AA141: 52.44671285 | AB141: 55.51067678 | AC141: 1566.751966 | AD141: 35.88920464 | AE141: 38.25002064 | AF141: NA | AG141: NA | AH141: NA | AI141: 0.03338311901 | AJ141: 0.9181213511 | AL141: 1509.764246 | AM141: 52.44671285 | AN141: 3.473834606 | AO141: 55.51067678 | AP141: 3.576282179
A142: UK019 | B142: UK019_54 | C142: NA | D142: 372 | E142: 3730 | F142: 47.2 | G142: 1.25198939 | H142: NA | I142: NA | J142: 3.783579266 | K142: 4.158279629 | L142: 0.1014 | M142: 5.72705939 | N142: NA | O142: NA | P142: 3.695186758 | Q142: 7.077464145 | R142: 0.2643 | S142: 4.158279629 | T142: 0.21586 | U142: NA | V142: NA | W142: 1649.901076 | X142: 106.3477927 | Y142: 107.826814 | Z142: 1511.804089 | AA142: 56.03893342 | AB142: 58.92314781 | AC142: 1570.328365 | AD142: 56.61621851 | AE142: 58.14804473 | AF142: NA | AG142: NA | AH142: NA | AI142: 0.0990865919 | AJ142: 0.9162998386 | AL142: 1511.804089 | AM142: 56.03893342 | AN142: 3.706758953 | AO142: 58.92314781 | AP142: 3.826954535
A143: UK019 | B143: UK019_217 | C143: NA | D143: 4120 | E143: 45700 | F143: 740 | G143: 1.942257218 | H143: NA | I143: NA | J143: 3.783579266 | K143: 4.049003689 | L143: 0.0959 | M143: 1.693395563 | N143: NA | O143: NA | P143: 3.494757496 | Q143: 4.388851718 | R143: 0.2643 | S143: 4.049003689 | T143: 0.45394 | U143: NA | V143: NA | W143: 1545.813921 | X143: 31.82721241 | Y143: 36.55855671 | Z143: 1511.804089 | AA143: 54.56620813 | AB143: 57.52429596 | AC143: 1526.031088 | AD143: 34.6625298 | AE143: 37.04899898 | AF143: NA | AG143: NA | AH143: NA | AI143: 0.5660282282 | AJ143: 0.9779987544 | AK143: CX | AL143: 1511.804089 | AM143: 54.56620813 | AN143: 3.609343864 | AO143: 57.52429596 | AP143: 3.774502511
A144: UK019 | B144: UK019_80 | C144: NA | D144: 2570 | E144: 27300 | F144: 333 | G144: 4.469798658 | H144: NA | I144: NA | J144: 3.766478343 | K144: 3.963698493 | L144: 0.0981 | M144: 1.796767613 | N144: NA | O144: NA | P144: 3.591160434 | Q144: 4.351928262 | R144: 0.2655 | S144: 3.963698493 | T144: 0.35538 | U144: NA | V144: NA | W144: 1588.318249 | X144: 33.58277409 | Y144: 38.04984567 | Z144: 1517.919749 | AA144: 53.60819739 | AB144: 56.63739718 | AC144: 1547.578626 | AD144: 34.57735803 | AE144: 36.99719739 | AF144: NA | AG144: NA | AH144: NA | AI144: 0.2576825526 | AJ144: 0.9556773335 | AL144: 1517.919749 | AM144: 53.60819739 | AN144: 3.531688513 | AO144: 56.63739718 | AP144: 3.673783027
A145: UK019 | B145: UK019_182 | C145: NA | D145: 1404 | E145: 16470 | F145: 212.2 | G145: 2.078354554 | H145: NA | I145: NA | J145: 3.762227239 | K145: 3.91427924 | L145: 0.0901 | M145: 2.782841535 | N145: NA | O145: NA | P145: 3.30203021 | Q145: 4.8026856 | R145: 0.2658 | S145: 3.91427924 | T145: 0.36975 | U145: NA | V145: NA | W145: 1427.650238 | X145: 53.15254902 | Y145: 56.20953175 | Z145: 1519.447757 | AA145: 52.987042 | AB145: 56.05513656 | AC145: 1481.532267 | AD145: 37.44712578 | AE145: 39.61196697 | AF145: NA | AG145: NA | AH145: NA | AI145: 0.1478215696 | AJ145: 1.064299727 | AL145: 1519.447757 | AM145: 52.987042 | AN145: 3.487256587 | AO145: 56.05513656 | AP145: 3.760846528
A146: UK019 | B146: UK019_98 | C146: NA | D146: 6080 | E146: 66500 | F146: 917 | G146: 1.673357664 | H146: NA | I146: NA | J146: 3.760812335 | K146: 3.968258213 | L146: 0.0962 | M146: 1.303230285 | N146: NA | O146: NA | P146: 3.52691249 | Q146: 4.176778953 | R146: 0.2659 | S146: 3.968258213 | T146: 0.63622 | U146: NA | V146: NA | W146: 1551.681164 | X146: 24.47370939 | Y146: 30.36351412 | Z146: 1519.957013 | AA146: 53.73374683 | AB146: 56.76325402 | AC146: 1533.269166 | AD146: 33.05349244 | AE146: 35.55760071 | AF146: NA | AG146: NA | AH146: NA | AI146: 0.5204245554 | AJ146: 0.9795549809 | AK146: Z | AL146: 1519.957013 | AM146: 53.73374683 | AN146: 3.535214902 | AO146: 56.76325402 | AP146: 3.701436848
A147: UK019 | B147: UK019_183 | C147: NA | D147: 1213 | E147: 13740 | F147: 172 | G147: 1.457627119 | H147: NA | I147: NA | J147: 3.759398496 | K147: 3.922295412 | L147: 0.0939 | M147: 2.79343992 | N147: NA | O147: NA | P147: 3.443883912 | Q147: 4.815361657 | R147: 0.266 | S147: 3.922295412 | T147: 0.23432 | U147: NA | V147: NA | W147: 1506.103912 | X147: 52.79309529 | Y147: 55.80701572 | Z147: 1520.466229 | AA147: 53.12711938 | AB147: 56.19110686 | AC147: 1514.473015 | AD147: 37.90935035 | AE147: 40.08975549 | AF147: NA | AG147: NA | AH147: NA | AI147: 0.8350768063 | AJ147: 1.009536073 | AL147: 1520.466229 | AM147: 53.12711938 | AN147: 3.494133469 | AO147: 56.19110686 | AP147: 3.70602472
A148: UK019 | B148: UK019_232 | C148: NA | D148: 2340 | E148: 26100 | F148: 325 | G148: 2.579365079 | H148: NA | I148: NA | J148: 3.75798572 | K148: 3.994091569 | L148: 0.0948 | M148: 2.201424113 | N148: NA | O148: NA | P148: 3.478199486 | Q148: 4.560595968 | R148: 0.2661 | S148: 3.994091569 | T148: 0.39416 | U148: NA | V148: NA | W148: 1524.102996 | X148: 41.49882682 | Y148: 45.25157419 | Z148: 1520.975404 | AA148: 54.11570119 | AB148: 57.1284419 | AC148: 1522.283663 | AD148: 35.98191705 | AE148: 38.28177517 | AF148: NA | AG148: NA | AH148: NA | AI148: 0.9597459087 | AJ148: 0.9979479132 | AL148: 1520.975404 | AM148: 54.11570119 | AN148: 3.55796031 | AO148: 57.1284419 | AP148: 3.753444415
A149: UK019 | B149: UK019_140 | C149: NA | D149: 829 | E149: 9080 | F149: 118.4 | G149: 1.867507886 | H149: NA | I149: NA | J149: 3.75516335 | K149: 3.988478416 | L149: 0.0964 | M149: 3.656710615 | N149: NA | O149: NA | P149: 3.539561602 | Q149: 5.411052818 | R149: 0.2663 | S149: 3.988478416 | T149: -0.027218 | U149: NA | V149: NA | W149: 1555.579993 | X149: 68.67507395 | Y149: 70.99061508 | Z149: 1521.993634 | AA149: 54.07172145 | AB149: 57.09026832 | AC149: 1536.102395 | AD149: 42.86522762 | AE149: 44.82939586 | AF149: NA | AG149: NA | AH149: NA | AI149: 0.6866054933 | AJ149: 0.9784091086 | AL149: 1521.993634 | AM149: 54.07172145 | AN149: 3.552690382 | AO149: 57.09026832 | AP149: 3.729959265
A150: UK019 | B150: UK019_79 | C150: NA | D150: 1291 | E150: 14280 | F150: 162 | G150: 1.128133705 | H150: NA | I150: NA | J150: 3.677822729 | K150: 4.073670713 | L150: 0.095 | M150: 2.807591298 | N150: NA | O150: NA | P150: 3.56150934 | Q150: 4.947460154 | R150: 0.2719 | S150: 4.073670713 | T150: 0.63348 | U150: NA | V150: NA | W150: 1528.073778 | X150: 52.90577413 | Y150: 55.89658337 | Z150: 1550.438972 | AA150: 56.13986261 | AB150: 59.14745728 | AC150: 1540.99971 | AD150: 39.24224883 | AE150: 41.38361209 | AF150: NA | AG150: NA | AH150: NA | AI150: 0.6651474911 | AJ150: 1.0146362 | AK150: CX | AL150: 1528.073778 | AM150: 52.90577413 | AN150: 3.462252602 | AO150: 55.89658337 | AP150: 3.625653707
A151: UK019 | B151: UK019_12 | C151: NA | D151: 734 | E151: 7750 | F151: 84.4 | G151: 1.14986376 | H151: NA | I151: NA | J151: 3.717472119 | K151: 4.041465506 | L151: 0.1 | M151: 3.819970697 | N151: NA | O151: NA | P151: 3.708972 | Q151: 5.561080791 | R151: 0.269 | S151: 4.041465506 | T151: 0.27197 | U151: NA | V151: NA | W151: 1624.083157 | X151: 71.10685681 | Y151: 73.30707167 | Z151: 1535.724021 | AA151: 55.22787904 | AB151: 58.23273124 | AC151: 1573.305199 | AD151: 44.50353731 | AE151: 46.4366663 | AF151: NA | AG151: NA | AH151: NA | AI151: 0.2166360599 | AJ151: 0.945594451 | AL151: 1535.724021 | AM151: 55.22787904 | AN151: 3.596211187 | AO151: 58.23273124 | AP151: 3.733751676
A152: UK019 | B152: UK019_29 | C152: NA | D152: 1839 | E152: 19990 | F152: 200.4 | G152: 3.368067227 | H152: NA | I152: NA | J152: 3.711952487 | K152: 4.09119513 | L152: 0.0979 | M152: 3.196900943 | N152: NA | O152: NA | P152: 3.636482969 | Q152: 5.192114524 | R152: 0.2694 | S152: 4.09119513 | T152: 0.089161 | U152: NA | V152: NA | W152: 1584.503488 | X152: 59.80273397 | Y152: 62.42691323 | Z152: 1537.755667 | AA152: 55.97297755 | AB152: 58.94664286 | AC152: 1557.553026 | AD152: 41.37207521 | AE152: 43.42704264 | AF152: NA | AG152: NA | AH152: NA | AI152: 0.552098528 | AJ152: 0.9704968646 | AK152: CX | AL152: 1537.755667 | AM152: 55.97297755 | AN152: 3.639913593 | AO152: 58.94664286 | AP152: 3.801125527
A153: UK019 | B153: UK019_234 | C153: NA | D153: 901 | E153: 9270 | F153: 124.6 | G153: 1.609819121 | H153: NA | I153: NA | J153: 3.711952487 | K153: 4.029013196 | L153: 0.1052 | M153: 3.486130951 | N153: NA | O153: NA | P153: 3.907640534 | Q153: 5.327856637 | R153: 0.2694 | S153: 4.029013196 | T153: 0.18288 | U153: NA | V153: NA | W153: 1717.813087 | X153: 64.11344397 | Y153: 66.48767431 | Z153: 1537.755667 | AA153: 55.12220441 | AB153: 58.13939173 | AC153: 1615.264541 | AD153: 43.1007703 | AE153: 45.13652525 | AF153: NA | AG153: NA | AH153: NA | AI153: 0.01480515809 | AJ153: 0.8951821819 | AL153: 1537.755667 | AM153: 55.12220441 | AN153: 3.584587954 | AO153: 58.13939173 | AP153: 3.664310387
A154: UK019 | B154: UK019_274 | C154: NA | D154: 2117 | E154: 23000 | F154: 323 | G154: 1.683168317 | H154: NA | I154: NA | J154: 3.711952487 | K154: 3.984821761 | L154: 0.0967 | M154: 1.92683588 | N154: NA | O154: NA | P154: 3.591909122 | Q154: 4.426228753 | R154: 0.2694 | S154: 3.984821761 | T154: 0.62435 | U154: NA | V154: NA | W154: 1561.409361 | X154: 36.14188006 | Y154: 40.35491366 | Z154: 1537.755667 | AA154: 54.51757842 | AB154: 57.56645796 | AC154: 1547.744193 | AD154: 35.16976366 | AE154: 37.55178005 | AF154: NA | AG154: NA | AH154: NA | AI154: 0.6388598437 | AJ154: 0.9848510621 | AL154: 1537.755667 | AM154: 54.51757842 | AN154: 3.545269224 | AO154: 57.56645796 | AP154: 3.71992713
A155: UK019 | B155: UK019_36 | C155: NA | D155: 1302 | E155: 13710 | F155: 156.2 | G155: 0.8977011494 | H155: NA | I155: NA | J155: 3.710575139 | K155: 4.017355315 | L155: 0.1024 | M155: 2.874011217 | N155: NA | O155: NA | P155: 3.805046784 | Q155: 4.939542914 | R155: 0.2695 | S155: 4.017355315 | T155: 0.42253 | U155: NA | V155: NA | W155: 1668.073758 | X155: 53.18018959 | Y155: 56.05273003 | Z155: 1538.263479 | AA155: 54.97877309 | AB155: 58.00514323 | AC155: 1593.813047 | AD155: 39.73751407 | AE155: 41.91273937 | AF155: NA | AG155: NA | AH155: NA | AI155: 0.03413167479 | AJ155: 0.9221795331 | AL155: 1538.263479 | AM155: 54.97877309 | AN155: 3.574080374 | AO155: 58.00514323 | AP155: 3.671390552
A156: UK019 | B156: UK019_248 | C156: NA | D156: 1016 | E156: 10330 | F156: 129.1 | G156: 1.497679814 | H156: NA | I156: NA | J156: 3.696857671 | K156: 3.988760008 | L156: 0.1014 | M156: 3.418453243 | N156: NA | O156: NA | P156: 3.781869156 | Q156: 5.253192265 | R156: 0.2705 | S156: 3.988760008 | T156: 0.16455 | U156: NA | V156: NA | W156: 1649.901076 | X156: 63.41243619 | Y156: 65.85278717 | Z156: 1543.339396 | AA156: 54.74685218 | AB156: 57.80267194 | AC156: 1588.903393 | AD156: 42.20968218 | AE156: 44.25900039 | AF156: NA | AG156: NA | AH156: NA | AI156: 0.1510101098 | AJ156: =(Z156/W156) -> 0.9354132916 | AL156: 1543.339396 | AM156: 54.74685218 | AN156: 3.547298302 | AO156: 57.80267194 | AP156: 3.675572706
A157: UK019 | B157: UK019_284 | C157: NA | D157: 2620 | E157: 28200 | F157: 400 | G157: 2.10748156 | H157: NA | I157: NA | J157: 3.6900369 | K157: 3.944352874 | L157: 0.0968 | M157: 1.856460062 | N157: NA | O157: NA | P157: 3.616978464 | Q157: 4.359399449 | R157: 0.271 | S157: 3.944352874 | T157: 0.50876 | U157: NA | V157: NA | W157: 1563.347475 | X157: 34.81250045 | Y157: 39.1664708 | Z157: 1545.875856 | AA157: 54.21605917 | AB157: 57.30892243 | AC157: 1553.272558 | AD157: 34.69074143 | AE157: 37.11048512 | AF157: NA | AG157: NA | AH157: NA | AI157: 0.7539157154 | AJ157: 0.9888242255 | AL157: 1545.875856 | AM157: 54.21605917 | AN157: 3.507141854 | AO157: 57.30892243 | AP157: 3.691519073
A158: UK019 | B158: UK019_103 | C158: NA | D158: 1211 | E158: 13320 | F158: 146.6 | G158: 2.178306092 | H158: NA | I158: NA | J158: 3.58037952 | K158: 3.99395785 | L158: 0.0965 | M158: 2.990302066 | N158: NA | O158: NA | P158: 3.716203806 | Q158: 4.989349231 | R158: 0.2793 | S158: 3.99395785 | T158: 0.31771 | U158: NA | V158: NA | W158: 1557.525626 | X158: 56.13274329 | Y158: 58.93924721 | Z158: 1587.83596 | AA158: 56.21228323 | AB158: 59.34196193 | AC158: 1574.863378 | AD158: 39.93968861 | AE158: 42.08367448 | AF158: NA | AG158: NA | AH158: NA | AI158: 0.6528988877 | AJ158: 1.019460569 | AK158: CL | AL158: 1557.525626 | AM158: 56.13274329 | AN158: 3.603969165 | AO158: 58.93924721 | AP158: 3.734432839
A159: UK019 | B159: UK019_271 | C159: NA | D159: 2170 | E159: 23600 | F159: 301 | G159: 0.9585987261 | H159: NA | I159: NA | J159: 3.576537911 | K159: 3.937250762 | L159: 0.0975 | M159: 2.020065675 | N159: NA | O159: NA | P159: 3.75874668 | Q159: 4.425224163 | R159: 0.2796 | S159: 3.937250762 | T159: 0.41774 | U159: NA | V159: NA | W159: 1576.844793 | X159: 37.81463311 | Y159: 41.84435941 | Z159: 1589.347488 | AA159: 55.46064701 | AB159: 58.63563296 | AC159: 1583.981653 | AD159: 35.50525305 | AE159: 37.91108994 | AF159: NA | AG159: NA | AH159: NA | AI159: 0.8361382826 | AJ159: 1.007928932 | AL159: 1576.844793 | AM159: 37.81463311 | AN159: 2.398120174 | AO159: 41.84435941 | AP159: 2.640273291
A160: UK019 | B160: UK019_31 | C160: NA | D160: 2490 | E160: 26700 | F160: 286.8 | G160: 2.137108793 | H160: NA | I160: NA | J160: 3.516174402 | K160: 3.88353936 | L160: 0.0978 | M160: 1.949580219 | N160: NA | O160: NA | P160: 3.835038442 | Q160: 4.345427596 | R160: 0.2844 | S160: 3.88353936 | T160: 0.31965 | U160: NA | V160: NA | W160: 1582.59247 | X160: 36.46724104 | Y160: 40.62466311 | Z160: 1613.483856 | AA160: 55.43523807 | AB160: 58.69470398 | AC160: 1600.131065 | AD160: 35.01098131 | AE160: 37.46831671 | AF160: NA | AG160: NA | AH160: NA | AI160: 0.6292572939 | AJ160: 1.019519483 | AL160: 1582.59247 | AM160: 36.46724104 | AN160: 2.304272371 | AO160: 40.62466311 | AP160: 2.534689843
A161: UK019 | B161: UK019_214 | C161: NA | D161: 878 | E161: 9620 | F161: 118.9 | G161: 1.834876543 | H161: NA | I161: NA | J161: 3.498950315 | K161: 4.124733852 | L161: 0.0978 | M161: 3.376047608 | N161: NA | O161: NA | P161: 3.853916971 | Q161: 5.330208889 | R161: 0.2858 | S161: 4.124733852 | T161: 0.52647 | U161: NA | V161: NA | W161: 1582.59247 | X161: 63.17341441 | Y161: 65.66481844 | Z161: 1620.506641 | AA161: 59.10375974 | AB161: 62.19417976 | AC161: 1604.087934 | AD161: 42.99754243 | AE161: 45.02665728 | AF161: NA | AG161: NA | AH161: NA | AI161: 0.5249787568 | AJ161: 1.023957002 | AL161: 1582.59247 | AM161: 63.17341441 | AN161: 3.99176766 | AO161: 65.66481844 | AP161: 4.085754504
A162: UK019 | B162: UK019_143 | C162: NA | D162: 1520 | E162: 16200 | F162: 190.3 | G162: 1.420149254 | H162: NA | I162: NA | J162: 3.522367031 | K162: 3.988651002 | L162: 0.0981 | M162: 2.710989779 | N162: NA | O162: NA | P162: 3.840039349 | Q162: 4.82273806 | R162: 0.2839 | S162: 3.988651002 | T162: 0.41862 | U162: NA | V162: NA | W162: 1588.318249 | X162: 50.68055924 | Y162: 53.74727108 | Z162: 1610.973864 | AA162: 56.85775383 | AB162: 60.03158026 | AC162: 1601.180739 | AD162: 38.87070768 | AE162: 41.09987298 | AF162: NA | AG162: NA | AH162: NA | AI162: 0.71581072 | AJ162: 1.014263901 | AL162: 1588.318249 | AM162: 50.68055924 | AN162: 3.190831515 | AO162: 53.74727108 | AP162: 3.352618443
A163: UK019 | B163: UK019_76 | C163: NA | D163: 616 | E163: 6560 | F163: 73.9 | G163: 0.8663540445 | H163: NA | I163: NA | J163: 3.28407225 | K163: 4.126225399 | L163: 0.099 | M163: 4.183026378 | N163: NA | O163: NA | P163: 4.15646154 | Q163: 5.875665555 | R163: 0.3045 | S163: 4.126225399 | T163: 0.2962 | U163: NA | V163: NA | W163: 1605.365785 | X163: 78.06536539 | Y163: 80.08541735 | Z163: 1713.584694 | AA163: 62.09087741 | AB163: 65.33521982 | AC163: 1665.482658 | AD163: 48.12646988 | AE163: 50.00360015 | AF163: NA | AG163: NA | AH163: NA | AI163: 0.1466403626 | AJ163: 1.067410748 | AL163: 1605.365785 | AM163: 78.06536539 | AN163: 4.862777451 | AO163: 80.08541735 | AP163: 4.765304221
A164: UK019 | B164: UK019_14 | C164: NA | D164: 1579 | E164: 16380 | F164: 182 | G164: 1.67896679 | H164: NA | I164: NA | J164: 3.584229391 | K164: 4.225907328 | L164: 0.0997 | M164: 2.556795878 | N164: NA | O164: NA | P164: 3.835311444 | Q164: 4.939179882 | R164: 0.279 | S164: 4.225907328 | T164: 0.62147 | U164: NA | V164: NA | W164: 1618.492423 | X164: 47.60895762 | Y164: 50.83609204 | Z164: 1586.324078 | AA164: 59.42704499 | AB164: 62.39085242 | AC164: 1600.188396 | AD164: 39.8000187 | AE164: 41.97898508 | AF164: NA | AG164: NA | AH164: NA | AI164: 0.5518122723 | AJ164: 0.9801245009 | AL164: 1618.492423 | AM164: 47.60895762 | AN164: 2.941561972 | AO164: 50.83609204 | AP164: 3.178373377
A165: UK019 | B165: UK019_123 | C165: NA | D165: 814 | E165: 8570 | F165: 101.6 | G165: 0.6142684401 | H165: NA | I165: NA | J165: 3.527336861 | K165: 3.942642332 | L165: 0.1 | M165: 3.575942088 | N165: NA | O165: NA | P165: 3.908898 | Q165: 5.322761536 | R165: 0.2835 | S165: 3.942642332 | T165: 0.3356 | U165: NA | V165: NA | W165: 1624.083157 | X165: 66.55844695 | Y165: 68.90323026 | Z165: 1608.965166 | AA165: 56.14017414 | AB165: 59.34551876 | AC165: 1615.524676 | AD165: 43.06232909 | AE165: 45.10007188 | AF165: NA | AG165: NA | AH165: NA | AI165: 0.8215356602 | AJ165: 0.990691369 | AL165: 1624.083157 | AM165: 66.55844695 | AN165: 4.098216688 | AO165: 68.90323026 | AP165: 4.270433177
A166: UK019 | B166: UK019_282 | C166: NA | D166: 1120 | E166: 12000 | F166: 150.8 | G166: 2.348909657 | H166: NA | I166: NA | J166: 3.456619426 | K166: 4.007692121 | L166: 0.1001 | M166: 3.004833542 | N166: NA | O166: NA | P166: 3.992857268 | Q166: 5.009053878 | R166: 0.2893 | S166: 4.007692121 | T166: 0.11815 | U166: NA | V166: NA | W166: 1625.942113 | X166: 55.90467608 | Y166: 58.67344063 | Z166: 1638.030204 | AA166: 57.97205753 | AB166: 61.1782189 | AC166: 1632.744423 | AD166: 40.6960921 | AE166: 42.86405268 | AF166: NA | AG166: NA | AH166: NA | AI166: 0.874185956 | AJ166: 1.007434515 | AL166: 1625.942113 | AM166: 55.90467608 | AN166: 3.438294367 | AO166: 58.67344063 | AP166: 3.589969882
A167: UK019 | B167: UK019_22 | C167: NA | D167: 3000 | E167: 31400 | F167: 359 | G167: 0.9702702703 | H167: NA | I167: NA | J167: 3.623188406 | K167: 3.897134927 | L167: 0.1003 | M167: 1.810217323 | N167: NA | O167: NA | P167: 3.816904464 | Q167: 4.297039376 | R167: 0.276 | S167: 3.897134927 | T167: 0.072138 | U167: NA | V167: NA | W167: 1629.653126 | X167: 33.65325292 | Y167: 38.06727602 | Z167: 1571.185721 | AA167: 54.34159011 | AB167: 57.51510464 | AC167: 1596.315677 | AD167: 34.58680319 | AE167: 37.06745977 | AF167: NA | AG167: NA | AH167: NA | AI167: 0.419526482 | AJ167: 0.9641227911 | AL167: 1629.653126 | AM167: 33.65325292 | AN167: 2.0650562 | AO167: 38.06727602 | AP167: 2.395124222
A168: UK019 | B168: UK019_55 | C168: NA | D168: 1414 | E168: 14700 | F168: 165.7 | G168: 6.818930041 | H168: NA | I168: NA | J168: 3.342245989 | K168: 4.021087447 | L168: 0.1006 | M168: 2.534725607 | N168: NA | O168: NA | P168: 4.150121818 | Q168: 4.753312336 | R168: 0.2992 | S168: 4.021087447 | T168: 0.40593 | U168: NA | V168: NA | W168: 1635.20248 | X168: 47.09599826 | Y168: 50.34235527 | Z168: 1687.34047 | AA168: 59.69799089 | AB168: 62.97822826 | AC168: 1664.233506 | AD168: 38.91187295 | AE168: 41.20724385 | AF168: NA | AG168: NA | AH168: NA | AI168: 0.4137239509 | AJ168: 1.03188473 | AL168: 1635.20248 | AM168: 47.09599826 | AN168: 2.880132512 | AO168: 50.34235527 | AP168: 3.017621071
A169: UK019 | B169: UK019_139 | C169: NA | D169: 603 | E169: 6280 | F169: 71.5 | G169: 1.193656093 | H169: NA | I169: NA | J169: 3.374957813 | K169: 4.142458404 | L169: 0.1006 | M169: 4.312855968 | N169: NA | O169: NA | P169: 4.109896706 | Q169: 5.980024099 | R169: 0.2963 | S169: 4.142458404 | T169: 0.15002 | U169: NA | V169: NA | W169: 1635.20248 | X169: 80.18238094 | Y169: 82.1358335 | Z169: 1672.935069 | AA169: 61.04013301 | AB169: 64.20523213 | AC169: 1656.271706 | AD169: 48.8750101 | AE169: 50.71666234 | AF169: NA | AG169: NA | AH169: NA | AI169: 0.6442863468 | AJ169: 1.023075179 | AL169: 1635.20248 | AM169: 80.18238094 | AN169: 4.903513902 | AO169: 82.1358335 | AP169: 4.940779203
A170: UK019 | B170: UK019_73 | C170: NA | D170: 3370 | E170: 35100 | F170: 397 | G170: 1.388111888 | H170: NA | I170: NA | J170: 3.43997248 | K170: 3.932950067 | L170: 0.1007 | M170: 1.672606475 | N170: NA | O170: NA | P170: 4.036228801 | Q170: 4.273840036 | R170: 0.2907 | S170: 3.932950067 | T170: 0.46249 | U170: NA | V170: NA | W170: 1637.047709 | X170: 31.06461442 | Y170: 35.79041112 | Z170: 1645.026313 | AA170: 57.10415628 | AB170: 60.38019905 | AC170: 1641.526677 | AD170: 34.79272345 | AE170: 37.31442484 | AF170: NA | AG170: NA | AH170: NA | AI170: 0.8915290599 | AJ170: 1.004873777 | AL170: 1637.047709 | AM170: 31.06461442 | AN170: 1.897599823 | AO170: 35.79041112 | AP170: 2.179800765
A171: UK019 | B171: UK019_283 | C171: NA | D171: 2879 | E171: 30410 | F171: 428 | G171: 4.056872038 | H171: NA | I171: NA | J171: 3.49528137 | K171: 3.889010845 | L171: 0.1009 | M171: 1.614209331 | N171: NA | O171: NA | P171: 3.980249521 | Q171: 4.210709812 | R171: 0.2861 | S171: 3.889010845 | T171: 0.3608 | U171: NA | V171: NA | W171: 1640.731364 | X171: 29.96553869 | Y171: 34.83626561 | Z171: 1622.010529 | AA171: 55.77137023 | AB171: 59.04163671 | AC171: 1630.177179 | AD171: 34.18286365 | AE171: 36.73254105 | AF171: NA | AG171: NA | AH171: NA | AI171: 0.7616933254 | AJ171: 0.9885899449 | AL171: 1640.731364 | AM171: 29.96553869 | AN171: 1.826352525 | AO171: 34.83626561 | AP171: 2.138745159
A172: UK019 | B172: UK019_86 | C172: NA | D172: 706 | E172: 7510 | F172: 86.1 | G172: 1.606343284 | H172: NA | I172: NA | J172: 3.404834866 | K172: 4.017738247 | L172: 0.1011 | M172: 3.868432922 | N172: NA | O172: NA | P172: 4.094080492 | Q172: 5.577364422 | R172: 0.2937 | S172: 4.017738247 | T172: 0.22253 | U172: NA | V172: NA | W172: 1644.405986 | X172: 71.82184689 | Y172: 73.98973183 | Z172: 1659.992457 | AA172: 58.80066768 | AB172: 62.03684203 | AC172: 1653.124006 | AD172: 45.54499224 | AE172: 47.51218894 | AF172: NA | AG172: NA | AH172: NA | AI172: 0.8347578689 | AJ172: 1.009478481 | AL172: 1644.405986 | AM172: 71.82184689 | AN172: 4.367646888 | AO172: 73.98973183 | AP172: 4.469459658
A173: UK019 | B173: UK019_210 | C173: NA | D173: 1980 | E173: 20400 | F173: 288.7 | G173: 2.182161754 | H173: NA | I173: NA | J173: 3.106554831 | K173: 4.084608158 | L173: 0.1011 | M173: 2.799732966 | N173: NA | O173: NA | P173: 4.487179129 | Q173: 4.952022666 | R173: 0.3219 | S173: 4.084608158 | T173: 0.32642 | U173: NA | V173: NA | W173: 1644.405986 | X173: 51.96197063 | Y173: 54.91543853 | Z173: 1799.001422 | AA173: 64.12174059 | AB173: 67.53909948 | AC173: 1728.602634 | AD173: 41.14095516 | AE173: 43.38213759 | AF173: NA | AG173: NA | AH173: NA | AI173: 0.02785587156 | AJ173: 1.094012937 | AL173: 1644.405986 | AM173: 51.96197063 | AN173: 3.159923465 | AO173: 54.91543853 | AP173: 3.152036196
A174: UK019 | B174: UK019_230 | C174: NA | D174: 738 | E174: 7710 | F174: 96.6 | G174: 1.5 | H174: NA | I174: NA | J174: 3.541076487 | K174: 4.086409665 | L174: 0.1011 | M174: 3.769404345 | N174: NA | O174: NA | P174: 3.936562243 | Q174: 5.559420209 | R174: 0.2824 | S174: 4.086409665 | T174: 0.48285 | U174: NA | V174: NA | W174: 1644.405986 | X174: 69.98065991 | Y174: 72.20352029 | Z174: 1603.438017 | AA174: 58.01135564 | AB174: 61.10036595 | AC174: 1621.230834 | AD174: 45.04397166 | AE174: 47.00178595 | AF174: NA | AG174: NA | AH174: NA | AI174: 0.5064646895 | AJ174: 0.9750864627 | AL174: 1644.405986 | AM174: 69.98065991 | AN174: 4.255680196 | AO174: 72.20352029 | AP174: 4.466943877
A175: UK019 | B175: UK019_114 | C175: NA | D175: 2310 | E175: 24200 | F175: 305 | G175: 1.372637264 | H175: NA | I175: NA | J175: 3.636363636 | K175: 3.924088489 | L175: 0.1012 | M175: 2.038794542 | N175: NA | O175: NA | P175: 3.8372004 | Q175: 4.422120945 | R175: 0.275 | S175: 3.924088489 | T175: 0.5374 | U175: NA | V175: NA | W175: 1646.239923 | X175: 37.82347413 | Y175: 41.78392884 | Z175: 1566.131691 | AA175: 54.56194924 | AB175: 57.70589901 | AC175: 1600.584986 | AD175: 35.63355603 | AE175: 38.05138513 | AF175: NA | AG175: NA | AH175: NA | AI175: 0.1371181153 | AJ175: 0.9513386652 | AL175: 1646.239923 | AM175: 37.82347413 | AN175: 2.297567541 | AO175: 41.78392884 | AP175: 2.616699172
A176: UK019 | B176: UK019_154 | C176: NA | D176: 4280 | E176: 45400 | F176: 577 | G176: 5.537428023 | H176: NA | I176: NA | J176: 3.551136364 | K176: 3.931545911 | L176: 0.1012 | M176: 1.411843836 | N176: NA | O176: NA | P176: 3.92929321 | Q176: 4.177362358 | R176: 0.2816 | S176: 3.931545911 | T176: 0.74372 | U176: NA | V176: NA | W176: 1646.239923 | X176: 26.18957062 | Y176: 31.63922996 | Z176: 1599.415293 | AA176: 55.6893966 | AB176: 58.88648683 | AC176: 1619.734592 | AD176: 33.82380343 | AE176: 36.38567457 | AF176: NA | AG176: NA | AH176: NA | AI176: 0.2839189372 | AJ176: 0.9715566184 | AL176: 1646.239923 | AM176: 26.18957062 | AN176: 1.590872038 | AO176: 31.63922996 | AP176: 1.949006556
A177: UK019 | B177: UK019_136 | C177: NA | D177: 1735 | E177: 17970 | F177: 211 | G177: 3.26625387 | H177: NA | I177: NA | J177: 3.497726478 | K177: 3.971951603 | L177: 0.1014 | M177: 2.299157996 | N177: NA | O177: NA | P177: 3.997177049 | Q177: 4.589392882 | R177: 0.2859 | S177: 3.971951603 | T177: 0.41718 | U177: NA | V177: NA | W177: 1649.901076 | X177: 42.63603582 | Y177: 46.18318772 | Z177: 1621.007976 | AA177: 56.92989762 | AB177: 60.13381592 | AC177: 1633.622544 | AD177: 37.29142671 | AE177: 39.64620876 | AF177: NA | AG177: NA | AH177: NA | AI177: 0.6369271337 | AJ177: 0.9824879807 | AL177: 1649.901076 | AM177: 42.63603582 | AN177: 2.584157102 | AO177: 46.18318772 | AP177: 2.830939475
A178: UK019 | B178: UK019_222 | C178: NA | D178: 2540 | E178: 27500 | F178: 319 | G178: 1.135231317 | H178: NA | I178: NA | J178: 3.563791875 | K178: 4.071027042 | L178: 0.1016 | M178: 2.037990012 | N178: NA | O178: NA | P178: 3.930815405 | Q178: 4.552654662 | R178: 0.2806 | S178: 4.071027042 | T178: 0.54136 | U178: NA | V178: NA | W178: 1653.5533 | X178: 37.77308658 | Y178: 41.73123728 | Z178: 1594.383356 | AA178: 57.50530106 | AB178: 60.58995564 | AC178: 1620.0481 | AD178: 36.86797803 | AE178: 39.23255997 | AF178: NA | AG178: NA | AH178: NA | AI178: 0.2910033806 | AJ178: 0.9642164881 | AL178: 1653.5533 | AM178: 37.77308658 | AN178: 2.284358574 | AO178: 41.73123728 | AP178: 2.579709155
A179: UK019 | B179: UK019_121 | C179: NA | D179: 2477 | E179: 26170 | F179: 312.2 | G179: 1.054017556 | H179: NA | I179: NA | J179: 3.570153517 | K179: 3.963583857 | L179: 0.1017 | M179: 1.830105906 | N179: NA | O179: NA | P179: 3.92767312 | Q179: 4.365694059 | R179: 0.2801 | S179: 3.963583857 | T179: 0.57335 | U179: NA | V179: NA | W179: 1655.376078 | X179: 33.91080158 | Y179: 38.26794792 | Z179: 1591.865914 | AA179: 55.90959634 | AB179: 59.06903136 | AC179: 1619.400815 | AD179: 35.34695735 | AE179: 37.80567978 | AF179: NA | AG179: NA | AH179: NA | AI179: 0.2295965298 | AJ179: 0.9616339967 | AL179: 1655.376078 | AM179: 33.91080158 | AN179: 2.04852553 | AO179: 38.26794792 | AP179: 2.365440991
A180: UK019 | B180: UK019_116 | C180: NA | D180: 554 | E180: 6040 | F180: 73.4 | G180: 1.041134752 | H180: NA | I180: NA | J180: 3.598416697 | K180: 4.22127863 | L180: 0.102 | M180: 4.560726023 | N180: NA | O180: NA | P180: 3.908318904 | Q180: 6.214452118 | R180: 0.2779 | S180: 4.22127863 | T180: 0.39018 | U180: NA | V180: NA | W180: 1660.831135 | X180: 84.52110602 | Y180: 86.36522143 | Z180: 1580.777474 | AA180: 59.17879271 | AB180: 62.13653955 | AC180: 1615.404885 | AD180: 50.28573796 | AE180: 52.04280453 | AF180: NA | AG180: NA | AH180: NA | AI180: 0.2559230305 | AJ180: 0.9517990366 | AL180: 1660.831135 | AM180: 84.52110602 | AN180: 5.089084872 | AO180: 86.36522143 | AP180: 5.390134649
A181: UK019 | B181: UK019_58 | C181: NA | D181: 2335 | E181: 24320 | F181: 282 | G181: 1.65202109 | H181: NA | I181: NA | J181: 3.484320557 | K181: 3.927641029 | L181: 0.1021 | M181: 1.817120913 | N181: NA | O181: NA | P181: 4.040256276 | Q181: 4.327619723 | R181: 0.287 | S181: 3.927641029 | T181: 0.70954 | U181: NA | V181: NA | W181: 1662.645079 | X181: 33.63881709 | Y181: 38.01941421 | Z181: 1626.520088 | AA181: 56.46306497 | AB181: 59.71084919 | AC181: 1642.338355 | AD181: 35.23786585 | AE181: 37.73087897 | AF181: NA | AG181: NA | AH181: NA | AI181: 0.4292599211 | AJ181: 0.9782725783 | AL181: 1662.645079 | AM181: 33.63881709 | AN181: 2.023210938 | AO181: 38.01941421 | AP181: 2.312610063
A182: UK019 | B182: UK019_94 | C182: NA | D182: 4130 | E182: 42500 | F182: 480 | G182: 2.474226804 | H182: NA | I182: NA | J182: 3.387533875 | K182: 3.933658959 | L182: 0.1021 | M182: 1.490037977 | N182: NA | O182: NA | P182: 4.15569217 | Q182: 4.206410106 | R182: 0.2952 | S182: 3.933658959 | T182: 0.56926 | U182: NA | V182: NA | W182: 1662.645079 | X182: 27.5823435 | Y182: 32.78147093 | Z182: 1667.46252 | AA182: 57.79710217 | AB182: 61.11174099 | AC182: 1665.331147 | AD182: 34.44010083 | AE182: 37.01407039 | AF182: NA | AG182: NA | AH182: NA | AI182: 0.9285657595 | AJ182: 1.002897456 | AK182: CX | AL182: 1662.645079 | AM182: 27.5823435 | AN182: 1.658943562 | AO182: 32.78147093 | AP182: 1.968407546
A183: UK019 | B183: UK019_158 | C183: NA | D183: 512 | E183: 5320 | F183: 63.7 | G183: 1.251473477 | H183: NA | I183: NA | J183: 3.573981415 | K183: 4.117060215 | L183: 0.1024 | M183: 5.090672059 | N183: NA | O183: NA | P183: 3.950471578 | Q183: 6.547146464 | R183: 0.2798 | S183: 4.117060215 | T183: 0.11666 | U183: NA | V183: NA | W183: 1668.073758 | X183: 94.27863418 | Y183: 95.93397574 | Z183: 1590.354976 | AA183: 58.02601658 | AB183: 61.07111537 | AC183: 1624.08777 | AD183: 53.09822025 | AE183: 54.77290657 | AF183: NA | AG183: NA | AH183: NA | AI183: 0.3626204572 | AJ183: 0.9534080668 | AL183: 1668.073758 | AM183: 94.27863418 | AN183: 5.651946369 | AO183: 95.93397574 | AP183: 5.96359078
A184: UK019 | B184: UK019_90 | C184: NA | D184: 1873 | E184: 19380 | F184: 240 | G184: 0.8510638298 | H184: NA | I184: NA | J184: 3.533568905 | K184: 3.956262367 | L184: 0.1025 | M184: 2.38127437 | N184: NA | O184: NA | P184: 3.9995541 | Q184: 4.617627047 | R184: 0.283 | S184: 3.956262367 | T184: -0.038305 | U184: NA | V184: NA | W184: 1669.87895 | X184: 44.04692765 | Y184: 47.47213728 | Z184: 1606.453413 | AA184: 56.25667945 | AB184: 59.44719142 | AC184: 1634.105426 | AD184: 37.5255207 | AE184: 39.86707009 | AF184: NA | AG184: NA | AH184: NA | AI184: 0.4216453748 | AJ184: 0.9620178832 | AL184: 1669.87895 | AM184: 44.04692765 | AN184: 2.637731774 | AO184: 47.47213728 | AP184: 2.920794967
A185: UK019 | B185: UK019_129 | C185: NA | D185: 3460 | E185: 35800 | F185: 415 | G185: 3.327987169 | H185: NA | I185: NA | J185: 3.47826087 | K185: 3.927290364 | L185: 0.1026 | M185: 1.74714658 | N185: NA | O185: NA | P185: 4.0671153 | Q185: 4.298386997 | R185: 0.2875 | S185: 3.927290364 | T185: 0.44223 | U185: NA | V185: NA | W185: 1671.681967 | X185: 32.30575513 | Y185: 36.83515612 | Z185: 1629.024036 | AA185: 56.53442281 | AB185: 59.78687698 | AC185: 1647.734865 | AD185: 35.04560223 | AE185: 37.55769934 | AF185: NA | AG185: NA | AH185: NA | AI185: 0.4686516841 | AJ185: 0.9744820295 | AL185: 1671.681967 | AM185: 32.30575513 | AN185: 1.932529977 | AO185: 36.83515612 | AP185: 2.238910232
A186: UK019 | B186: UK019_30 | C186: NA | D186: 1234 | E186: 12710 | F186: 142.8 | G186: 1.191986644 | H186: NA | I186: NA | J186: 3.585514521 | K186: 3.989298382 | L186: 0.1027 | M186: 2.866314467 | N186: NA | O186: NA | P186: 3.949300976 | Q186: 4.912256122 | R186: 0.2789 | S186: 3.989298382 | T186: 0.34353 | U186: NA | V186: NA | W186: 1673.482814 | X186: 53.00107158 | Y186: 55.87892189 | Z186: 1585.820038 | AA186: 56.08382303 | AB186: 59.21345437 | AC186: 1623.847641 | AD186: 39.82078813 | AE186: 42.02423195 | AF186: NA | AG186: NA | AH186: NA | AI186: 0.1783493953 | AJ186: 0.9476165666 | AL186: 1673.482814 | AM186: 53.00107158 | AN186: 3.167111795 | AO186: 55.87892189 | AP186: 3.462488826
A187: UK019 | B187: UK019_267 | C187: NA | D187: 1450 | E187: 15200 | F187: 181.8 | G187: 2.364109233 | H187: NA | I187: NA | J187: 3.307972213 | K187: 3.992672448 | L187: 0.1029 | M187: 2.666564171 | N187: NA | O187: NA | P187: 4.28898766 | Q187: 4.801249604 | R187: 0.3023 | S187: 3.992672448 | T187: 0.55417 | U187: NA | V187: NA | W187: 1677.078017 | X187: 49.28223574 | Y187: 52.36147614 | Z187: 1702.703832 | AA187: 59.74773285 | AB187: 63.07636093 | AC187: 1691.249286 | AD187: 39.5536014 | AE187: 41.84181108 | AF187: NA | AG187: NA | AH187: NA | AI187: 0.6479980158 | AJ187: 1.015280037 | AL187: 1677.078017 | AM187: 49.28223574 | AN187: 2.938577408 | AO187: 52.36147614 | AP187: 3.093944525
A188: UK019 | B188: UK019_138 | C188: NA | D188: 695 | E188: 6990 | F188: 87.6 | G188: 0.8240827846 | H188: NA | I188: NA | J188: 3.669724771 | K188: 4.054019306 | L188: 0.1033 | M188: 4.125211874 | N188: NA | O188: NA | P188: 3.88121859 | Q188: 5.783808913 | R188: 0.2725 | S188: 4.054019306 | T188: 0.4369 | U188: NA | V188: NA | W188: 1684.242602 | X188: 76.20783287 | Y188: 78.23462278 | Z188: 1553.479255 | AA188: 55.96591966 | AB188: 58.9925852 | AC188: 1609.783114 | AD188: 46.72939409 | AE188: 48.60909271 | AF188: NA | AG188: NA | AH188: NA | AI188: 0.04107775256 | AJ188: 0.9223607412 | AL188: 1684.242602 | AM188: 76.20783287 | AN188: 4.524753902 | AO188: 78.23462278 | AP188: 4.922162317
A189: UK019 | B189: UK019_165 | C189: NA | D189: 1546 | E189: 15520 | F189: 170.9 | G189: 1.710710711 | H189: NA | I189: NA | J189: 3.326679973 | K189: 3.989763187 | L189: 0.1035 | M189: 2.448671689 | N189: NA | O189: NA | P189: 4.289736348 | Q189: 4.68126087 | R189: 0.3006 | S189: 3.989763187 | T189: 0.34506 | U189: NA | V189: NA | W189: 1687.812063 | X189: 45.19106227 | Y189: 48.52108771 | Z189: 1694.283297 | AA189: 59.44603065 | AB189: 62.76255238 | AC189: 1691.393009 | AD189: 38.56542231 | AE189: 40.90886551 | AF189: NA | AG189: NA | AH189: NA | AI189: 0.9214748596 | AJ189: 1.003834096 | AL189: 1687.812063 | AM189: 45.19106227 | AN189: 2.677493737 | AO189: 48.52108771 | AP189: 2.867716995
A190: UK019 | B190: UK019_275 | C190: NA | D190: 911 | E190: 9370 | F190: 118.4 | G190: 1.065706571 | H190: NA | I190: NA | J190: 3.393281303 | K190: 3.991383041 | L190: 0.1035 | M190: 3.714036871 | N190: NA | O190: NA | P190: 4.205539926 | Q190: 5.452082947 | R190: 0.2947 | S190: 3.991383041 | T190: 0.094563 | U190: NA | V190: NA | W190: 1687.812063 | X190: 68.56997523 | Y190: 70.81230326 | Z190: 1664.973461 | AA190: 58.56856057 | AB190: 61.83354027 | AC190: 1675.101212 | AD190: 44.75375156 | AE190: 46.77459792 | AF190: NA | AG190: NA | AH190: NA | AI190: 0.7731569356 | AJ190: 0.9864685158 | AL190: 1687.812063 | AM190: 68.56997523 | AN190: 4.062654648 | AO190: 70.81230326 | AP190: 4.23648743
A191: UK019 | B191: UK019_204 | C191: NA | D191: 1461 | E191: 14660 | F191: 164.1 | G191: 1.491818182 | H191: NA | I191: NA | J191: 3.345600535 | K191: 4.026672163 | L191: 0.1036 | M191: 2.84585015 | N191: NA | O191: NA | P191: 4.269597595 | Q191: 4.930816544 | R191: 0.2989 | S191: 4.026672163 | T191: 0.17581 | U191: NA | V191: NA | W191: 1689.593602 | X191: 52.51465445 | Y191: 55.40613733 | Z191: 1685.851748 | AA191: 59.73475767 | AB191: 63.00815357 | AC191: 1687.519929 | AD191: 40.58723494 | AE191: 42.81674724 | AF191: NA | AG191: NA | AH191: NA | AI191: 0.9597090896 | AJ191: 0.9977853525 | AK191: CX | AL191: 1689.593602 | AM191: 52.51465445 | AN191: 3.108123419 | AO191: 55.40613733 | AP191: 3.284196507
A192: UK019 | B192: UK019_227 | C192: NA | D192: 855 | E192: 8650 | F192: 109.6 | G192: 1.255441008 | H192: NA | I192: NA | J192: 3.533568905 | K192: 4.04350797 | L192: 0.1038 | M192: 3.575204796 | N192: NA | O192: NA | P192: 4.050280152 | Q192: 5.39741105 | R192: 0.283 | S192: 4.04350797 | T192: 0.20373 | U192: NA | V192: NA | W192: 1693.150324 | X192: 65.95883912 | Y192: 68.28340883 | Z192: 1606.453413 | AA192: 57.49734676 | AB192: 60.62261246 | AC192: 1644.355706 | AD192: 43.98012616 | AE192: 46.00549329 | AF192: NA | AG192: NA | AH192: NA | AI192: 0.2429889693 | AJ192: 0.9487955025 | AL192: 1693.150324 | AM192: 65.95883912 | AN192: 3.895628059 | AO192: 68.28340883 | AP192: 4.185824172
A193: UK019 | B193: UK019_285 | C193: NA | D193: 1680 | E193: 17000 | F193: 195 | G193: 4.744525547 | H193: NA | I193: NA | J193: 3.102699348 | K193: 3.923203612 | L193: 0.104 | M193: 2.585679836 | N193: NA | O193: NA | P193: 4.621627296 | Q193: 4.698645208 | R193: 0.3223 | S193: 3.923203612 | T193: 0.29453 | U193: NA | V193: NA | W193: 1696.698602 | X193: 47.667469 | Y193: 50.82903501 | Z193: 1800.951778 | AA193: 61.64567316 | AB193: 65.19940876 | AC193: 1753.181882 | AD193: 39.2420407 | AE193: 41.60957336 | AF193: NA | AG193: NA | AH193: NA | AI193: 0.1272353675 | AJ193: 1.061444723 | AL193: 1696.698602 | AM193: 47.667469 | AN193: 2.809424664 | AO193: 50.82903501 | AP193: 2.883182756
A194: UK019 | B194: UK019_252 | C194: NA | D194: 1082 | E194: 11250 | F194: 137.1 | G194: 1.975504323 | H194: NA | I194: NA | J194: 3.585514521 | K194: 3.942104612 | L194: 0.1041 | M194: 2.978441386 | N194: NA | O194: NA | P194: 4.003137601 | Q194: 4.94077948 | R194: 0.2789 | S194: 3.942104612 | T194: 0.35196 | U194: NA | V194: NA | W194: 1698.469587 | X194: 54.90165243 | Y194: 57.66791126 | Z194: 1585.820038 | AA194: 55.42031333 | AB194: 58.58539277 | AC194: 1634.832955 | AD194: 40.16149271 | AE194: 42.35890678 | AF194: NA | AG194: NA | AH194: NA | AI194: 0.07903316115 | AJ194: 0.933675852 | AL194: 1698.469587 | AM194: 54.90165243 | AN194: 3.232418929 | AO194: 57.66791126 | AP194: 3.556891355
A195: UK019 | B195: UK019_207 | C195: NA | D195: 11650 | E195: 118200 | F195: 1252 | G195: 5.984703633 | H195: NA | I195: NA | J195: 3.269042171 | K195: 3.902089332 | L195: 0.1044 | M195: 0.8798682917 | N195: NA | O195: NA | P195: 4.403330165 | Q195: 4.00005867 | R195: 0.3059 | S195: 3.902089332 | T195: 0.5396 | U195: NA | V195: NA | W195: 1703.76998 | X195: 16.20135068 | Y195: 23.93682394 | Z195: 1720.499328 | AA195: 58.92465703 | AB195: 62.35735841 | AC195: 1712.966909 | AD195: 33.11081844 | AE195: 35.83720002 | AF195: NA | AG195: NA | AH195: NA | AI195: 0.7615862724 | AJ195: 1.009819018 | AL195: 1703.76998 | AM195: 16.20135068 | AN195: 0.9509118523 | AO195: 23.93682394 | AP195: 1.397285589
A196: UK019 | B196: UK019_2 | C196: NA | D196: 3140 | E196: 32100 | F196: 354 | G196: 1.123809524 | H196: NA | I196: NA | J196: 3.610108303 | K196: 3.8866618 | L196: 0.1046 | M196: 1.512164748 | N196: NA | O196: NA | P196: 3.994962696 | Q196: 4.170465462 | R196: 0.277 | S196: 3.8866618 | T196: 0.54569 | U196: NA | V196: NA | W196: 1707.293156 | X196: 27.8337358 | Y196: 32.93964218 | Z196: 1576.235791 | AA196: 54.34932054 | AB196: 57.53994011 | AC196: 1633.172507 | AD196: 33.8809874 | AE196: 36.45539265 | AF196: NA | AG196: NA | AH196: NA | AI196: 0.01245914258 | AJ196: 0.9232367535 | AL196: 1707.293156 | AM196: 27.8337358 | AN196: 1.630284506 | AO196: 32.93964218 | AP196: 2.022226192
A197: UK019 | B197: UK019_132 | C197: NA | D197: 3520 | E197: 35200 | F197: 403 | G197: 2.143617021 | H197: NA | I197: NA | J197: 3.298153034 | K197: 3.968893374 | L197: 0.105 | M197: 1.494101469 | N197: NA | O197: NA | P197: 4.38954768 | Q197: 4.240808155 | R197: 0.3032 | S197: 3.968893374 | T197: 0.53618 | U197: NA | V197: NA | W197: 1714.314672 | X197: 27.47684348 | Y197: 32.6301666 | Z197: 1707.157314 | AA197: 59.52756345 | AB197: 62.88271875 | AC197: 1710.373623 | AD197: 35.08478181 | AE197: 37.66609748 | AF197: NA | AG197: NA | AH197: NA | AI197: 0.8983074544 | AJ197: 0.9958249447 | AL197: 1714.314672 | AM197: 27.47684348 | AN197: 1.602788795 | AO197: 32.6301666 | AP197: 1.907937744
A198: UK019 | B198: UK019_241 | C198: NA | D198: 2058 | E198: 20580 | F198: 257 | G198: 23.7962963 | H198: NA | I198: NA | J198: 3.527336861 | K198: 3.942642332 | L198: 0.1057 | M198: 2.211673392 | N198: NA | O198: NA | P198: 4.131705186 | Q198: 4.520611436 | R198: 0.2835 | S198: 3.942642332 | T198: 0.40772 | U198: NA | V198: NA | W198: 1726.523418 | X198: 40.61600452 | Y198: 44.25630751 | Z198: 1608.965166 | AA198: 56.14017414 | AB198: 59.34551876 | AC198: 1660.596029 | AD198: 36.97316274 | AE198: 39.37721401 | AF198: NA | AG198: NA | AH198: NA | AI198: 0.05165622675 | AJ198: 0.931910421 | AL198: 1726.523418 | AM198: 40.61600452 | AN198: 2.352473421 | AO198: 44.25630751 | AP198: 2.681141854
A199: UK019 | B199: UK019_247 | C199: NA | D199: 2280 | E199: 22700 | F199: 267.2 | G199: 3.2545676 | H199: NA | I199: NA | J199: 3.416467373 | K199: 3.909085485 | L199: 0.1058 | M199: 1.980993785 | N199: NA | O199: NA | P199: 4.269820961 | Q199: 4.382383565 | R199: 0.2927 | S199: 3.909085485 | T199: -0.0033369 | U199: NA | V199: NA | W199: 1728.2594 | X199: 36.37008024 | Y199: 40.39246095 | Z199: 1655.007602 | AA199: 57.05972689 | AB199: 60.37221123 | AC199: 1687.562968 | AD199: 36.06921757 | AE199: 38.55981224 | AF199: NA | AG199: NA | AH199: NA | AI199: 0.3354579091 | AJ199: 0.9576152758 | AL199: 1728.2594 | AM199: 36.37008024 | AN199: 2.104434105 | AO199: 40.39246095 | AP199: 2.407000731
A200: UK019 | B200: UK019_43 | C200: NA | D200: 5500 | E200: 55600 | F200: 490 | G200: 2.322274882 | H200: NA | I200: NA | J200: 3.15556958 | K200: 3.945096163 | L200: 0.106 | M200: 1.486625866 | N200: NA | O200: NA | P200: 4.631582232 | Q200: 4.215903249 | R200: 0.3169 | S200: 3.945096163 | T200: 0.51457 | U200: NA | V200: NA | W200: 1731.725316 | X200: 27.27959154 | Y200: 32.44338261 | Z200: 1774.572053 | AA200: 61.2009676 | AB200: 64.69106797 | AC200: 1754.978361 | AD200: 35.22034644 | AE200: 37.8412998 | AF200: NA | AG200: NA | AH200: NA | AI200: 0.4569351207 | AJ200: 1.024742225 | AK200: Z | AL200: 1731.725316 | AM200: 27.27959154 | AN200: 1.575283983 | AO200: 32.44338261 | AP200: 1.847710019
A201: UK019 | B201: UK019_130 | C201: NA | D201: 929 | E201: 9220 | F201: 117 | G201: 1.063636364 | H201: NA | I201: NA | J201: 3.492839679 | K201: 3.99093259 | L201: 0.1064 | M201: 3.34539355 | N201: NA | O201: NA | P201: 4.200144682 | Q201: 5.207609907 | R201: 0.2863 | S201: 3.99093259 | T201: 0.28287 | U201: NA | V201: NA | W201: 1738.633083 | X201: 61.36167927 | Y201: 63.82520938 | Z201: 1623.012926 | AA201: 57.26418699 | AB201: 60.45714595 | AC201: 1674.04828 | AD201: 42.73399472 | AE201: 44.8444596 | AF201: NA | AG201: NA | AH201: NA | AI201: 0.09437809353 | AJ201: 0.933499392 | AL201: 1738.633083 | AM201: 61.36167927 | AN201: 3.529305859 | AO201: 63.82520938 | AP201: 3.849617525
A202: UK019 | B202: UK019_28 | C202: NA | D202: 4250 | E202: 43100 | F202: 384 | G202: 3.12195122 | H202: NA | I202: NA | J202: 3.270111184 | K202: 3.858978234 | L202: 0.1065 | M202: 1.384587988 | N202: NA | O202: NA | P202: 4.490434476 | Q202: 4.099853279 | R202: 0.3058 | S202: 3.858978234 | T202: 0.066216 | U202: NA | V202: NA | W202: 1740.355037 | X202: 25.3794016 | Y202: 30.85170563 | Z202: 1720.005671 | AA202: 58.25901999 | AB202: 61.72705146 | AC202: 1729.204845 | AD202: 34.05984925 | AE202: 36.73451625 | AF202: NA | AG202: NA | AH202: NA | AI202: 0.7787667763 | AJ202: 0.9883073482 | AL202: 1740.355037 | AM202: 25.3794016 | AN202: 1.458288744 | AO202: 30.85170563 | AP202: 1.786441863
A203: UK019 | B203: UK019_206 | C203: NA | D203: 1635 | E203: 16150 | F203: 182.7 | G203: 6.917834154 | H203: NA | I203: NA | J203: 3.305785124 | K203: 3.948240495 | L203: 0.1073 | M203: 2.479584052 | N203: NA | O203: NA | P203: 4.47534351 | Q203: 4.662289146 | R203: 0.3025 | S203: 3.948240495 | T203: 0.31884 | U203: NA | V203: NA | W203: 1754.059534 | X203: 45.38224653 | Y203: 48.64630322 | Z203: 1703.693761 | AA203: 59.11281259 | AB203: 62.47859464 | AC203: 1726.410129 | AD203: 38.71279078 | AE203: 41.08384019 | AF203: NA | AG203: NA | AH203: NA | AI203: 0.4443981234 | AJ203: 0.9712861667 | AL203: 1754.059534 | AM203: 45.38224653 | AN203: 2.587269454 | AO203: 48.64630322 | AP203: 2.825987771
... 1748 more rows

Sheet Table of Acquisition Parameters
A1: Table 1 | B1: Data acquisition and laser settings
A2: Laser | B2: ASI Resochron
A3: Type and wavelength | B3: Excimer, 193 nm
A4: Pulse width (ns) | B4: 20
A5: Fluence | B5: 1.9 J/cm2
A6: Sample cell | B6: Laurin-Technic M-50 Dual Volume
A7: Spot size (µm) | B7: 22
A8: Sampling mode | B8: Static spot
A9: Repetition rate (Hz) | B9: 10
A10: Ablation duration (s) | B10: 15
A11: Pit depth | B11: ~12 µm; confirmed by optical profilometry
A12: Carrier gas | B12: UHP He (99.99999%)
A13: Carrier gas flow (L min-1) | B13: 0.75
A14: Supplemental N2 (L min-1) | B14: 0.006
A16: Mass spectrometer | B16: Agilent 7700
A17: Cool Gas (L min-1) | B17: 14
A18: Carrier Gas (L min-1) | B18: 0.75; combined in y fitting with He in transport line to torch
A19: RF power (W) | B19: 1350
A20: Masses | B20: 91, 201, 202, 204, 206, 207, 208, 232, 238
A21: Sample time per peak (s) | B21: 0.01, 0.01, 0.01, 0.03, 0.04, 0.08, 0.015, 0.015, 0.02
A22: Acquisition mode | B22: Time resolved analysis

Sheet Legend
A2: 1Concentration uncertainty 5%
A3: 2Data not corrected for common lead
A4: 3Concordance calculated as (206Pb/238U age/207Pb/206Pb Age)
A5: 4Accepted dates have probability of concordance >1%
A6: 5Concentration uncertainty 20%
A7: Decay constants of Jaffey et al. (1971) used with modification after Mattinson (1987)
A8: bd = below detection, NA = not available
A9: sx includes all random uncertainties (sm, ε); stotal inlcudes all random and systematic uncertainties (sm, ε, ε', sy, λ)
A10: Comments: CL - analysis affected by common Pb; DO - pit drilled out of grain; LL - affected by lead loss; SL - sloping 6/8 or 7/6 age, suggestive of age heterogeneity; 2Ages - age heterogeneity; CX - complex age structure; Z - zoned; E - analysis is not sound, eliminated
A11: Comments on Samples 1-9-1, 1-16-1, 1-49-3, 1-91-7, 1-93-1, 1-99-1 and 96-04/97-25 are absent due to the incorporation of this procedure at a later date than their analytical session
